{"text_format":"3","workbook":"xlsx","n_sheets":1,"sheets":["F2 lengkap"],"read":"whole","date_system":"1900"}

{"sheet":"F2 lengkap","index":0,"n_rows":1572,"n_cols":14,"rows_kept":1572,"merged":[[1,0,1,10],[5,0,6,0],[5,1,5,3],[5,4,6,4],[5,5,6,5],[5,6,6,6],[5,7,6,7],[5,8,6,8],[5,9,6,9],[5,10,6,10],[6,1,6,3],[7,1,7,3],[9,1,9,3],[10,2,10,3],[17,2,17,3],[24,2,24,3],[30,2,30,3],[37,2,37,3],[51,2,51,3],[59,2,59,3],[66,2,66,3],[77,2,77,3],[85,2,85,3],[92,2,92,3],[97,2,97,3],[106,2,106,3],[112,2,112,3],[119,2,119,3],[124,1,124,3],[125,1,125,3],[126,2,126,3],[133,2,133,3],[140,2,140,3],[146,2,146,3],[153,2,153,3],[160,2,160,3],[170,2,170,3],[177,2,177,3],[183,2,183,3],[195,2,195,3],[205,2,205,3],[212,2,212,3],[224,2,224,3],[240,2,240,3],[248,2,248,3],[254,2,254,3],[261,2,261,3],[268,1,268,3],[269,2,269,3],[276,2,276,3],[281,2,281,3],[287,2,287,3],[293,2,293,3],[298,2,298,3],[307,2,307,3],[312,2,312,3],[316,2,316,3],[325,2,325,3],[330,2,330,3],[336,2,336,3],[344,2,344,3],[356,2,356,3],[362,2,362,3],[368,2,368,3],[373,2,373,3],[379,1,379,3],[380,2,380,3],[387,2,387,3],[392,2,392,3],[398,2,398,3],[404,2,404,3],[410,2,410,3],[417,2,417,3],[422,2,422,3],[426,2,426,3],[434,2,434,3],[440,2,440,3],[445,2,445,3],[454,2,454,3],[460,2,460,3],[466,2,466,3],[472,2,472,3],[479,1,479,3],[480,2,480,3],[487,2,487,3],[492,2,492,3],[498,2,498,3],[504,2,504,3],[507,2,507,3],[512,2,512,3],[515,2,515,3],[518,2,518,3],[521,2,521,3],[524,2,524,3],[530,2,530,3],[536,2,536,3],[541,2,541,3],[546,1,546,3],[547,1,547,3],[548,2,548,3],[555,2,555,3],[562,2,562,3],[568,2,568,3],[575,2,575,3],[585,2,585,3],[595,2,595,3],[605,2,605,3],[613,2,613,3],[619,2,619,3],[627,2,627,3],[633,2,633,3],[641,2,641,3],[647,2,647,3],[654,2,654,3],[658,2,658,3],[660,1,660,3],[661,2,661,3],[668,2,668,3],[673,2,673,3],[679,2,679,3],[685,2,685,3],[693,2,693,3],[701,2,701,3],[708,2,708,3],[712,2,712,3],[717,2,717,3],[721,2,721,3],[727,2,727,3],[731,2,731,3],[737,2,737,3],[743,1,743,3],[744,2,744,3],[751,2,751,3],[756,2,756,3],[762,2,762,3],[768,2,768,3],[775,2,775,3],[782,2,782,3],[788,2,788,3],[792,2,792,3],[796,2,796,3],[801,2,801,3],[805,2,805,3],[811,2,811,3],[817,1,817,3],[818,2,818,3],[825,2,825,3],[830,2,830,3],[836,2,836,3],[842,2,842,3],[846,2,846,3],[851,2,851,3],[855,1,855,3],[856,2,856,3],[857,1,857,3],[858,2,858,3],[865,2,865,3],[872,2,872,3],[878,2,878,3],[885,2,885,3],[895,2,895,3],[905,2,905,3],[916,2,916,3],[925,2,925,3],[934,2,934,3],[942,2,942,3],[948,2,948,3],[954,2,954,3],[961,2,961,3],[967,1,967,3],[968,2,968,3],[975,2,975,3],[980,2,980,3],[986,2,986,3],[992,2,992,3],[1000,2,1000,3],[1007,2,1007,3],[1017,2,1017,3],[1022,2,1022,3],[1029,2,1029,3],[1033,2,1033,3],[1038,2,1038,3],[1044,2,1044,3],[1050,1,1050,3],[1051,2,1051,3],[1058,2,1058,3],[1063,2,1063,3],[1069,2,1069,3],[1075,2,1075,3],[1081,2,1081,3],[1087,2,1087,3],[1095,2,1095,3],[1099,2,1099,3],[1105,2,1105,3],[1110,2,1110,3],[1114,2,1114,3],[1120,2,1120,3],[1126,1,1126,3],[1127,2,1127,3],[1134,2,1134,3],[1139,2,1139,3],[1145,2,1145,3],[1151,2,1151,3],[1157,2,1157,3],[1162,2,1162,3],[1166,2,1166,3],[1171,2,1171,3],[1175,1,1175,3],[1176,1,1176,3],[1177,2,1177,3],[1184,2,1184,3],[1191,2,1191,3],[1197,2,1197,3],[1204,2,1204,3],[1214,2,1214,3],[1224,2,1224,3],[1231,2,1231,3],[1238,2,1238,3],[1245,2,1245,3],[1253,2,1253,3],[1260,2,1260,3],[1269,2,1269,3],[1277,2,1277,3],[1284,2,1284,3],[1291,2,1291,3],[1299,2,1299,3],[1306,2,1306,3],[1312,2,1312,3],[1319,2,1319,3],[1324,1,1324,3],[1325,2,1325,3],[1332,2,1332,3],[1337,2,1337,3],[1343,2,1343,3],[1349,2,1349,3],[1356,2,1356,3],[1363,2,1363,3],[1367,2,1367,3],[1372,2,1372,3],[1376,2,1376,3],[1380,2,1380,3],[1384,2,1384,3],[1390,2,1390,3],[1395,2,1395,3],[1399,2,1399,3],[1403,2,1403,3],[1407,2,1407,3],[1413,2,1413,3],[1419,2,1419,3],[1425,1,1425,3],[1426,2,1426,3],[1433,2,1433,3],[1438,2,1438,3],[1444,2,1444,3],[1450,2,1450,3],[1456,2,1456,3],[1462,2,1462,3],[1467,2,1467,3],[1472,2,1472,3],[1476,2,1476,3],[1480,2,1480,3],[1484,2,1484,3],[1490,2,1490,3],[1495,2,1495,3],[1499,2,1499,3],[1503,2,1503,3],[1508,2,1508,3],[1512,2,1512,3],[1518,2,1518,3],[1524,1,1524,3],[1525,2,1525,3],[1532,2,1532,3],[1537,2,1537,3],[1543,2,1543,3],[1549,2,1549,3],[1554,2,1554,3],[1558,2,1558,3],[1562,2,1562,3],[1567,2,1567,3],[1571,1,1571,3],[1572,2,1572,3]]}
[{"$nulls":10},"FORM 2"]
["PERUMUSAN NAMA JABATAN "]
["SKPD",null,null,": KELURAHAN SUMBERREJO"]
["UNIT KERJA",null,null,":"]
[]
["NO ","URAIAN TUGAS DAN",null,null,"HASIL KERJA","VOL","SATUAN","WAKTU (MENIT) ","BEBAN KERJA","NAMA JABATAN","KET "]
[null,"TAHAPAN"]
[" 1 ",2,null,null,3,4,5,6,7,8,9]
[]
["I.1","KONSEPTUAL DAN MANAGERIAL (ESELON 4)",{"$nulls":7},"Lurah"]
[null,1,"Merencanakan kegiatan Lurah sesuai program kerja Lurah dan ketentuan yang berlaku untuk pedoman pelaksanaan tugas.",null,"Program Kerja",1,"dokumen",null,{"$f":"SUM(I12:I16)","v":420},null,"  "]
[null,null,"1)","Mempelajari pedoman pelaksanaan tugas.",null,1,null,60,{"$f":"F12*H12","v":60}]
[null,null,"2)","Menelaah Program Kerja Lurah",null,1,null,120,{"$f":"F13*H13","v":120},null,"  "]
[null,null,"3)","Menyusun konsep rencana kegiatan Lurah",null,1,null,120,120,null,"  "]
[null,null,"4)","Mengkonsultasikan konsep rencana kegiatan dengan pimpinan untuk mendapatkan pengarahan;",null,1,null,60,60,null,"  "]
[null,null,"5)","Menetapkan rencana kegiatanLurah",null,1,null,60,60]
[]
[null,2,"Membagi tugas kepada bawahan di lingkungan Kelurahan sesuai dengan beban kerja dan tanggung jawab masing-masing untuk kelancaran pelaksanaan tugas.",null,"Distribusi Tugas",12,"dokumen",null,{"$f":"SUM(I19:I23)","v":2400}]
[null,null,"1)","Menjabarkan rencana kegiatan menjadi tugas-tugas yang harus dilaksanakan bawahan;",null,1,null,120,120,null,"  "]
[null,null,"2)","Memaparkan rencana kegiatanLurah",null,1,null,120,120,null,"  "]
[null,null,"3)","Menghimpun saran dan masukan dari bawahan;",null,12,null,60,720,null,"  "]
[null,null,"4)","Memberikan petunjuk pelaksanaan tugas kepada bawahan;",null,12,null,60,720,null,"  "]
[null,null,"5)","Menentukan target waktu penyelesaian.",null,12,null,60,720]
[]
[null,3,"Memberi petunjuk, membimbing dan mengkoordinasikan pelaksanaan tugas bawahan di lingkungan Kelurahan setiap saat sesuai dengan tugas dan tanggung jawabnya agar pekerjaan berjalan tertib dan lancar.",null,"Kegiatan Bimbingan dan Koordinasi",12,"kali",null,{"$f":"SUM(I26:I29)","v":1800}]
[null,null,"1)","Menjelaskan tugas yang akan dilaksanakan bawahan;",null,12,null,30,360,null,"  "]
[null,null,"2)","Mengidentifikasi kesulitan yang dialami bawahan;",null,12,null,30,360,null,"  "]
[null,null,"3)","Menganalisis permasalahan bersama pimpinan untuk menentukan solusi terbaik;",null,12,null,60,720,null,"  "]
[null,null,"4)","Memberikan arahan kepada bawahan terkait permasalahan yang dialami.",null,12,null,30,360,null,"  "]
[]
[null,4,"Memeriksa hasil kerja bawahan di lingkungan Kelurahan sesuai dengan prosedur dan peraturan yang berlaku agar terhindar dari kesalahan.",null,"Kegiatan Pemeriksaan",12,"kali",null,{"$f":"SUM(I32:I36)","v":1860}]
[null,null,"1)","Menelaah hasil kerja yang dilakukan bawahan;",null,12,null,30,360]
[null,null,"2)","Menentukan standar kualitas dan/atau kuantitas hasil kerja;",null,1,null,60,60,null,"  "]
[null,null,"3)","Mengidentifikasi kesalahan dalam hasil kerja sesuai dengan prosedur yang telah ditentukan;",null,12,null,30,360,null,"  "]
[null,null,"4)","Membuat koreksi pada hasil kerja berupa catatan tertulis;",null,12,null,30,360,null,"  "]
[null,null,"5)","Memberikan arahan terkait koreksi hasil kerja bawahan.",null,12,null,60,720,null,"  "]
[]
[null,5,"Melaksanakan kegiatan pemerintahan kelurahan",null,"Kegiatan Peningkatan Kinerja ",{"$f":"SUM(F40:F49)","v":150},"kali",null,{"$f":"SUM(I39:I49)","v":20040},null,"  "]
[null,null,"1)","Mempelajari pedoman pelaksaaan tugas.",null,8,null,30,240,null,"  "]
[null,null,"2)","Mengarahkan perencanaan kegiatan Sekretariat dan masing-masing seksi",null,12,null,180,2160]
[null,null,"3)","Melaksanakan pembinaan PNS di Lingkungan Kelurahan",null,12,null,120,1440]
[null,null,"4)","Mengarahkan pengelolaan surat menyurat, kearsipan, dokumentasi produk hukum, keuangan, kerumahtanggaan, perlengkapan dan pengelolaan kepegawaian.",null,24,null,120,2880]
[null,null,"5)","Mengarahkan perencanaan, pelaksanaan dan pelaporan Musyawarah Perencanaan Pembangunan Kelurahan (Musrenbangkel)",null,6,null,240,1440]
[null,null,"6)","Mengarahkan pengelolaan Administrasi Pertanahan dan Perpajakan",null,24,null,120,2880,null,"  "]
[null,null,"7)","Mengarahkan pengelolaan Administrasi Kependudukan dan Catatan Sipil",null,24,null,120,2880,null,"  "]
[null,null,"8)","Mengarahkan penyusunan Data Dasar Keluarga, Data Dasar Potensi Sumber Daya Alam, Data Dasar Potensi Sumber Daya Manusia, Data Dasar Potensi Sumber Daya Kelembagaan, dan Data Dasar Sarana Prasarana Kelurahan",null,24,null,120,2880]
[null,null,"9)","Mengarahkan penyusunan Profil Kelurahan",null,6,null,180,1080]
[null,null,"10)","Mengarahkan penyusunan Buku-buku Administrasi Kelurahan",null,6,null,120,720]
[null,null,"11)","Mengevaluasi kegiatan pemerintahan kelurahan",null,12,null,120,{"$f":"F49*H49","v":1440}]
[]
[]
[null,6,"Memberdayakan masyarakat",null,"Kegiatan Peningkatan partisipasi masyarakat",12,"kali",null,{"$f":"SUM(I53:I58)","v":6060},null,"  "]
[null,null,"1)","Mempelajari pedoman pelaksaaan tugas.",null,2,null,30,60,null,"  "]
[null,null,"2)","Merencanakan kegiatan pemberdayaan masyarakat",null,2,null,120,240,null,"  "]
[null,null,"3)","Mendorong partisipasi dan kegotong royongan masyarakat",null,12,null,180,2160,null,"  "]
[null,null,"4)","Mendorong partisipasi masyarakat untuk ikut serta dalam Forum Penggalian Gagasan dan Musrenbang Kelurahan",null,12,null,180,{"$f":"F56*H56","v":2160}]
[null,null,"5)","Memonitor kegiatan pemberdayaan masyarakat",null,12,null,60,{"$f":"F57*H57","v":720}]
[null,null,"6)","Mengevaluasi kegiatan pemberdayaan masyarakat",null,12,null,60,720]
[]
[null,7,"Menyelenggarakan pelayanan masyarakat sesuai dengan ruang lingkup tugasnya.",null,"Kegiatan Pelayanan masyarakat",268,"hari",null,{"$f":"SUM(I61:I65)","v":19380},null,"  "]
[null,null,"1)","Mempelajari pedoman pelaksaaan tugas.",null,2,null,30,60,null,"  "]
[null,null,"2)","Mengarahkan perencanaan dan penyelenggaraan pelayanan masyarakat, antara lain : rekomendasi, perizinan, surat keterangan, surat pengantar, legalisasi, pelayanan kependudukan dan catatan sipil",null,14,null,180,2520,null,"  "]
[null,null,"3)","Menyelenggarakan pelayanan masyarakat",null,268,null,30,8040]
[null,null,"4)","Memonitor kegiatan pelayanan masyarakat",null,268,null,30,8040]
[null,null,"5)","Mengevaluasi kegiatan pelayanan masyarakat",null,12,null,60,720]
[]
[null,8,"Menyelenggarakan ketentraman dan ketertiban",null,"Kegiatan Peningkatan ketentraman dan ketertiban",{"$f":"SUM(F69:F76)","v":96},"kali",null,{"$f":"SUM(I68:I76)","v":10890},null,"  "]
[null,null,"1)","Mempelajari pedoman pelaksaaan tugas.",null,3,null,30,90,null,"  "]
[null,null,"2)","Mengarahkan perencanaan dan penyelenggaraan keteentraman dan ketertiban umum di wilayah kerja kelurahan",null,12,null,120,1440]
[null,null,"3)","Menggerakkan kegiatan kesejahteraan rakyat, antara lain di bidang agama, pendidikan, kesehatan, ketenagakerjaan, bantuan sosial, penanganan masalah kesejahteraan sosial dan penanggulangan kemiskinan.",null,12,null,120,1440]
[null,null,"4)","Melaksanakan koordinasi ke atas dengan Camat, Kepolisian Sektor (Polsek) dan / atau Komando Rayon Militer (KORAMIL) mengenai program dan kegiatan penyelenggaraan ketentraman dan ketertiban umum di wilayah kerja kelurahan.",null,12,null,120,1440]
[null,null,"5)","Menjalin komunikasi yang intensif dengan tokoh masyarakat / pemuka agama yang berada di wilayah kerja kelurahan untuk mewujudkan ketentraman dan ketertiban umum masyarakat di wilayah kerja kelurahan",null,12,null,120,1440]
[null,null,"6)","Melaksanakan koordinasi teknis dengan Satuan Polisi Pamong Praja mengenai penegakan Peraturan Daerah, Peraturan Bupati dan Keputusan Bupati",null,12,null,120,1440,null,"  "]
[null,null,"7)","Melaksanakan koordinasi teknis dengan Camat, Satuan Polisi Pamong Praja, Polsek dan / atau Koramil  mengenai penanggulangan penyakit masyarakat",null,12,null,120,1440,null,"  "]
[null,null,"8)","Melaksanakan pemantauan terhadap hal-hal yang memungkinkan terjadinya gangguan ketentraman dan ketertiban umum.",null,12,null,120,1440]
[null,null,"9)","Melaporkan penyelenggaraan ketentraman dan ketertiban kepada atasan",null,12,null,60,720]
[]
[null,9,"Menyelenggarakan pemeliharaan prasarana dan fasilitas pelayanan umum",null,"Data aset ",12,"kali",null,{"$f":"SUM(I79:I84)","v":3030},null,"  "]
[null,null,"1)","Mempelajari pedoman pelaksaaan tugas.",null,1,null,30,30,null,"  "]
[null,null,"2)","Merencanakan kegiatan pemeliharaan prasarana dan fasilitas pelayanan umum",null,1,null,120,120,null,"  "]
[null,null,"3)","Mengkoordinasikan data prasarana dan fasilitas pelayanan umum",null,12,null,60,720]
[null,null,"4)","Memantau aset aset  prasarana dan fasilitas pelayanan umum",null,12,null,60,{"$f":"F82*H82","v":720}]
[null,null,"5)","Melaporkan kegiatan pemeliharaan prasarana dan fasilitas pelayanan umum kepada atasan",null,12,null,60,720]
[null,null,"6)","Mengevaluasi kegiatan pemeliharaan prasarana dan fasilitas pelayanan umum",null,12,null,60,720]
[]
[null,10,"Membina lembaga kemasyarakatan kelurahan",null,"Kegiatan Peningkatan Kinerja Kelembagaan",4,"kali",null,{"$f":"SUM(I87:I91)","v":1470},null,"  "]
[null,null,"1)","Mempelajari pedoman pelaksaaan tugas.",null,1,null,30,{"$f":"F87*H87","v":30},null,"  "]
[null,null,"2)","Mengarahkan perencanaan dalam pembinaan  lembaga kemasyarakatan kelurahan",null,4,null,60,240,null,"  "]
[null,null,"3)","Melaksanakan pembinaan  lembaga kemasyarakatan kelurahan, antara lain : LMPK, LPPK, Karang Taruna, RW, RT dan lain-lain",null,4,null,180,720,null,"  "]
[null,null,"4)","Melaporkan hasil kegiatan pembinaan lembaga kemasyarakatn kepada atasan",null,4,null,60,240]
[null,null,"5)","Mengevaluasi kegiatan pembinaan lembaga kemasyarakatan",null,4,null,60,240]
[]
[null,11,"Melaksanakan kewenangan pemerintahan yang dilimpahkan oleh Bupati",null,"Kegiatan Optimalisasi Penerimaan Negara",48,"kali",null,{"$f":"SUM(I94:I96)","v":8700},null,"  "]
[null,null,"1)","Mempelajari pedoman pelaksaaan tugas.",null,2,null,30,60,null,"  "]
[null,null,"2)","Mengarahkan perencanaan dan pelaksanakan kegiatan ( pemungutan Pajak Bumi dan Bangunan )",null,24,null,240,5760,null,"  "]
[null,null,"3)","Mengarahkan perencanaan dan pelaksanakan kegiatan ( pelayanan administrasi pertanahan )",null,24,null,120,2880,null,"  "]
[]
[null,12,"Mengevaluasi dan melaporkan penyelenggaraan urusan pemerintahan, pembangunan dan kemasyarakatan di kelurahan dan melaksanakan urusan pemerintahan yang dilimpahkan oleh Bupati",null,"Laporan kegiatan",12,"kali",null,{"$f":"SUM(I99:I105)","v":9480},null,"  "]
[null,null,"1)","Mempelajari pedoman pelaksaaan tugas.",null,4,null,30,120,null,"  "]
[null,null,"2)","Merencanakan  evaluasi dan pelaporan kegiatan",null,12,null,120,1440,null,"  "]
[null,null,"2)","Melaksanakan  evaluasi dan pelaporan penyelenggaraan tugas bidang kesekretariatan",null,12,null,120,1440,null,"  "]
[null,null,"3)","Melaksanakan  evaluasi dan pelaporan penyelenggaraan bidang  pemerintahan kelurahan dan pelayanan masyarakat",null,12,null,120,1440]
[null,null,"4)","Melaksanakan  evaluasi dan pelaporan penyelenggaraan bidang pemberdayaan masyarakat dan pemeliharaan prasarana / fasilitas pelayanan umum",null,12,null,120,1440]
[null,null,"5)","Melaksanakan  evaluasi dan pelaporan penyelenggaraan ketentraman, ketertiban umum dan kesejahteraan rakyat.",null,12,null,240,2880]
[null,null,"6)","Melaporkan hasil kegiatan evaluasi kepada atasan",null,12,null,60,720]
[]
[null,13,"Mengevaluasi pelaksanaan tugas di lingkungan Kelurahan dengan cara mengidentifikasi hambatan yang ada dalam rangka perbaikan kinerja di masa mendatang.",null,"Kegiatan evaluasi",12,"kali",null,{"$f":"SUM(I108:I111)","v":2160},null,"  "]
[null,null,"1)","Menentukan target kerja sesuai dengan rencana kegiatan;",null,12,null,30,360,null,"  "]
[null,null,"2)","Mempelajari laporan pelaksanaan kegiatan bawahan;",null,12,null,60,720,null,"  "]
[null,null,"3)","Mendiskusikan kemajuan pelaksanaan kegiatan dengan bawahan;",null,12,null,60,720,null,"  "]
[null,null,"4)","Memberikan langkah-langkah perbaikan dalam pelaksanaan kegiatan.",null,12,null,30,360]
[]
[null,14,"Menyusun laporan pelaksanaan kegiatan di lingkungan Kelurahan sesuai prosedur dan peraturan yang berlaku untuk pertanggungjawaban kinerja dan rencana yang akan datang.",null,"Laporan Pelaksa naan Kegiatan",12,"dokumen",null,{"$f":"SUM(I114:I118)","v":3960}]
[null,null,"1)","Menganalisis laporan yang diterima dari bawahan;",null,12,null,60,720,null,"  "]
[null,null,"2)","Membahas bahan laporan;",null,12,null,60,720,null,"  "]
[null,null,"3)","Membuat konsep laporan hasil pelaksanaan tugas;",null,12,null,60,720,null,"  "]
[null,null,"4)","Mengkonsultasikan konsep laporan kepada atasan;",null,12,null,30,360,null,"  "]
[null,null,"5)","Memfinalisasi laporan pelaksanaan tugas.",null,12,null,120,1440]
[]
[null,15,"Melaksanakan tugas kedinasan lain yang diperintahkan oleh pimpinan baik lisan maupun tertulis.",null,"Kegiatan tugas",48,"kali",null,{"$f":"SUM(I121:I123)","v":7230}]
[null,null,"1)","Mempelajari tugas;","kedinasan lain",1,null,30,30,null,"  "]
[null,null,"2)","Menjalankan tugas;",null,48,null,120,5760,null,"  "]
[null,null,"3)","Melaporkan hasil pelaksanaan tugas.",null,48,null,30,1440,null,"  "]
[]
[null,"J U M L A H",{"$nulls":6},{"$f":"I11+I18+I25+I31+I38+I52+I60+I67+I78+I86+I93+I98+I107+I113+I120","v":98880}]
["I.1","KONSEPTUAL DAN MANAGERIAL (ESELON 4)",{"$nulls":7},"Sekretaris"]
[null,1,"Merencanakan kegiatan Sekretaris Lurah sesuai program kerja Sekretaris Lurah dan ketentuan yang berlaku untuk pedoman pelaksanaan tugas.",null,"Program Kerja",1,"dokumen",null,420,"Lurah","  "]
[null,null,"1)","Mempelajari pedoman pelaksanaan tugas.",null,1,null,60,{"$f":"F128*H128","v":60}]
[null,null,"2)","Menelaah Program Keerja Sekretaris Lurah",null,1,null,120,{"$f":"F129*H129","v":120},null,"  "]
[null,null,"3)","Menyusun konsep rencana kegiatan Sekretaris Lurah",null,1,null,120,120,null,"  "]
[null,null,"4)","Mengkonsultasikan konsep rencana kegiatan dengan pimpinan untuk mendapatkan pengarahan;",null,1,null,60,60,null,"  "]
[null,null,"5)","Menetapkan rencana kegiatan Sekretaris Lurah",null,1,null,60,60]
[]
[null,2,"Membagi tugas kepada bawahan di lingkungan Sekretaris Lurah sesuai dengan beban kerja dan tanggung jawab masing-masing untuk kelancaran pelaksanaan tugas.",null,"Distribusi Tugas",12,"dokumen",null,2400]
[null,null,"1)","Menjabarkan rencana kegiatan menjadi tugas-tugas yang harus dilaksanakan bawahan;",null,1,null,120,120,null,"  "]
[null,null,"2)","Memaparkan rencana kegiatan Sekretaris Lurah",null,1,null,120,120,null,"  "]
[null,null,"3)","Menghimpun saran dan masukan dari bawahan;",null,12,null,60,720,null,"  "]
[null,null,"4)","Memberikan petunjuk pelaksanaan tugas kepada bawahan;",null,12,null,60,720,null,"  "]
[null,null,"5)","Menentukan target waktu penyelesaian.",null,12,null,60,720]
[]
[null,3,"Memberi petunjuk, membimbing dan mengkoordinasikan pelaksanaan tugas bawahan di lingkungan Sekretaris Lurah setiap saat sesuai dengan tugas dan tanggung jawabnya agar pekerjaan berjalan tertib dan lancar.",null,"Kegiatan Bimbingan ",12,"kali",null,2160]
[null,null,"1)","Menjelaskan tugas yang akan dilaksanakan bawahan;",null,12,null,30,360,null,"  "]
[null,null,"2)","Mengidentifikasi kesulitan yang dialami bawahan;",null,12,null,30,360,null,"  "]
[null,null,"3)","Menganalisis permasalahan bersama pimpinan untuk menentukan solusi terbaik;",null,12,null,60,720,null,"  "]
[null,null,"4)","Memberikan arahan kepada bawahan terkait permasalahan yang dialami.",null,12,null,60,720,null,"  "]
[]
[null,4,"Memeriksa hasil kerja bawahan di lingkungan Sekretaris Lurah sesuai dengan prosedur dan peraturan yang berlaku agar terhindar dari kesalahan.",null,"Kegiatan Pemeriksaan",12,"kali",null,2220]
[null,null,"1)","Menelaah hasil kerja yang dilakukan bawahan;",null,12,null,60,720]
[null,null,"2)","Menentukan standar kualitas dan/atau kuantitas hasil kerja;",null,1,null,60,60,null,"  "]
[null,null,"3)","Mengidentifikasi kesalahan dalam hasil kerja sesuai dengan prosedur yang telah ditentukan;",null,12,null,30,360,null,"  "]
[null,null,"4)","Membuat koreksi pada hasil kerja berupa catatan tertulis;",null,12,null,30,360,null,"  "]
[null,null,"5)","Memberikan arahan terkait koreksi hasil kerja bawahan.",null,12,null,60,720,null,"  "]
[]
[null,5,"Mengkoordinasikan perencanaan kegiatan-kegiatan masing-masing Seksi",null,"Kegiatan Sinkronisasi tugas",12,"kali",null,{"$f":"SUM(I155:I159)","v":5250},null,"  "]
[null,null,"1)","Mempelajari pedoman pelaksaaan tugas.",null,1,null,30,30,null,"  "]
[null,null,"2)","Mengoordinasi perencanaan kegiatan masing masing seksi",null,12,null,180,2160,null,"  "]
[null,null,"3)","Menyusun perencanaan masing masing seksi",null,12,null,180,2160]
[null,null,"4)","Melaporkan rencana kegiatan masing masing seksi kepada atasan",null,12,null,60,720]
[null,null,"5)","Mengoordinasi pembentukan Tim Pelaksana kegiatan",null,1,null,180,180]
[]
[null,6,"Mengkoordinasikan perencanaan, pelaksanaan dan pemantauan hasil musyawarah perencanaan pembangunan (musrenbang) kelurahan.",null,"Kegiatan sinkronisasi tugas",{"$f":"SUM(F163:F169)","v":12},"kegiatan",null,{"$f":"SUM(I162:I169)","v":1590},null,"  "]
[null,null,"1)","Mempelajari pedoman pelaksaaan tugas.",null,1,null,30,30,null,"  "]
[null,null,"2)","Merencanakan kegiatan Musrenbangkel",null,1,null,180,180,null,"  "]
[null,null,"3)","Menyiapkan bahan/data untuk perencanaan musrenbangkel",null,1,null,180,180]
[null,null,"4)","Melaksanakan sosialisasi pelaksanaan  Musrenbang Kelurahan",null,1,null,240,240]
[null,null,"5)","Mengkoordinasi Pelaksanaan Musrenbang Kelurahan",null,6,null,90,540]
[null,null,"6)","Mengkoordinasi pemantauan hasil musrenbangkel",null,1,null,120,120,null,"  "]
[null,null,"7)","Menyusun laporan hasil musrenbangkel",null,1,null,240,240]
[null,null,"8) ","Melaporkan hasil kegiatan musrenbangkel kepada atasan",null,1,null,60,60]
[]
[null,7,"Mengkoordinasikan monitoring dan evaluasi kegiatan masing-masing Seksi",null,"Kegiatan evaluasi",12,"kali",null,{"$f":"SUM(I172:I176)","v":5430},null,"  "]
[null,null,"1)","Mempelajari pedoman pelaksaaan tugas.",null,1,null,30,30,null,"  "]
[null,null,"2)","Merencanakan kegiatan monitoring dan evaluasi kegiatan masing masing seksi",null,12,null,90,1080,null,"  "]
[null,null,"3)","Melaksanakan monitoring dan evaluasi",null,12,null,180,2160,null,"  "]
[null,null,"4)","Menyusun laporan kegiatan  monitoring dan evaluasi",null,12,null,120,1440]
[null,null,"5)","Melaporkan hasil monitoring dan evaluasi kepada atasan",null,12,null,60,720]
[]
[null,8,"Mengkoordinasikan penyusunan laporan-laporan yang dibutuhkan",null,"Laporan kegiatan",12,"kali",null,{"$f":"SUM(I179:I182)","v":4350},null,"  "]
[null,null,"1)","Mempelajari pedoman pelaksaaan tugas.",null,1,null,30,30,null,"  "]
[null,null,"2)","Mengkoordinir penyusunan Laporan laporan",null,12,null,120,1440,null,"  "]
[null,null,"3)","Menyusun laporan kegiatan",null,12,null,180,2160,null,"  "]
[null,null,"4)","Melaporkan hasil kegiatan kepada atasan",null,12,null,60,720]
[]
[null,9,"Menyusun rencana anggaran dan melaksanakan pengelolaan administrasi keuangan.",null,"Kegiatan administrasi keuangan",{"$f":"SUM(F186:F194)","v":78},"kegiatan",null,{"$f":"SUM(I185:I194)","v":11700},null,"  "]
[null,null,"1)","Mempelajari pedoman pelaksaaan tugas.",null,1,null,60,60,null,"  "]
[null,null,"2)","Memberi petunjuk pembuatan rencana anggaran dan pengelolaan administrasi keuangan",null,2,null,120,240,null,"  "]
[null,null,"3)","Mengkoordinasi Penyusunan RKA-SKPD",null,2,null,720,1440,null,"  "]
[null,null,"4)","Mengkoordinasi Penyusunan  DPA-SKPD dan DPPA - SKPD",null,2,null,120,240]
[null,null,"5)","Mengkoordinasikan pembuatan Surat Permintaan Pembayaran (SPP) Uang Persediaan (UP), Ganti Uang (GU), Langsung (LS) baik Belanja Langsung maupun Belanja Tidak Langsung.",null,12,null,150,1800]
[null,null,"6)","Memverifikasi (SPP) Uang Persediaan (UP), Ganti Uang (GU), Langsung (LS) baik Belanja Langsung maupun Belanja Tidak Langsung dan bukti-bukti pertanggungjawaban keuangan.",null,12,null,120,1440]
[null,null,"7)","Mengkoordinir penyusunan laporan SPJ Administrasi dan SPJ Fungsional sebagai input penyusunan laporan realisasi APBD.",null,12,null,180,2160]
[null,null,"8)","Mengkoordinir penyusunan laporan keuangan dan akutansi (jurnal umum, jurnal pembalik, buku besar, neraca, neraca saldo dan buku kas umum)",null,12,null,180,2160]
[null,null,"9)","Memonitor pelaksanaan pengelolaan administrasi keuangan",null,12,null,60,720]
[null,null,"10)","Melaporkan hasil monitoring pengelolaan administrasi keuangan kepada atasan",null,12,null,120,1440]
[]
[null,10,"Mengkoordinasikan pengelolaan surat menyurat dan kearsipan",null,"Distribusi surat",1000,"Kali",null,{"$f":"SUM(I197:I204)","v":21290},null,"  "]
[null,null,"1)","Mempelajari pedoman pelaksaaan tugas.",null,1,null,30,{"$f":"F197*H197","v":30},null,"  "]
[null,null,"2)","Merencanakan kegiatan pengelolaan surat menyurat dan kearsipan",null,2,null,60,120,null,"  "]
[null,null,"3)","Memberikan petunjuk pelaksanaan tugas",null,12,null,30,360,null,"  "]
[null,null,"4)","Melaksanakan pengelolaan surat masuk ",null,400,null,20,8000]
[null,null,"5)","Meneliti surat / naskah dinas  keluar ",null,600,null,20,12000]
[null,null,"6)","Memberi petunjuk pengelolaan kearsipan",null,2,null,90,180]
[null,null,"7)","Menyusun laporan pengelolaan surat menyurat dan kearsipan",null,2,null,240,480]
[null,null,"8)","Melaporkan hasil pengelolaan surat menyurat dan kearsipan kepada atasan",null,2,null,60,120]
[]
[null,11,"Mengkoordinasikan pengelolaan dokumentasi produk hukum dan kegiatan",null,"Kegiatan pengelolaan",12,"kali",null,{"$f":"SUM(I207:I211)","v":1140},null,"  "]
[null,null,"1)","Mempelajari pedoman pelaksaaan tugas.","dokumentasi",1,null,60,60,null,"  "]
[null,null,"2)","Mengkoordinasi pengelolaan dokumentasi dan informasi hukum ",null,2,null,60,120,null,"  "]
[null,null,"3)","Menyiapkan bahan hukum yang akan digunakan ",null,12,null,30,360,null,"  "]
[null,null,"4)","Menyusun laporan kegiatan pengelolaan dokumentasi dan informasi hukum",null,4,null,90,360]
[null,null,"5)","Melaporkan kegiatan pengelolaan dokumentasi dan informasi hukum kepada atasan",null,4,null,60,240]
[]
[null,12,"Menyusun rencana kebutuhan dan melaksanakan pengelolaan barang dan perlengkapan dan rumah tangga.",null,"Kegiatan pengelolaan barang",{"$f":"SUM(F215:F223)","v":59},"kegiatan",null,{"$f":"SUM(I214:I223)","v":3930},null,"  "]
[null,null,"1)","Mempelajari pedoman pelaksaaan tugas.",null,1,null,30,30,null,"  "]
[null,null,"2)","Menyusun perencanaan kebutuhan barang inventaris ",null,1,null,120,120]
[null,null,"3)","Mengarahkan pengadaan barang barang inventaris",null,12,null,60,720]
[null,null,"4)","Memonitor pengadaan barang barang inventaris",null,12,null,60,720]
[null,null,"5)","Memonitor penerimaan barang, dan pencatatan dalam buku inventaris barang dan Kartu Inventaris Barang",null,12,null,60,720,null,"  "]
[null,null,"6)","Memonitor pendistribusian barang persediaan kepada unit-unit yang membutuhkan ",null,12,null,60,{"$f":"F219*H219","v":720},null,"  "]
[null,null,"7)","Memverifikasi penyusunan Rekapitulasi Daftar Barang Daerah ",null,1,null,120,{"$f":"F220*H220","v":120}]
[null,null,"8)","Memverifikasi usulan penghapusan barang daerah",null,1,null,60,60]
[null,null,"9)","Menyusun laporan pengelolaan barang inventaris ",null,4,null,120,480]
[null,null,"10)","Melaporkan pengelolaan barang inventaris kepada atasan",null,4,null,60,240]
[]
[null,13,"Mengkoordinasikan pengelolaan administrasi kepegawaian dan pengembangan sumber daya manusia",null,"Kegiatan pengelolaan kepegawaian",{"$f":"SUM(F227:F239)","v":340},"kegiatan",null,{"$f":"SUM(I226:I239)","v":6805}]
[null,null,"1)","Mempelajari pedoman pelaksaaan tugas.",null,1,null,30,30]
[null,null,"2)","Merencanakan kegiatan pengelolaan administrasi kepegawaian dan pengembangan sumber daya manusia",null,12,null,30,360]
[null,null,"3)","Mengkoordinasikan pelaksanaan apel dan  absensi (daftar hadir) PNS",null,12,null,60,720]
[null,null,"4)","Memonitor pelaksanaan apel PNS",null,268,null,10,2680]
[null,null,"5)","Menyusun laporan kehadiran (absensi) PNS",null,12,null,60,720]
[null,null,"6)","Melaporkan pelaksanaan apel kepada atasan",null,12,null,60,720]
[null,null,"7)","Memberikan petunjuk pengelolaan administrasi kepegawaian",null,1,null,120,120]
[null,null,"8)","Memonitor pengelolaan administrasi kepegawaian",null,12,null,60,720]
[null,null,"9)","Mengkoordinasikan pengisian buku buku penjagaan PNS",null,1,null,60,60]
[null,null,"10)","Memverifikasi kelengkapan berkas dan  Daftar Nominatif Kenaikan Pangkat (KP) dan Kenaikan Gaji Berkala (KGB) PNS",null,5,null,90,450]
[null,null,"11)","Menverifikasi kelengkapan berkas dan Daftar Nominatif PNS yang  diusulkan : untuk menerima penghargaan dan tanda jasa; mengikuti Diklat Penjenjangan dan Diklat Teknis;  dan Ujian Dinas PNS",null,1,null,60,60]
[null,null,"12)","Memverifikasi kelengkapan berkas dan  Daftar Nominatif PNS yang diusulkan untuk mendapatkan izin belajar, izin penggunaan gelar dan surat keterangan memiliki ijazah.",null,1,null,60,60]
[null,null,"13)","Mengkoordinir pelaksanaan Cuti PNS",null,2,null,30,60]
[null,null,"14)","Mengkoordinir pembuatan Daftar Penilaian Pelaksanaan Pekerjaan (DP3)",null,1,null,45,45]
[]
[null,14,"Mengkoordinasikan monitoring, evaluasi dan pelaporan penyelenggaraan tugas bidang kesekretariatan",null,"Kegiatan evaluasi tugas",12,"Frekuensi",null,{"$f":"SUM(I242:I247)","v":7590}]
[null,null,"1)","Mempelajari pedoman pelaksaaan tugas.","kesekretariatan",1,null,30,30]
[null,null,"2)","Merencanakan kegiatan monitoring,  evaluasi dan pelaporan ",null,12,null,150,1800]
[null,null,"3)","Melaksanakan monitoring ",null,12,null,120,1440]
[null,null,"4)","Melaksanakan evaluasi",null,12,null,120,1440]
[null,null,"5)","Menyusun laporan penyelenggaraan tugas",null,12,null,180,2160]
[null,null,"6)","Menyampaikan laporan penyelenggaraan tugas bidang kesekretariatan kepada atasan",null,12,null,60,720]
[]
[null,15,"Mengevaluasi pelaksanaan tugas di lingkungan Sekretaris Lurah dengan cara mengidentifikasi hambatan yang ada dalam rangka perbaikan kinerja di masa mendatang.",null,"Kegiatan evaluasi",12,"kali",null,{"$f":"SUM(I250:I253)","v":2160},null,"  "]
[null,null,"1)","Menentukan target kerja sesuai dengan rencana kegiatan;",null,12,null,30,360,null,"  "]
[null,null,"2)","Mempelajari laporan pelaksanaan kegiatan bawahan;",null,12,null,60,720,null,"  "]
[null,null,"3)","Mendiskusikan kemajuan pelaksanaan kegiatan dengan bawahan;",null,12,null,60,720,null,"  "]
[null,null,"4)","Memberikan langkah-langkah perbaikan dalam pelaksanaan kegiatan.",null,12,null,30,360]
[]
[null,16,"Menyusun laporan pelaksanaan kegiatan di lingkungan Sekretaris Lurah sesuai prosedur dan peraturan yang berlaku untuk pertanggungjawaban kinerja dan rencana yang akan datang.",null,"Laporan Pelaksa naan Kegiatan",12,"Kali",null,{"$f":"SUM(I256:I260)","v":3600}]
[null,null,"1)","Menganalisis laporan yang diterima dari bawahan;",null,12,null,60,720,null,"  "]
[null,null,"2)","Membahas bahan laporan;",null,12,null,60,720,null,"  "]
[null,null,"3)","Membuat konsep laporan hasil pelaksanaan tugas;",null,12,null,30,360,null,"  "]
[null,null,"4)","Mengkonsultasikan konsep laporan kepada atasan;",null,12,null,30,360,null,"  "]
[null,null,"5)","Memfinalisasi laporan pelaksanaan tugas.",null,12,null,120,1440]
[]
[null,17,"Melaksanakan tugas kedinasan lain yang diperintahkan oleh pimpinan baik lisan maupun tertulis.",null,"Kegiatan tugas ",36,"kali",null,{"$f":"SUM(I263:I265)","v":4350}]
[null,null,"1)","Mempelajari tugas;","kedinasan lain",1,null,30,30,null,"  "]
[null,null,"2)","Menjalankan tugas;",null,36,null,90,3240,null,"  "]
[null,null,"3)","Melaporkan hasil pelaksanaan tugas.",null,36,null,30,1080,null,"  "]
[]
[{"$nulls":3},"J U M L A H",{"$nulls":4},{"$f":"I127+I134+I141+I147+I154+I161+I171+I178+I184+I196+I206+I225+I241+I249+I255+I262","v":82455}]
[]
["I.2","TEKNIK TINGGI"]
[null,1,"Merencanakan kegiatan yang menjadi tugasnya sesuai program kerja Sekretaris Lurah dan ketentuan yang berlaku untuk pedoman pelaksanaan tugas.",null,"Program Kerja",1,"dokumen",null,420,null,"  "]
[null,null,"1)","Mempelajari pedoman pelaksanaan tugas.",null,1,null,60,{"$f":"F271*H271","v":60},null,"Tidak"]
[null,null,"2)","Mempelajari Program Kerja Sekretaris Lurah",null,1,null,120,{"$f":"F272*H272","v":120},null,"memenuhi"]
[null,null,"3)","Menyusun konsep rencana kegiatan Sekretaris Lurah",null,1,null,120,120,null,"beban kerja "]
[null,null,"4)","Mengkonsultasikan konsep rencana kegiatan dengan pimpinan untuk mendapatkan pengarahan;",null,1,null,60,60,null,"untuk 1 (satu)"]
[null,null,"5)","Menetapkan rencana kegiatan Sekretaris Lurah",null,1,null,60,60,null,"jabatan, maka"]
[{"$nulls":10},"digabung "]
[null,2,"Melaksanakan tugas Sekretaris Lurah",null,"Kegiatan menghimpun saran dan masukan",12,"Kali",null,1470,null,"dengan tugas teknik menengah"]
[null,null,"1)","Mempelajari pedoman pelaksanaan tugas.",null,1,null,30,30]
[null,null,"2)","Menghimpun saran dan masukan",null,12,null,60,720]
[null,null,"3)","Menentukan target waktu penyelesaian;",null,12,null,60,720]
[]
[null,3,"Memfasilitasi agar pekerjaan berjalan tertib dan lancar",null,"Kegiatan konsultasi permasalahan",12,"Kali",null,1470,null,"  "]
[null,null,"1)","Mempelajari pedoman pelaksanaan tugas.",null,1,null,30,30,null,"  "]
[null,null,"2)","Menghimpun kesulitan yang di alami",null,12,null,30,360,null,"  "]
[null,null,"3)","Mengkoordinasikan pelaksanaan tugas;",null,12,null,60,720,null,"  "]
[null,null,"4)","Mengkonsultasikan permasalahan kepada pimpinan;",null,12,null,30,360]
[]
[null,4,"Memfasilitasi pencapaian target pelaksanaan tugas",null,"Kegiatan koordinasi pelaksanaan tugas",12,"Kali",null,1110,null,"  "]
[null,null,"1)","Mempelajari pedoman pelaksanaan tugas.",null,1,null,30,30,null,"  "]
[null,null,"2)","Menghimpun kesulitan yang dialami",null,12,null,30,360,null,"  "]
[null,null,"3)","Mengkoordinasikan pelaksanaan tugas;",null,12,null,30,360,null,"  "]
[null,null,"4)","Mengkonsultasikan permasalahan kepada pimpinan;",null,12,null,30,360]
[]
[null,5,"Menghimpun dan mengolah perencanaan kegiatan masing masing Seksi",null,"Kegiatan perencanaan",13,"Kali",null,{"$f":"SUM(I295:I297)","v":2940},null,"  "]
[null,null,"1)","Mempelajari pedoman pelaksaaan tugas.",null,1,null,60,60,null,"  "]
[null,null,"2)","Menghimpun bahan/data rencana kegiatan masing masing seksi",null,12,null,180,2160,null,"  "]
[null,null,"3)","Mengolah perencanaan dan pembentukan tim pelaksana kegiatan",null,1,null,720,720]
[]
[null,6,"Merencanakan dan melaksanakan musyawarah perencanaan pembangunan Kelurahan",null,"Usulan kegiatan pembangunan",1,"Kegiatan",null,{"$f":"SUM(I300:I306)","v":900},null,"  "]
[null,null,"1)","Mempelajari pedoman pelaksaaan tugas.",null,1,null,30,30,null,"  "]
[null,null,"2)","Melaksanakan Pembentukan Tim Fasilitasi Musrenbang Kel. Dan Tim Penyelenggara Musrenbang Kel.",null,1,null,120,120,null,"  "]
[null,null,"3)","Menghimpun bahan/data untuk perencanaan musrenbangkel",null,1,null,120,120]
[null,null,"4)","Melaksanakan sosialisasi musrenbang Kelurahan",null,1,null,180,180]
[null,null,"5)","Melaksanakan musrenbang kelurahan",null,1,null,300,300]
[null,null,"6)","Melaksanakan pemantauan hasil musrenbangkel",null,1,null,90,90]
[null,null,"7)","Menghimpun bahan laporan hasil musrenbangkel",null,1,null,60,60]
[]
[null,7,"Melaksanakan monitoring kegiatan masing masing seksi",null,"Kegiatan monitoring",12,"Kali",null,{"$f":"SUM(I309:I311)","v":1470},null,"  "]
[null,null,"1)","Mempelajari pedoman pelaksaaan tugas.",null,1,null,30,30,null,"  "]
[null,null,"2)","Mengumpulkan data / bahan kegiatan  masing masing seksi ",null,12,null,60,720,null,"  "]
[null,null,"3)","Menghimpun bahan laporan  monitoring ",null,12,null,60,720]
[]
[null,8,"Memfasiitasi penyusunan laporan laporan",null,"Laporan kegiatan",12,"Kali",null,{"$f":"SUM(I314:I315)","v":1110},null,"  "]
[null,null,"1)","Mempelajari pedoman pelaksaaan tugas.",null,1,null,30,30,null,"  "]
[null,null,"2)","Menghimpun bahan bahan laporan",null,12,null,90,1080,null,"  "]
[]
[null,9,"Melaksanakan pengelolaan administrasi keuangan",null,"Kegiatan pengelolaan keuangan",{"$f":"SUM(F319:F324)","v":52},"kegiatan",null,{"$f":"SUM(I318:I324)","v":9270},null,"  "]
[null,null,"1)","Mempelajari pedoman pelaksaaan tugas.",null,1,null,30,30,null,"  "]
[null,null,"2)","Megolah dan menyusun RKA-SKPD",null,2,null,720,1440,null,"  "]
[null,null,"3)","Mengolah dan menyusun DPA-SKPD dan DPPA-SKPD",null,2,null,120,240]
[null,null,"4)","Melaksanakan pembuatan Surat Permintaan Pembayaran (SPP) Uang Persediaan (UP), Ganti Uang (GU), Langsung (LS) baik Belanja Langsung maupun Belanja Tidak Langsung.",null,12,null,150,1800]
[null,null,"5)","Menyiapkan berkas yang berkaitan dengan SPP, UP, GU, LS dan bukti bukti pertanggung jawaban keuangan",null,12,null,120,1440]
[null,null,"6)","Menyusun laporan SPJ Administrasi dan SPJ Fungsional sebagai input penyusunan laporan realisasi APBD.",null,12,null,180,2160]
[null,null,"7)","Menyusun laporan keuangan dan akutansi (jurnal umum, jurnal pembalik, buku besar, neraca, neraca saldo dan buku kas umum)",null,12,null,180,2160]
[]
[null,10,"Mengoordinasikan pengelolaan surat menyurat dan kearsipan",null,"Kegiatan pengelolaan surat",{"$f":"SUM(F328:F329)","v":612},"Kali",null,{"$f":"SUM(I327:I329)","v":7110},null,"  "]
[null,null,"1)","Mempelajari pedoman pelaksaaan tugas.",null,1,null,30,30,null,"  "]
[null,null,"2)","Menyiapkan berkas surat/naskah dinas keluar ",null,600,null,10,6000]
[null,null,"3)","Menghimpun bahan bahan laporan pengelolaan surat menyurat dan kearsipan",null,12,null,90,1080]
[]
[null,11,"Melaksanakan pengelolaan dokumentasi produk hukum",null,"Kegiatan pengelolaan DIH",12,"Kali",null,{"$f":"SUM(I332:I335)","v":2550},null,"  "]
[null,null,"1)","Mempelajari pedoman pelaksaaan tugas.",null,1,null,30,30,null,"  "]
[null,null,"2)","Melaksanakan pengelolaan dokumentasi dan informasi hukum ",null,12,null,120,1440]
[null,null,"3)","Menghimpun bahan hukum yang akan digunakan ",null,12,null,30,360]
[null,null,"4)","Menyiapkan bahan laporan kegiatan pengelolaan dokumentasi dan informasi hukum",null,12,null,60,720]
[]
[null,12,"Merencanakan kebutuhan barang dan perlengkapan rumah tangga",null,"Kegiatan pengelolaan barang",{"$f":"SUM(F339:F343)","v":18},"kegiatan",null,{"$f":"SUM(I338:I343)","v":2130}]
[null,null,"1)","Mempelajari pedoman pelaksaaan tugas.",null,1,null,30,{"$f":"F338*H338","v":30}]
[null,null,"2)","Merencanakan kebutuhan barang inventaris ",null,1,null,120,120]
[null,null,"3)","Melaksanakan pengadaan barang barang inventaris",null,12,null,120,1440]
[null,null,"4)","Menyiapkan dan mengolah data daftar barang inventaris daerah",null,2,null,180,360]
[null,null,"5)","Membuat usulan penghapusan barang daerah",null,1,null,60,60]
[null,null,"6)","Menghimpun bahan laporan pengelolaan barang inventaris ",null,2,null,60,120]
[]
[null,13,"Melaksanakan pengelolaan administrasi kepegawaian dan pengembangan sumber daya manusia",null,"Kegiatan pengelolaan kepegawaian",{"$f":"SUM(F347:F355)","v":306},"Kali",null,{"$f":"SUM(I346:I355)","v":3760},null,"  "]
[null,null,"1)","Mempelajari pedoman pelaksaaan tugas.",null,1,null,60,60,null,"  "]
[null,null,"2)","Melaksanakan absensi",null,268,null,10,2680]
[null,null,"3)","Menghimpun data/bahan laporan absensi PNS",null,12,null,15,180]
[null,null,"4)","Menyiapkan bahan pengelolaan adminsitrasi kepegawaian",null,12,null,30,360]
[null,null,"5)","Melaksanakan  pembuatan dan pengisian buku-buku Penjagaan PNS",null,1,null,90,90]
[null,null,"6)","Menyiapkan kelengkapan berkas dan  Daftar Nominatif Kenaikan Pangkat (KP) dan Kenaikan Gaji Berkala (KGB) PNS",null,5,null,30,150]
[null,null,"7)","Menyiapkan kelengkapan berkas dan Daftar Nominatif PNS yang  diusulkan : untuk menerima penghargaan dan tanda jasa; mengikuti Diklat Penjenjangan dan Diklat Teknis;  dan Ujian Dinas PNS",null,1,null,30,30]
[null,null,"8)","Menyiapkan  kelengkapan berkas dan  Daftar Nominatif PNS yang diusulkan untuk mendapatkan izin belajar, izin penggunaan gelar dan surat keterangan memiliki ijazah.",null,1,null,30,30]
[null,null,"10)","Menghimpun permohonan cuti PNS",null,5,null,30,150]
[null,null,"11)","Menghimpun bahan pembuatan Daftar Penilaian Pelaksanaan Pekerjaan (DP3)",null,1,null,30,30]
[]
[null,14,"Melaksanakan pelaporan penyelenggaraan tugas kesekretariatan",null,"Kegiatan pelaporan",12,"Kali",null,{"$f":"SUM(I358:I361)","v":1470}]
[null,null,"1)","Mempelajari pedoman pelaksaaan tugas.",null,1,null,30,30]
[null,null,"2)","Mengumpulkan data / bahan untuk kegiatan monitoring,  evaluasi dan pelaporan",null,12,null,30,360]
[null,null,"3)","Menyiapkan bahan evaluasi ",null,12,null,60,720]
[null,null,"4)","Menghimpun bahan penyusunan laporan penyelenggaraan tugas",null,12,null,30,360]
[]
[null,15,"Melaksanakan identifikasi hambatan hambatan yang ada dalam pelaksanaan tugas",null,"Kegiatan identifikasi",12,"dokumen",null,1620,null,"  "]
[null,null,"1)","Mengumpulkan bahan laporan pelaksanaan tugas;",null,12,null,30,360,null,"  "]
[null,null,"2)","Menganalisis bahan penyusunan laporan;",null,12,null,60,720,null,"  "]
[null,null,"3)","Membuat laporan pelaksanaan tugas;",null,12,null,30,360,null,"  "]
[null,null,"4)","Menyampaikan laporan kepada atasan;",null,12,null,15,180]
[]
[null,16,"Menyusun laporan pelaksanaan tugas sesuai ketentuan yang berlaku untuk pertanggungjawaban kinerja dan rencana yang akan datang.",null,"Kegiatan pelaporan",12,"kali",null,930]
[null,null,"1)","Mempelajari tugas;",null,1,null,30,30,null,"  "]
[null,null,"2)","Menjalankan tugas;",null,12,null,60,720,null,"  "]
[null,null,"3)","Melaporkan hasil pelaksanaan tugas.",null,12,null,15,180,null,"  "]
[]
[null,17,"Melaksanakan tugas kedinasan lain yang diperintahkan oleh pimpinan baik lisan maupun tertulis.",null,"Kegiatan tugas kedinasan lain",36,"kali",null,{"$f":"SUM(I375:I377)","v":4350}]
[null,null,"1)","Mempelajari tugas;",null,1,null,30,{"$f":"F375*H375","v":30}]
[null,null,"2)","Menjalankan tugas;",null,36,null,90,{"$f":"F376*H376","v":3240}]
[null,null,"3)","Melaporkan hasil pelaksanaan tugas.",null,36,null,30,1080]
[]
[{"$nulls":3},"jumlah",{"$nulls":4},{"$f":"I270+I277+I282+I288+I294+I299+I308+I313+I317+I326+I331+I337+I345+I357+I363+I369+I374","v":44080}]
["I.3","TEKNIK MENENGAH"]
[null,1,"Merencanakan kegiatan yang menjadi tugasnya sesuai program kerja Sekretaris Lurah  dan ketentuan yang berlaku untuk pedoman pelaksanaan tugas.",null,"Program Kerja",1,"dokumen",null,420,"Pengadminis- trasi Umum","Tugas teknik tinggi"]
[null,null,"1)","Mempelajari pedoman pelaksanaan tugas.",null,1,null,60,{"$f":"F382*H382","v":60},null,"yang digabung"]
[null,null,"2)","Mempelajari Program Kerja Sekretaris Lurah",null,1,null,120,{"$f":"F383*H383","v":120},null,"dengan teknik"]
[null,null,"3)","Menyusun konsep rencana kegiatan Sekretaris Lurah",null,1,null,120,120,null,"menengah dan"]
[null,null,"4)","Mengkonsultasikan konsep rencana kegiatan dengan pimpinan untuk mendapatkan pengarahan;",null,1,null,60,60,null,"teknik rendah"]
[null,null,"5)","Menetapkan rencana kegiatan Sekretaris Lurah",null,1,null,60,60]
[]
[null,2,"Melaksanakan tugas Sekretaris Lurah",null,"Kegiatan",12,"Kali",null,1470,null,"  "]
[null,null,"1)","Mempelajari pedoman pelaksanaan tugas.",null,1,null,30,30,null,"  "]
[null,null,"2)","Menghimpun saran dan masukan",null,12,null,60,720,null,"  "]
[null,null,"3)","Menentukan target waktu penyelesaian;",null,12,null,60,720]
[]
[null,3,"Memfasilitasi agar pekerjaan berjalan tertib dan lancar",null,"Kegiatan",12,"Kali",null,1110,null,"  "]
[null,null,"1)","Mempelajari pedoman pelaksanaan tugas.",null,1,null,30,30,null,"  "]
[null,null,"2)","Menghimpun kesulitan yang di alami",null,12,null,30,360,null,"  "]
[null,null,"3)","Mengkoordinasikan pelaksanaan tugas;",null,12,null,30,360,null,"  "]
[null,null,"4)","Mengkonsultasikan permasalahan kepada pimpinan;",null,12,null,30,360]
[]
[null,4,"Memfasilitasi pencapaian target pelaksanaan tugas",null,"Kegiatan",12,"Kali",null,1110,null,"  "]
[null,null,"1)","Mempelajari pedoman pelaksanaan tugas.",null,1,null,30,30,null,"  "]
[null,null,"2)","Menghimpun kesulitan yang dialami",null,12,null,30,360,null,"  "]
[null,null,"3)","Mengkoordinasikan pelaksanaan tugas;",null,12,null,30,360,null,"  "]
[null,null,"4)","Mengkonsultasikan permasalahan kepada pimpinan;",null,12,null,30,360]
[]
[null,5,"Mengadministrasi perencanaan kegiatan",null,"Kegiatan perencanaan ",11,"kegiatan",null,{"$f":"SUM(I406:I409)","v":510},null,"  "]
[null,null,"1)","Mempelajari pedoman pelaksaaan tugas.",null,1,null,30,30,null,"  "]
[null,null,"2)","Mengetik bahan/data rencana kegiatan masing masing seksi",null,5,null,30,150,null,"  "]
[null,null,"3)","Mengetik laporan rencana kegiatan masing masing seksi",null,5,null,30,150]
[null,null,"4)","Mengadministrasikan pembetukan tim pelaksana kegiatan",null,1,null,180,180]
[]
[null,6,"Menyiapkan pelaksanaan musyawarah perencanaan pembangunan Kelurahan",null,"Kegiatan Musrenbangkel",1,"Kali",null,{"$f":"SUM(I412:I416)","v":360},null,"  "]
[null,null,"1)","Mempelajari pedoman pelaksaaan tugas.",null,1,null,30,30,null,"  "]
[null,null,"2)","Mengetik SK Lurah tentang Tim Fasilitasi Musrenbangkel dan Tim Penyelenggara musrenbangkel",null,1,null,30,30,null,"  "]
[null,null,"3)","Menghimpun petunjuk teknis penggalian gagasan dan musrenbang kelurahan",null,1,null,60,60]
[null,null,"4)","Mengadministrasikan pelaksanaan musrenbang kelurahan",null,1,null,60,60]
[null,null,"5)","Mengetik laporan hasil musrenbangkel",null,1,null,180,180]
[]
[null,7,"Melaksanakan monitoring kegiatan masing masing seksi",null,"Kegiatan monitoring",1,"Kegiatan",null,{"$f":"SUM(I419:I421)","v":210},null,"  "]
[null,null,"1)","Mempelajari pedoman pelaksaaan tugas.",null,1,null,30,30,null,"  "]
[null,null,"2)","Mengetik jadwal  monitoring dan evaluasi kegiatan masing masing seksi",null,1,null,30,30,null,"  "]
[null,null,"3)","Mengetik laporan hasil kegiatan monitoring dan evaluasi",null,1,null,150,150]
[]
[null,8,"Memfasiitasi penyusunan laporan laporan",null,"Pengetikan laporan",12,"Kegiatan",null,{"$f":"SUM(I424:I425)","v":2160},null,"  "]
[null,null,"1)","Mempelajari pedoman pelaksaaan tugas.",null,12,null,30,360,null,"  "]
[null,null,"2)","Mengetik laporan laporan",null,12,null,150,1800,null,"  "]
[]
[null,9,"Melaksanakan pengelolaan barang dan perlengkapan rumah tangga",null,"Kegiatan pengelolaan barang",5,"Kegiatan",null,{"$f":"SUM(I428:I433)","v":330},null,"  "]
[null,null,"1)","Mempelajari pedoman pelaksanaan tugas.",null,1,null,30,30,null,"  "]
[null,null,"2)","Merencanakan kebutuhan barang inventaris ",null,1,null,60,60,null,"  "]
[null,null,"3)","Mengadministrasikan penerimaan barang, dan pencatatan dalam buku inventaris barang dan Kartu Inventaris Barang",null,1,null,60,60,null,"  "]
[null,null,"4)","Melaksanakan pendistribusian barang persediaan kepada unit-unit yang membutuhkan ",null,1,null,30,30]
[null,null,"5)","Menyusun rekapitulasi daftar barang daerah",null,1,null,120,120]
[null,null,"6)","Mendata barang inventaris yang akan diusulkan penghapusan",null,1,null,30,30]
[]
[null,10,"Melaksanakan administrasi surat menyurat dan kearsipan",null,"Kegiatan Pengelolaan surat dan arsip",413,"kegiatan",null,{"$f":"SUM(I436:I439)","v":4840},null,"  "]
[null,null,"1)","Mempelajari pedoman pelaksaaan tugas.",null,1,null,30,30,null,"  "]
[null,null,"2)","Mengadministrasikan dan mendistribusikan surat masuk ",null,400,null,10,4000]
[null,null,"3)","Mengelola arsip",null,12,null,60,720]
[null,null,"4)","Mengetik laporan pengelolaan surat menyurat dan kearsipan",null,1,null,90,90]
[]
[null,11,"Melaksanakan pengelolaan dokumentasi produk hukum",null,"Kegiatan pengelolaan DIH",12,"kegiatan",null,{"$f":"SUM(I442:I444)","v":1230},null,"  "]
[null,null,"1)","Mempelajari pedoman pelaksaaan tugas.",null,1,null,30,30,null,"  "]
[null,null,"2)","Menghimpun dan menyiapkan bahan pengelolaan dokumentasi hukum",null,12,null,90,1080,null,"  "]
[null,null,"3)","Mengetik laporan kegiatan pengelolaan dokumentasi dan informasi hukum",null,2,null,60,{"$f":"F444*H444","v":120}]
[]
[null,12,"Melaksanakan pengelolaan barang dan perlengkapan rumah tangga",null,"Kegiatan pengelolaan barang",{"$f":"SUM(F448:F453)","v":31},"kegiatan",null,{"$f":"SUM(I447:I453)","v":1980}]
[null,null,"1)","Mempelajari pedoman pelaksaaan tugas.",null,1,null,30,30,null,"  "]
[null,null,"2)","Mengetik rencana kebutuhan barang inventaris",null,2,null,90,180,null,"  "]
[null,null,"3)","Mengadministrasikan penerimaan barang, dan pencatatan dalam buku inventaris barang dan Kartu Inventaris Barang",null,12,null,60,720]
[null,null,"4)","Melaksanakan pendistribusian barang persediaan kepada unit-unit yang membutuhkan ",null,12,null,30,360]
[null,null,"5)","Melaksanakan pendataan barang inventaris",null,2,null,240,480]
[null,null,"6)","Mendata barang inventaris yang akan diusulkan penghapusan",null,1,null,30,30]
[null,null,"7)","Mengetik laporan pengelolaan barang inventaris",null,2,null,90,180]
[]
[null,13,"Menyiapkan bahan bahan pengelolaan administrasi kepegawaian",null,"Kegiatan pengelolaan kepegawaian",{"$f":"SUM(F457:F459)","v":29},"kegiatan",null,{"$f":"SUM(I456:I459)","v":1410}]
[null,null,"1)","Mempelajari pedoman pelaksaaan tugas.",null,1,null,30,{"$f":"F456*H456","v":30}]
[null,null,"2)","Merekap absensi",null,12,null,30,{"$f":"F457*H457","v":360}]
[null,null,"3)","Mengetik laporan kehadiran",null,12,null,60,720]
[null,null,"4)","Mengadministrasikan pelaksanaan Cuti PNS",null,5,null,60,300]
[]
[null,14,"Mengadministrasikan pelaporan penyelenggaraan tugas kesekretariatan",null,"Pengetikan laporan",12,"dokumen laporan",null,{"$f":"SUM(I462:I465)","v":2190}]
[null,null,"1)","Mempelajari pedoman pelaksaaan tugas.",null,1,null,30,{"$f":"F462*H462","v":30}]
[null,null,"2)","Mengetik jadwal kegiatan monitoring, evaluasi dan pelaporan",null,12,null,30,{"$f":"F463*H463","v":360}]
[null,null,"3)","Menyiapkan bahan evaluasi ",null,12,null,60,720]
[null,null,"4)","Mengetik laporan penyelenggaraan tugas ",null,12,null,90,1080]
[]
[null,16,"Menyusun laporan pelaksanaan tugas sesuai ketentuan yang berlaku untuk pertanggungjawaban kinerja dan rencana yang akan datang.",null,"Laporan pelaksanaan tugas",12,"Dokumen laporan",null,{"$f":"SUM(I468:I471)","v":1980}]
[null,null,"1)","Mengumpulkan bahan laporan pelaksanaan tugas;",null,12,null,30,{"$f":"F468*H468","v":360}]
[null,null,"2)","Menganalisis bahan penyusunan laporan;",null,12,null,60,{"$f":"F469*H469","v":720}]
[null,null,"3)","Membuat laporan pelaksanaan tugas;",null,12,null,60,720]
[null,null,"4)","Menyampaikan laporan kepada atasan;",null,12,null,15,180]
[]
[null,17,"Melaksanakan tugas kedinasan lain yang diperintahkan oleh pimpinan baik lisan maupun tertulis.",null,"Kegiatan tugas kedinasan lain",24,"kali",null,{"$f":"SUM(I474:I476)","v":2910}]
[null,null,"1)","Mempelajari tugas;",null,1,null,30,{"$f":"F474*H474","v":30}]
[null,null,"2)","Menjalankan tugas;",null,24,null,90,{"$f":"F475*H475","v":2160}]
[null,null,"3)","Melaporkan hasil pelaksanaan tugas.",null,24,null,30,720]
[]
[{"$nulls":3},"jumlah",{"$nulls":4},{"$f":"I381+I388+I393+I399+I405+I411+I418+I423+I427+I435+I441+I446+I455+I461+I467+I473","v":24220}]
[]
["I.4","TEKNIK RENDAH"]
[null,1,"Merencanakan kegiatan yang menjadi tugasnya sesuai program kerja Sekretaris Lurah dan ketentuan yang berlaku untuk pedoman pelaksanaan tugas.",null,"Program Kerja",1,"dokumen",null,420,null,"  "]
[null,null,"1)","Mempelajari pedoman pelaksanaan tugas.",null,1,null,60,{"$f":"F482*H482","v":60},null,"Tidak "]
[null,null,"2)","Mempelajari Program Kerja Sekretaris Lurah",null,1,null,120,{"$f":"F483*H483","v":120},null,"memenuhi"]
[null,null,"3)","Menyusun konsep rencana kegiatan Sekretaris Lurah",null,1,null,120,120,null,"beban kerja"]
[null,null,"4)","Mengkonsultasikan konsep rencana kegiatan dengan pimpinan untuk mendapatkan pengarahan;",null,1,null,60,60,null,"untuk 1 (satu)"]
[null,null,"5)","Menetapkan rencana kegiatan Sekretaris Lurah",null,1,null,60,60,null,"jabatan, maka "]
[{"$nulls":10},"digabung"]
[null,2,"Melaksanakan tugas Sekretaris Lurah",null,"Kegiatan menghimpun saran dan masukan",12,"Kali",null,1470,null,"dengan tugas teknik tinggi dan tugas teknik menengah"]
[null,null,"1)","Mempelajari pedoman pelaksanaan tugas.",null,1,null,30,30]
[null,null,"2)","Menyampaikan saran dan masukan",null,12,null,60,720]
[null,null,"3)","Menentukan target waktu penyelesaian;",null,12,null,60,720]
[]
[null,3,"Memfasilitasi agar pekerjaan berjalan tertib dan lancar",null,"Kegiatan konsultasi permasalahan",12,"Kali",null,1470,null,"  "]
[null,null,"1)","Mempelajari pedoman pelaksanaan tugas.",null,1,null,30,30,null,"  "]
[null,null,"2)","Menyampaikan kesulitan yang di alami",null,12,null,30,360,null,"  "]
[null,null,"3)","Mengkoordinasikan pelaksanaan tugas;",null,12,null,60,720,null,"  "]
[null,null,"4)","Mengkonsultasikan permasalahan kepada pimpinan;",null,12,null,30,360]
[]
[null,4,"Memfasilitasi pencapaian target pelaksanaan tugas",null,"Kegiatan koordinasi pelaksnaan tugas",12,"Kali",null,1470,null,"  "]
[null,null,"1)","Mempelajari pedoman pelaksanaan tugas.",null,1,null,30,30,null,"  "]
[null,null,"2)","Menyampaikan kesulitan yang dialami",null,12,null,30,360,null,"  "]
[null,null,"3)","Mengkoordinasikan pelaksanaan tugas;",null,12,null,60,720,null,"  "]
[null,null,"4)","Mengkonsultasikan permasalahan kepada pimpinan;",null,12,null,30,360]
[]
[null,5,"Mengadministrasi perencanaan kegiatan",null,"Kegiatan Musrenbangkel",1,"Kali",null,30,null,"  "]
[null,null,"1)","Mengirimkan SK Lurah tentang pembentukan Tim pelaksana kegiatan kepada yang bersangkutan",null,1,null,30,30,null,"  "]
[]
[null,6,"Menyiapkan pelaksanaan musyawarah perencanaan pembangunan Kelurahan",null,"Kegiatan musrenbangkel",2,"Kegiatan",null,{"$f":"SUM(I509:I511)","v":240},null,"  "]
[null,null,"1)","Mengirimkan undangan musrenbangkel",null,1,null,120,120,null,"  "]
[null,null,"2)","Menyiapkan tata tempat musrenbang kelurahan",null,1,null,60,60,null,"  "]
[null,null,"3)","Mengirim laporan kegiatan musrenbangkel kepada instansi terkait",null,1,null,60,60,null,"  "]
[]
[null,8,"Memfasiitasi penyusunan laporan laporan",null,"Terkirimnya laporan",12,"Kali",null,360,null,"  "]
[null,null,"1)","Mengirim laporan laporan kepada instansi terkait",null,12,null,30,360,null,"  "]
[]
[null,9,"Melaksanakan pengelolaan administrasi keuangan",null,"Terkirimnya laporan keuangan",12,"kali",null,360,null,"  "]
[null,null,"1)","Mengirimkan laporan SPJ keuangan kepada instansi terkait",null,12,null,30,360,null,"  "]
[]
[null,10,"Melaksanakan administrasi surat menyurat dan kearsipan",null,"Terkirimnya surat surat dinas",36,"kali",null,720]
[null,null,"1)","Mengirimkan surat kepada instansi terkait",null,24,null,30,{"$f":"F520*H520","v":720}]
[]
[null,11,"Melaksanakan pengelolaan dokumentasi produk hukum",null,"Terkirimnya laporan dokumentasi dan informasi hukum",2,"kali",null,60]
[null,null,"1)","Mengirimkan laporan pengelolaan dokumentasi dan informasi hukum kepada instansi terkait",null,2,null,30,{"$f":"F523*H523","v":60}]
[]
[null,12,"Melaksanakan pengelolaan barang dan perlengkapan rumah tangga",null,"Kegiatan pengelolaan barang",4,"kegiatan",null,{"$f":"SUM(I526:I529)","v":300}]
[null,null,"1)","Mengirim rencana kebutuhan barang inventaris kepada instansi terkait",null,1,null,30,{"$f":"F526*H526","v":30}]
[null,null,"2)","Memasang stiker inventarisasi pada barang barang inventaris",null,1,null,180,{"$f":"F527*H527","v":180}]
[null,null,"3)","Mengirimkan surat usulan penghapusan barang daerah kepada instansi terkait",null,1,null,30,30]
[null,null,"4)","Mengirim laporan pengelolaan barang inventaris kepada instansi terkait",null,2,null,30,60]
[]
[null,13,"Memfasilitasi pengelolaan administrasi kepegawaian",null,"Terkirimnya berkas kepegawaian",16,"kali",null,{"$f":"SUM(I532:I535)","v":480}]
[null,null,"1)","Mengirimkan laporan  absensi ke instansi terkait",null,12,null,30,{"$f":"F532*H532","v":360}]
[null,null,"2)","Mengirimkan berkas dan  Daftar Nominatif Kenaikan Pangkat (KP) dan Kenaikan Gaji Berkala (KGB) PNS kepada instansi terkait",null,2,null,30,{"$f":"F533*H533","v":60}]
[null,null,"3)","Mengirim berkas dan Daftar Nominatif PNS yang  diusulkan : untuk menerima penghargaan dan tanda jasa; mengikuti Diklat Penjenjangan dan Diklat Teknis;  dan Ujian Dinas PNS kepada instansi terkait",null,1,null,30,30]
[null,null,"4)","Mengirim berkas dan  Daftar Nominatif PNS yang diusulkan untuk mendapatkan izin belajar, izin penggunaan gelar dan surat keterangan memiliki ijazah kepada instansi erkait",null,1,null,30,30]
[]
[null,16,"Menyusun laporan pelaksanaan tugas sesuai ketentuan yang berlaku untuk pertanggungjawaban kinerja dan rencana yang akan datang.",null,"Laporan pelaksanaan tugas",12,"kali",null,{"$f":"SUM(I538:I540)","v":1260}]
[null,null,"1)","Mengumpulkan bahan laporan pelaksanaan tugas;",null,12,null,30,{"$f":"F538*H538","v":360}]
[null,null,"2)","Membuat laporan pelaksanaan tugas;",null,12,null,60,{"$f":"F539*H539","v":720}]
[null,null,"3)","Menyampaikan laporan kepada atasan;",null,12,null,15,180]
[]
[null,17,"Melaksanakan tugas kedinasan lain yang diperintahkan oleh pimpinan baik lisan maupun tertulis.",null,"Kegiatan tugas kedinasan lain",24,"kali",null,{"$f":"SUM(I543:I545)","v":2910}]
[null,null,"1)","Mempelajari tugas;",null,1,null,30,{"$f":"F543*H543","v":30}]
[null,null,"2)","Menjalankan tugas;",null,24,null,90,{"$f":"F544*H544","v":2160},null,"  "]
[null,null,"3)","Melaporkan hasil pelaksanaan tugas.",null,24,null,30,720]
[]
[null,"jumlah",{"$nulls":6},{"$f":"I481+I488+I493+I499+I505+I508+I513+I516+I519+I522+I525+I531+I537+I542","v":11550}]
["I.1","KONSEPTUAL DAN MANAGERIAL (ESELON 4)",{"$nulls":7},"Kepala Seksi"]
[null,1,"Merencanakan kegiatan Seksi Tata Pemerintahan sesuai program kerja Seksi Tata Pemerintahan dan ketentuan yang berlaku untuk pedoman pelaksanaan tugas.",null,"Program Kerja",1,"dokumen",null,{"$f":"SUM(I550:I554)","v":420},"Tata Pemerintahan","  "]
[null,null,"1)","Mempelajari pedoman pelaksanaan tugas.",null,1,null,60,{"$f":"F550*H550","v":60}]
[null,null,"2)","Menelaah Program Kerja Seksi Tata Pemerintahan",null,1,null,120,{"$f":"F551*H551","v":120},null,"  "]
[null,null,"3)","Menyusun konsep rencana kegiatan Seksi Tata Pemerintahan",null,1,null,120,120,null,"  "]
[null,null,"4)","Mengkonsultasikan konsep rencana kegiatan dengan pimpinan untuk mendapatkan pengarahan;",null,1,null,60,60,null,"  "]
[null,null,"5)","Menetapkan rencana kegiatan Seksi Tata Pemerintahan",null,1,null,60,60]
[]
[null,2,"Membagi tugas kepada bawahan di lingkungan Seksi Tata Pemerintahan sesuai dengan beban kerja dan tanggung jawab masing-masing untuk kelancaran pelaksanaan tugas.",null,"Distribusi Tugas",12,"dokumen",null,2400]
[null,null,"1)","Menjabarkan rencana kegiatan menjadi tugas-tugas yang harus dilaksanakan bawahan;",null,1,null,120,120,null,"  "]
[null,null,"2)","Memaparkan rencana kegiatan Seksi Tata Pemerintahan",null,1,null,120,120,null,"  "]
[null,null,"3)","Menghimpun saran dan masukan dari bawahan;",null,12,null,60,720,null,"  "]
[null,null,"4)","Memberikan petunjuk pelaksanaan tugas kepada bawahan;",null,12,null,60,720,null,"  "]
[null,null,"5)","Menentukan target waktu penyelesaian.",null,12,null,60,720]
[]
[null,3,"Memberi petunjuk, membimbing dan mengkoordinasikan pelaksanaan tugas bawahan di lingkungan Seksi Tata Pemerintahan setiap saat sesuai dengan tugas dan tanggung jawabnya agar pekerjaan berjalan tertib dan lancar.",null,"Kegiatan Bimbingan dan Koordinasi",12,"kali",null,1800]
[null,null,"1)","Menjelaskan tugas yang akan dilaksanakan bawahan;",null,12,null,30,360,null,"  "]
[null,null,"2)","Mengidentifikasi kesulitan yang dialami bawahan;",null,12,null,30,360,null,"  "]
[null,null,"3)","Menganalisis permasalahan bersama pimpinan untuk menentukan solusi terbaik;",null,12,null,60,720,null,"  "]
[null,null,"4)","Memberikan arahan kepada bawahan terkait permasalahan yang dialami.",null,12,null,30,360,null,"  "]
[]
[null,4,"Memeriksa hasil kerja bawahan di lingkungan Seksi Tata Pemerintahan sesuai dengan prosedur dan peraturan yang berlaku agar terhindar dari kesalahan.",null,"Kegiatan Pemeriksaan",12,"kali",null,1860]
[null,null,"1)","Menelaah hasil kerja yang dilakukan bawahan;",null,12,null,30,360]
[null,null,"2)","Menentukan standar kualitas dan/atau kuantitas hasil kerja;",null,1,null,60,60,null,"  "]
[null,null,"3)","Mengidentifikasi kesalahan dalam hasil kerja sesuai dengan prosedur yang telah ditentukan;",null,12,null,30,360,null,"  "]
[null,null,"4)","Membuat koreksi pada hasil kerja berupa catatan tertulis;",null,12,null,30,360,null,"  "]
[null,null,"5)","Memberikan arahan terkait koreksi hasil kerja bawahan.",null,12,null,60,720,null,"  "]
[]
[null,5,"Menyiapkan bahan rencana dan melaksanakan penyelenggaraan kegiatan pemerintahan kelurahan",null,"Kegiatan",12,"kali",null,{"$f":"SUM(I577:I584)","v":9390},null,"  "]
[null,null,"1)","Mempelajari pedoman pelaksaaan tugas.",null,1,null,30,30,null,"  "]
[null,null,"2)","Merencanakan  kegiatan ",null,12,null,120,1440,null,"  "]
[null,null,"3)","Memberikan petunjuk pelaksanaan tugas ",null,12,null,120,1440,null,"  "]
[null,null,"4)","Mengkoordinir pelaksanaan tugas ",null,12,null,120,1440]
[null,null,"5)","Melaksanakan tugas ",null,12,null,240,2880]
[null,null,"6)","Mengevaluasi  pelaksanaan kegiatan ",null,12,null,60,720]
[null,null,"7)","Menyusun laporan kegiatan  ",null,12,null,90,1080]
[null,null,"8)","Melaporkan hasil  kegiatan  kepada atasan",null,12,null,30,360]
[]
[null,6,"Menyiapkan bahan rencana dan melaksanakan penyelenggaraan pelayanan masyarakat",null,"Kegiatan Pelayanan masyarakat",{"$f":"SUM(F588:F594)","v":329},"Kali",null,{"$f":"SUM(I587:I594)","v":37680},null,"  "]
[null,null,"1)","Mempelajari pedoman pelaksaaan tugas.",null,1,null,30,30,null,"  "]
[null,null,"2)","Merencanakan kegiatan penyelenggaraan pelayanan masyarakat",null,1,null,90,90,null,"  "]
[null,null,"3)","Memberikan petunjuk pelaksanaan penyelenggaraan pelayanan masyarakat",null,12,null,120,1440,null,"  "]
[null,null,"4)","Mengkoordinir kegiatan pelaksanaan penyelenggaraan pelayanan masyarakat",null,12,null,120,1440]
[null,null,"5)","Melaksanakan tugas pelayanan masyarakat",null,268,null,120,32160]
[null,null,"6)","Menyusun laporan kegiatan penyelenggaraan pelayanan masyarakat",null,12,null,120,1440]
[null,null,"7)","Melaporkan kegiatan penyelenggaraan pelayanan masyarakat kepada atasan",null,12,null,30,360]
[null,null,"8)","Mengevaluasi kegiatan penyelenggaraan pelayanan masyarakat",null,12,null,60,720]
[]
[null,7,"Menyiapkan bahan rencana dan menyelenggarakan pelaksanaan urusan pemerintahan yang dilimpahkan oleh Bupati sesuai dengan bidangnya.",null,"Pelaksanaan kegiatan",12,"Kali",null,{"$f":"SUM(I597:I604)","v":5850},null,"  "]
[null,null,"1)","Mempelajari pedoman pelaksaaan tugas.",null,1,null,30,30,null,"  "]
[null,null,"2)","Merencanakan kegiatan ",null,1,null,60,60,null,"  "]
[null,null,"3)","Memberikan petunjuk pelaksanaan tugas ",null,12,null,60,720,null,"  "]
[null,null,"4)","Mengkoordinir pelaksanaan tugas  ",null,12,null,120,1440]
[null,null,"5)","Melaksanakan tugas  ",null,12,null,120,1440]
[null,null,"6)","Menyusun laporan pelaksanaan tugas",null,12,null,90,1080]
[null,null,"7)","Melaporkan pelaksanaan tugas kepada atasan",null,12,null,30,360]
[null,null,"8)","Mengevaluasi  pelaksanaan tugas",null,12,null,60,720]
[]
[null,8,"Melaksanakan percepatan pencapaian standar pelayanan minimal",null,"Kegiatan Pelayanan masyarakat",1,"kegiatan",null,{"$f":"SUM(I607:I612)","v":300},null,"  "]
[null,null,"1)","Mempelajari pedoman pelaksaaan tugas.",null,1,null,30,30,null,"  "]
[null,null,"2)","Merencanakan kegiatan  ",null,1,null,60,60,null,"  "]
[null,null,"3)","Mengkoordinir penyiapan data ",null,1,null,30,30]
[null,null,"4)","Melaksanakan kegiatan",null,1,null,90,90]
[null,null,"5)","Menyusun laporan kegiatan ",null,1,null,60,60]
[null,null,"6)","Melaporkan hasil kegiatan ",null,1,null,30,30]
[]
[null,9,"Menyelenggarakan pelayanan masyarakat yang menjadi ruang lingkup tugasnya antara lain pelayanan rekomendasi, perizinan, surat keterangan, legalisasi, pelayanan kependudukan dan pencatatan sipil",null,"Kegiatan Pelayanan masyarakat",268,"kegiatan",null,57030,null,"  "]
[null,null,"1)","Mempelajari pedoman pelaksaaan tugas.",null,1,null,30,30,null,"  "]
[null,null,"2)","Merencanakan kegiatan  pelayanan masyarakat ",null,1,null,60,60,null,"  "]
[null,null,"3)","Melaksanakan kegiatan pelayanan masyarakat",null,268,null,120,32160]
[null,null,"4)","Memonitor pelaksanaan Kegiatan pelayanan masyarakat",null,268,null,30,8040]
[]
[null,10,"Melaksanakan monitoring, pengendalian, pengawasan dan evaluasi pelaksanaan kegiatan pemerintahan kelurahan, penyelenggaraan pelayanan masyarakat serta pelaksanaan urusan pemerintahan yang dilimpahkan oleh Bupati sesuai dengan bidangnya.",null,"Kegiatan evaluasi",12,"Kali",null,{"$f":"SUM(I621:I626)","v":3630},null,"  "]
[null,null,"1)","Mempelajari pedoman pelaksaaan tugas.",null,1,null,30,30,null,"  "]
[null,null,"2)","Merencanakan kegiatan monitoring, pengendalian, pengawasan dan evaluasi",null,12,null,60,720,null,"  "]
[null,null,"3)","Menyiapkan data / bahan kegiatan monitoring, pengendalian, pengawasan dan evaluasi",null,12,null,60,720,null,"  "]
[null,null,"4)","Melaksanakan monitoring, pengendalian, pengawasan dan evaluasi",null,12,null,90,1080]
[null,null,"5)","Menyusun laporan kegiatan monitoring, pengendalian, pengawasan dan evaluasi",null,12,null,60,720]
[null,null,"6)","Melaporkan hasil kegiatan monitoring, pengendalian, pengawasan dan evaluasi kepada atasan",null,12,null,30,360]
[]
[null,11,"Menyusun bahan laporan pelaksanaan kegiatan pemerintahan kelurahan, penyelenggaraan pelayanan masyarakat serta pelaksanaan urusan pemerintahan yang dilimpahkan oleh Bupati sesuai dengan bidangnya.",null,"Laporan kegiatan",12,"Kali",null,{"$f":"SUM(I629:I632)","v":3270},null,"  "]
[null,null,"1)","Mempelajari pedoman pelaksaaan tugas.",null,1,null,30,30,null,"  "]
[null,null,"2)","Mengkoordinir bahan laporan pelaksanaan kegiatan ",null,12,null,60,720,null,"  "]
[null,null,"3)","Menganalisis bahan laporan pelaksanaan kegiatan ",null,12,null,90,1080,null,"  "]
[null,null,"4)","Menyusun bahan  laporan  pelaksanaan kegiatan ",null,12,null,120,{"$f":"F632*H632","v":1440}]
[]
[null,12,"Menyelenggarakan urusan pemerintahan umum lainnya berdasarkan azas tampung tantra di tingkat kelurahan.",null,"Kegiatan",12,"kali",null,{"$f":"SUM(I635:I640)","v":3330},null,"  "]
[null,null,"1)","Mempelajari pedoman pelaksaaan tugas.",null,1,null,30,30,null,"  "]
[null,null,"2)","Merencanakan kegiatan ",null,1,null,60,60,null,"  "]
[null,null,"3)","Menyiapkan data / bahan perencanaan kegiatan",null,12,null,60,720]
[null,null,"4)","Menyelenggarakan kegiatan",null,12,null,120,1440]
[null,null,"5)","Menyusun laporan kegiatan ",null,12,null,60,720]
[null,null,"6)","Melaporkan hasil kegiatan kepada atasan",null,12,null,30,360]
[]
[null,13,"Mengevaluasi pelaksanaan tugas di lingkungan Seksi Tata Pemerintahan dengan cara mengidentifikasi hambatan yang ada dalam rangka perbaikan kinerja di masa mendatang.",null,"Kegiatan evaluasi",12,"kali",null,2160,null,"  "]
[null,null,"1)","Menentukan target kerja sesuai dengan rencana kegiatan;",null,12,null,30,360,null,"  "]
[null,null,"2)","Mempelajari laporan pelaksanaan kegiatan bawahan;",null,12,null,60,720,null,"  "]
[null,null,"3)","Mendiskusikan kemajuan pelaksanaan kegiatan dengan bawahan;",null,12,null,60,720,null,"  "]
[null,null,"4)","Memberikan langkah-langkah perbaikan dalam pelaksanaan kegiatan.",null,12,null,30,360]
[]
[null,14,"Menyusun laporan pelaksanaan kegiatan di lingkungan Seksi Tata Pemerintahan sesuai prosedur dan peraturan yang berlaku untuk pertanggungjawaban kinerja dan rencana yang akan datang.",null,"Laporan Pelaksa naan Kegiatan",12,"dokumen",null,3600]
[null,null,"1)","Menganalisis laporan yang diterima dari bawahan;",null,12,null,90,1080,null,"  "]
[null,null,"2)","Membahas bahan laporan;",null,12,null,60,720,null,"  "]
[null,null,"3)","Membuat konsep laporan hasil pelaksanaan tugas;",null,12,null,30,360,null,"  "]
[null,null,"4)","Mengkonsultasikan konsep laporan kepada atasan;",null,12,null,30,360,null,"  "]
[null,null,"5)","Memfinalisasi laporan pelaksanaan tugas.",null,12,null,90,1080]
[]
[null,15,"Melaksanakan tugas kedinasan lain yang diperintahkan oleh pimpinan baik lisan maupun tertulis.",null,"Kegiatan tugas kedinasan lain",36,"kali",null,{"$f":"SUM(I656:I658)","v":3810}]
[null,null,"1)","Mempelajari tugas;",null,1,null,30,30,null,"  "]
[null,null,"2)","Menjalankan tugas;",null,36,null,90,3240,null,"  "]
[null,null,"3)","Melaporkan hasil pelaksanaan tugas.",null,36,null,15,540,null,"  "]
[null,null,"jumlah",{"$nulls":5},{"$f":"I549+I556+I563+I569+I576+I586+I596+I606+I614+I620+I628+I634+I642+I648+I655","v":136530}]
[]
["I.2","TEKNIK TINGGI"]
[null,1,"Merencanakan kegiatan yang menjadi tugasnya sesuai program kerja  Seksi Tata Pemerintahan dan ketentuan yang berlaku untuk pedoman pelaksanaan tugas.",null,"Program Kerja",1,"dokumen",null,420,null,"Tidak memenuhi"]
[null,null,"1)","Mempelajari pedoman pelaksanaan tugas.",null,1,null,60,{"$f":"F663*H663","v":60},null,"beban kerja "]
[null,null,"2)","Mempelajari Program Kerja Seksi Tata Pemerintahan",null,1,null,120,{"$f":"F664*H664","v":120},null,"untuk 1 (satu)"]
[null,null,"3)","Menyusun konsep rencana kegiatan Seksi Tata Pemerintahan",null,1,null,120,120,null,"jabatan, maka"]
[null,null,"4)","Mengkonsultasikan konsep rencana kegiatan dengan pimpinan untuk mendapatkan pengarahan;",null,1,null,60,60,null,"digabung "]
[null,null,"5)","Menetapkan rencana kegiatan Seksi Tata Pemerintahan",null,1,null,60,60,null,"dengan tugas"]
[{"$nulls":10},"teknik"]
[null,2,"Melaksanakan tugas seksi tata pemerintahan",null,"Kegiatan",12,"Kali",null,1500,null,"menengah"]
[null,null,"1)","Mempelajari pedoman pelaksanaan tugas.",null,1,null,60,60,null,"  "]
[null,null,"2)","Menghimpun saran dan masukan ",null,12,null,60,720]
[null,null,"3)","Menentukan target waktu penyelesaian;",null,12,null,60,720]
[]
[null,3,"Memfasilitasi agar pekerjaan berjalan tertib dan lancar",null,"Kegiatan",12,"Kali",null,2220,null,"  "]
[null,null,"1)","Mempelajari pedoman pelaksanaan tugas.",null,1,null,60,60,null,"  "]
[null,null,"2)","Menghimpun kesulitan yang dialami",null,12,null,60,720,null,"  "]
[null,null,"3)","Mengkoordinasikan pelaksanaan tugas;",null,12,null,90,1080]
[null,null,"4)","Mengkonsultasikan permasalahan kepada pimpinan;",null,12,null,30,360]
[]
[null,4,"Memfasilitasi pencapaian target pelaksanaan tugas",null,"Kegiatan",12,"Kali",null,1860,null,"  "]
[null,null,"1)","Mempelajari pedoman pelaksanaan tugas.",null,1,null,60,60,null,"  "]
[null,null,"2)","Menghimpun kesulitan yang dialami",null,12,null,30,360,null,"  "]
[null,null,"3)","Mengkoordinasikan pelaksanaan tugas;",null,12,null,90,1080,null,"  "]
[null,null,"4)","Mengkonsultasikan permasalahan kepada pimpinan;",null,12,null,30,360]
[]
[null,5,"Melaksanakan penyelenggaraan kegiatan pemerintahan kelurahan",null,"Kegiatan perencanaan ",12,"Kali",null,{"$f":"SUM(I687:I692)","v":3630},null,"  "]
[null,null,"1)","Mempelajari pedoman pelaksaaan tugas.",null,1,null,30,30,null,"  "]
[null,null,"2)","Mengumpulkan bahan/data perencanaan kegiatan",null,12,null,60,720,null,"  "]
[null,null,"3)","Melaksanakan tugas ",null,12,null,120,1440]
[null,null,"4)","Menyiapkan bahan evaluasi  kegiatan",null,12,null,30,360]
[null,null,"5)","Mengumpulkan bahan laporan kegiatan  ",null,12,null,60,720]
[null,null,"6)","Melaporkan hasil kegiatan kepada atasan",null,12,null,30,360]
[]
[null,6,"Melaksanakan penyelenggaraan pelayanan masyarakat",null,"Kegiatan pelayanan masyarakat",84,"kegiatan",null,{"$f":"SUM(I695:I700)","v":17070},null,"  "]
[null,null,"1)","Mempelajari pedoman pelaksaaan tugas.",null,1,null,30,30,null,"  "]
[null,null,"2)","Menyiapkan bahan pelayanan masyarakat / blangko blangko",null,1,null,60,60,null,"  "]
[null,null,"3)","Melaksanakan tugas pelayanan masyarakat",null,268,null,60,16080]
[null,null,"4)","Mengumpulkan bahan laporan penyelenggaraan pelayanan masyarakat",null,12,null,30,360]
[null,null,"5)","Melaporkan kegiatan penyelenggaraan pelayanan masyarakat kepada atasan",null,12,null,15,180]
[null,null,"6)","Menyiapkan bahan evaluasi kegiatan penyelenggaraan pelayanan masyarakat",null,12,null,30,360]
[]
[null,7,"Melaksanakan kegiatan urusan pemerintahan yang dilimpahkan oleh Bupati",null,"Laporan pelaksanaan kegiatan",12,"Kali",null,{"$f":"SUM(I703:I707)","v":3270},null,"  "]
[null,null,"1)","Mempelajari pedoman pelaksaaan tugas.",null,1,null,30,30,null,"  "]
[null,null,"2)","Mengumpulkan bahan/data perencanaan ",null,12,null,60,720,null,"  "]
[null,null,"3)","Melaksanakan tugas  ",null,12,null,120,1440]
[null,null,"4)","Mengumpulkan bahan laporan pelaksanaan tugas",null,12,null,60,720]
[null,null,"5)","Melaporkan pelaksanaan tugas  kepada atasan",null,12,null,30,360]
[]
[null,8,"Memfasilitasi kegiatan percepatan pencapaian standar pelayanan minimal ",null,"Kegiatan",1,"Kali",null,{"$f":"SUM(I710:I711)","v":120},null,"  "]
[null,null,"1)","Mempelajari pedoman pelaksaaan tugas.",null,1,null,30,30,null,"  "]
[null,null,"2)","Mengumpulkan dan mengolah data ",null,1,null,90,90]
[]
[null,9,"Menyelenggarakan pelayanan masyarakat yang menjadi ruang lingkup tugasnya antara lain pelayanan rekomendasi, perizinan, surat keterangan, legalisasi, pelayanan kependudukan dan pencatatan sipil",null,"kegiatan pelayanan masyarakat",268,"kegiatan",null,{"$f":"SUM(I714:I716)","v":16500},null,"  "]
[null,null,"1)","Mempelajari pedoman pelaksaaan tugas.",null,1,null,60,60,null,"  "]
[null,null,"2)","Menyiapkan bahan/data perencanaan pelayanan masyarakat ",null,12,null,30,360,null,"  "]
[null,null,"3)","Melaksanakan kegiatan pelayanan masyarakat",null,268,null,60,16080]
[]
[null,10,"Memfasilitasi pelaksanaan  monitoring, pengendalian, pengawasan dan evaluasi pelaksanaan kegiatan pemerintahan kelurahan, penyelenggaraan pelayanan masyarakat serta pelaksanaan urusan pemerintahan yang dilimpahkan oleh Bupati sesuai dengan bidangnya.",null,"Kegiatan",12,"kali",null,{"$f":"SUM(I719:I720)","v":750}]
[null,null,"1)","Mempelajari pedoman pelaksaaan tugas.",null,1,null,30,30,null,"  "]
[null,null,"2)","Mengumpulkan data / bahan kegiatan monitoring, pengendalian, pengawasan dan evaluasi",null,12,null,60,720,null,"  "]
[]
[null,11,"Menyiapkan bahan laporan pelaksanaan kegiatan pemerintahan kelurahan, penyelenggaraan pelayanan masyarakat serta pelaksanaan urusan pemerintahan yang dilimpahkan oleh Bupati sesuai dengan bidangnya.",null,"Laporan kegiatan",12,"kali",null,{"$f":"SUM(I723:I726)","v":1470}]
[null,null,"1)","Mempelajari pedoman pelaksaaan tugas.",null,1,null,30,{"$f":"F723*H723","v":30}]
[null,null,"2)","Menghimpun bahan laporan pelaksanaan kegiatan",null,12,null,30,{"$f":"F724*H724","v":360}]
[null,null,"3)","Menyiapkan bahan laporan pelaksanaan kegiatan ",null,12,null,60,720]
[null,null,"4)","Menyampaikan bahan laporan pelaksanaan kegiatan ",null,12,null,30,360]
[]
[null,12,"Melaksanakan tugas urusan pemerintahan umum lainnya berdasarkan asas tampung tantra di tingkat Kelurahan",null,"Kegiatan",12,"kali",null,{"$f":"SUM(I729:I730)","v":750}]
[null,null,"1)","Mempelajari pedoman pelaksaaan tugas.",null,1,null,30,{"$f":"F729*H729","v":30}]
[null,null,"2)","Menghimpun  data permasalahan ",null,12,null,60,{"$f":"F730*H730","v":720}]
[]
[null,14,"Menyusun laporan pelaksanaan tugas sesuai ketentuan yang berlaku untuk pertanggungjawaban kinerja dan rencana yang akan datang.",null,"Laporan pelaksanaan tugas",12,"kali",null,{"$f":"SUM(I733:I736)","v":2340}]
[null,null,"1)","Mengumpulkan bahan laporan pelaksanaan tugas;",null,12,null,30,{"$f":"F733*H733","v":360}]
[null,null,"2)","Menganalisis bahan penyusunan laporan;",null,12,null,90,{"$f":"F734*H734","v":1080}]
[null,null,"3)","Membuat laporan pelaksanaan tugas;",null,12,null,60,720]
[null,null,"4)","Menyampaikan laporan kepada atasan;",null,12,null,15,180]
[]
[null,15,"Melaksanakan tugas kedinasan lain yang diperintahkan oleh pimpinan baik lisan maupun tertulis.",null,"Kegiatan tugas kedinasan lain",24,"kali",null,{"$f":"SUM(I739:I741)","v":2550}]
[null,null,"1)","Mempelajari tugas;",null,1,null,30,{"$f":"F739*H739","v":30}]
[null,null,"2)","Menjalankan tugas;",null,24,null,90,{"$f":"F740*H740","v":2160}]
[null,null,"3)","Melaporkan hasil pelaksanaan tugas.",null,24,null,15,360]
[{"$nulls":3},"j u m l a h",{"$nulls":4},{"$f":"I662+I669+I674+I680+I686+I694+I702+I709+I713+I718+I722+I728+I732+I738","v":54450},null,"  "]
[]
["I.3","TEKNIK MENENGAH"]
[null,1,"Merencanakan kegiatan yang menjadi tugasnya sesuai program kerja  Seksi Tata Pemerintahan dan ketentuan yang berlaku untuk pedoman pelaksanaan tugas.",null,"Program Kerja",1,"dokumen",null,360,"Pengelola perizinan dan","Tugas teknik tinggi"]
[null,null,"1)","Mempelajari pedoman pelaksanaan tugas.",null,1,null,60,{"$f":"F746*H746","v":60},"rekomendasi","yang digabung"]
[null,null,"2)","Mempelajari Program Kerja Seksi Tata Pemerintahan",null,1,null,90,{"$f":"F747*H747","v":90},null,"dengan teknik"]
[null,null,"3)","Menyusun konsep rencana kegiatan Seksi Tata Pemerintahan",null,1,null,90,90,null,"menengah"]
[null,null,"4)","Mengkonsultasikan konsep rencana kegiatan dengan pimpinan untuk mendapatkan pengarahan;",null,1,null,60,60]
[null,null,"5)","Menetapkan rencana kegiatan Seksi Tata Pemerintahan",null,1,null,60,60]
[]
[null,2,"Melaksanakan tugas seksi tata pemerintahan",null,"Kegiatan menghimpun saran dan masukan",12,"Kali",null,1500,null,"  "]
[null,null,"1)","Mempelajari pedoman pelaksanaan tugas.",null,1,null,60,60,null,"  "]
[null,null,"2)","Menghimpun saran dan masukan ",null,12,null,60,720,null,"  "]
[null,null,"3)","Menentukan target waktu penyelesaian;",null,12,null,60,720,null,"  "]
[]
[null,3,"Memfasilitasi agar pekerjaan berjalan tertib dan lancar",null,"Kegiatan konsultasi peramasalahan",12,"Kali",null,1500,null,"  "]
[null,null,"1)","Mempelajari pedoman pelaksanaan tugas.",null,1,null,60,60,null,"  "]
[null,null,"2)","Menghimpun kesulitan yang dialami",null,12,null,30,360,null,"  "]
[null,null,"3)","Mengkoordinasikan pelaksanaan tugas;",null,12,null,60,720,null,"  "]
[null,null,"4)","Mengkonsultasikan permasalahan kepada pimpinan;",null,12,null,30,360]
[]
[null,4,"Memfasilitasi pencapaian target pelaksanaan tugas",null,"Kegiatan koordinasi pelaksanan tugas",12,"Kali",null,{"$f":"SUM(I764:I767)","v":1500},null,"  "]
[null,null,"1)","Mempelajari pedoman pelaksanaan tugas.",null,1,null,60,60,null,"  "]
[null,null,"2)","Menghimpun kesulitan yang dialami",null,12,null,30,360,null,"  "]
[null,null,"3)","Mengkoordinasikan pelaksanaan tugas;",null,12,null,60,720,null,"  "]
[null,null,"4)","Mengkonsultasikan permasalahan kepada pimpinan;",null,12,null,30,360]
[]
[null,5,"Melaksanakan penyelenggaraan kegiatan pemerintahan kelurahan",null,"Kegiatan perencanaan ",12,"Kali",null,{"$f":"SUM(I770:I774)","v":2010},null,"  "]
[null,null,"1)","Mempelajari pedoman pelaksaaan tugas.",null,1,null,30,30,null,"  "]
[null,null,"2)","Melaksanakan tugas ",null,12,null,60,720]
[null,null,"3)","Menyiapkan bahan evaluasi  kegiatan ",null,12,null,30,360]
[null,null,"4)","Mengetik laporan kegiatan ",null,12,null,60,720]
[null,null,"5)","Melaporkan hasil kegiatan  kepada atasan",null,12,null,15,180]
[{"$nulls":11},61320]
[null,6,"Melaksanakan penyelenggaraan pelayanan masyarakat",null,"Kegiatan Pelayanan masyarakat",268,"hari",null,{"$f":"SUM(I777:I781)","v":17010},null,"  "]
[null,null,"1)","Mempelajari pedoman pelaksaaan tugas.",null,1,null,30,30,null,"  "]
[null,null,"2)","Melaksanakan tugas pelayanan masyarakat",null,268,null,60,16080]
[null,null,"3)","Mengetik laporan kegiatan penyelenggaraan pelayanan masyarakat",null,12,null,30,360]
[null,null,"4)","Melaporkan kegiatan penyelenggaraan pelayanan masyarakat kepada atasan",null,12,null,15,180]
[null,null,"5)","Menyiapkan bahan evaluasi kegiatan penyelenggaraan pelayanan masyarakat",null,12,null,30,360]
[]
[null,7,"Melaksanakan kegiatan urusan pemerintahan yang dilimpahkan oleh Bupati",null,"Kegiatan",12,"Kali",null,{"$f":"SUM(I784:I787)","v":1290},null,"  "]
[null,null,"1)","Mempelajari pedoman pelaksaaan tugas.",null,1,null,30,30,null,"  "]
[null,null,"2)","Melaksanakan tugas  ",null,12,null,60,720]
[null,null,"3)","Mengetik laporan pelaksanaan tugas",null,12,null,30,360]
[null,null,"4)","Melaporkan pelaksanaan tugas kepada atasan",null,12,null,15,180]
[]
[null,8,"Mengadministrasi kegiatan percepatan pencapaian standar pelayanan minimal ",null,"Kegiatan pelayanan masyarakat",12,"Kali",null,{"$f":"SUM(I790:I791)","v":390},null,"  "]
[null,null,"1)","Mengetik  pedoman teknis, tatacara dan persyaratan  ",null,1,null,30,30,null,"  "]
[null,null,"2)","Mengetik laporan kegiatan ",null,12,null,30,360]
[]
[null,9,"Menyelenggarakan pelayanan masyarakat yang menjadi ruang lingkup tugasnya antara lain pelayanan rekomendasi, perizinan, surat keterangan, legalisasi, pelayanan kependudukan dan pencatatan sipil",null,"Kegiatan pelayanan masyarakat",268,"hari",null,{"$f":"SUM(I794:I795)","v":16110},"Pengadminis- trasi","Tugas teknik menengah"]
[null,null,"1)","Mempelajari pedoman pelaksaaan tugas.",null,1,null,30,30,"pemerintahan","yang digabung"]
[null,null,"3)","Melaksanakan kegiatan pelayanan masyarakat",null,268,null,60,16080]
[]
[null,10,"Melaksanakan adminsitrasi pelaksanaan urusan pemerintahan yang dilimpahkan oleh Bupati",null,"Berkas laporan kegiatan",12,"dokumen",null,{"$f":"SUM(I798:I800)","v":750},null,"  "]
[null,null,"1)","Mempelajari pedoman pelaksaaan tugas.",null,1,null,30,30,null,"  "]
[null,null,"2)","Mengetik jadwal kegiatan monitoring, pengendalian, pengawasan dan evaluasi",null,12,null,30,360,null,"  "]
[null,null,"3)","Mengetik laporan hasil kegiatan monitoring, pengendalian, pengawasan dan evaluasi",null,12,null,30,360]
[]
[null,11,"Menyiapkan bahan laporan pelaksanaan kegiatan pemerintahan kelurahan, penyelenggaraan pelayanan masyarakat serta pelaksanaan urusan pemerintahan yang dilimpahkan oleh Bupati sesuai dengan bidangnya.",null,"Bahan laporan",12,"kali",null,210]
[null,null,"1)","Mempelajari pedoman pelaksaaan tugas.",null,1,null,30,30,null,"  "]
[null,null,"2)","Menyampaikan bahan laporan  pelaksanaan kegiatan ",null,12,null,15,180,null,"  "]
[]
[null,14,"Menyusun laporan pelaksanaan tugas sesuai ketentuan yang berlaku untuk pertanggungjawaban kinerja dan rencana yang akan datang.",null,"Laporan pelaksanaan tugas",12,"kali",null,{"$f":"SUM(I807:I810)","v":2340}]
[null,null,"1)","Mengumpulkan bahan laporan pelaksanaan tugas;",null,12,null,30,{"$f":"F807*H807","v":360}]
[null,null,"2)","Menganalisis bahan penyusunan laporan;",null,12,null,90,{"$f":"F808*H808","v":1080}]
[null,null,"3)","Membuat laporan pelaksanaan tugas;",null,12,null,60,720]
[null,null,"4)","Menyampaikan laporan kepada atasan;",null,12,null,15,180]
[]
[null,15,"Melaksanakan tugas kedinasan lain yang diperintahkan oleh pimpinan baik lisan maupun tertulis.",null,"Kegiatan tugas kedinasan lain",24,"kali",null,{"$f":"SUM(I813:I815)","v":2550}]
[null,null,"1)","Mempelajari tugas;",null,1,null,30,{"$f":"F813*H813","v":30}]
[null,null,"2)","Menjalankan tugas;",null,24,null,90,{"$f":"F814*H814","v":2160}]
[null,null,"3)","Melaporkan hasil pelaksanaan tugas.",null,24,null,15,360]
[{"$nulls":3},"jumlah",{"$nulls":4},{"$f":"I745+I752+I757+I763+I769+I776+I783+I789+I793+I797+I802+I806+I812","v":47520}]
[]
["I.4","TEKNIK RENDAH"]
[null,1,"Merencanakan kegiatan yang menjadi tugasnya sesuai program kerja Seksi Tata Pemerintahan dan ketentuan yang berlaku untuk pedoman pelaksanaan tugas.",null,"Program Kerja",1,"dokumen",null,450,null,"Tidak memenuhi"]
[null,null,"1)","Mempelajari pedoman pelaksanaan tugas.",null,1,null,60,{"$f":"F820*H820","v":60},null,"beban kerja "]
[null,null,"2)","Mempelajari Program Kerja Seksi Tata Pemerintahan",null,1,null,120,{"$f":"F821*H821","v":120},null,"untuk 1 (satu)"]
[null,null,"3)","Menyusun konsep rencana kegiatan Seksi Tata Pemerintahan",null,1,null,120,120,null,"jabatan, maka "]
[null,null,"4)","Mengkonsultasikan konsep rencana kegiatan dengan pimpinan untuk mendapatkan pengarahan;",null,1,null,90,90,null,"digabung "]
[null,null,"5)","Menetapkan rencana kegiatan Seksi Tata Pemerintahan",null,1,null,60,60,null,"dengan tugas "]
[{"$nulls":10},"teknik"]
[null,2,"Melaksanakan tugas seksi tata pemerintahan",null,"Kegiatan menghimpun saran danmasukan",12,"Kali",null,1860,null,"menengah"]
[null,null,"1)","Mempelajari pedoman pelaksanaan tugas.",null,1,null,60,60,null,"  "]
[null,null,"2)","Melaksanakan tugas ",null,12,null,90,1080,null,"  "]
[null,null,"3)","Menentukan target waktu penyelesaian;",null,12,null,60,720,null,"  "]
[]
[null,3,"Memfasilitasi agar pekerjaan berjalan tertib dan lancar",null,"Kegiatan konsultasi permasalahan",12,"Kali",null,1860,null,"  "]
[null,null,"1)","Mempelajari pedoman pelaksanaan tugas.",null,1,null,60,60,null,"  "]
[null,null,"2)","Menyampaikan kesulitan yang dialami",null,12,null,30,360,null,"  "]
[null,null,"3)","Mengkoordinasikan pelaksanaan tugas;",null,12,null,90,1080,null,"  "]
[null,null,"4)","Mengkonsultasikan permasalahan kepada pimpinan;",null,12,null,30,360]
[]
[null,4,"Memfasilitasi pencapaian target pelaksanaan tugas",null,"Kegiatan koordinasi pelaksanaan tugas",12,"Kali",null,1860,null,"  "]
[null,null,"1)","Mempelajari pedoman pelaksanaan tugas.",null,1,null,60,60,null,"  "]
[null,null,"2)","Menyampaikan kesulitan yang dialami",null,12,null,30,360,null,"  "]
[null,null,"3)","Mengkoordinasikan pelaksanaan tugas;",null,12,null,90,1080,null,"  "]
[null,null,"4)","Mengkonsultasikan permasalahan kepada pimpinan;",null,12,null,30,360]
[]
[null,9,"Menyelenggarakan pelayanan masyarakat yang menjadi ruang lingkup tugasnya antara lain pelayanan rekomendasi, perizinan, surat keterangan, legalisasi, pelayanan kependudukan dan pencatatan sipil",null,"Kegiatan pelayanan masyarakat",268,"hari",null,{"$f":"SUM(I844:I845)","v":16110},null,"  "]
[null,null,"1)","Mempelajari pedoman pelaksaaan tugas.",null,1,null,30,30,null,"  "]
[null,null,"2)","Melaksanakan kegiatan pelayanan masyarakat",null,268,null,60,16080,null,"  "]
[]
[null,14,"Menyusun laporan pelaksanaan tugas sesuai ketentuan yang berlaku untuk pertanggungjawaban kinerja dan rencana yang akan datang.",null,"Laporan Pelaksa naan Tugas",12,"dokumen",null,{"$f":"SUM(I848:I850)","v":1260},null,"  "]
[null,null,"1)","Mengumpulkan bahan laporan pelaksanaan tugas;",null,12,null,30,360,null,"  "]
[null,null,"2)","Membuat laporan pelaksanaan tugas;",null,12,null,60,720,null,"  "]
[null,null,"3)","Menyampaikan laporan kepada atasan;",null,12,null,15,180,null,"  "]
[]
[null,15,"Melaksanakan tugas kedinasan lain yang diperintahkan oleh pimpinan baik lisan maupun tertulis.",null,"Kegiatan",24,"kali",null,{"$f":"SUM(I853:I855)","v":2550},null,"  "]
[null,null,"1)","Mempelajari tugas;",null,1,null,30,30,null,"  "]
[null,null,"2)","Menjalankan tugas;",null,24,null,90,2160,null,"  "]
[null,null,"3)","Melaporkan hasil pelaksanaan tugas.",null,24,null,15,360]
[null,"jumlah",{"$nulls":6},{"$f":"I819+I826+I831+I837+I843+I847+I852","v":25950},null,null,66600]
[]
["I.1","KONSEPTUAL DAN MANAGERIAL (ESELON 4)",{"$nulls":7},"Kepala Seksi"]
[null,1,"Merencanakan kegiatan Seksi Pemberdayaan Masyarakat sesuai program kerja Seksi Pemberdayaan Masyarakat dan ketentuan yang berlaku untuk pedoman pelaksanaan tugas.",null,"Program Kerja",1,"dokumen",null,{"$f":"SUM(I860:I864)","v":450},"Pemberdayaan Masyarakat","  "]
[null,null,"1)","Mempelajari pedoman pelaksanaan tugas.",null,1,null,60,{"$f":"F860*H860","v":60}]
[null,null,"2)","Menelaah Program Kerja Seksi Pemberdayaan Masyarakat",null,1,null,120,{"$f":"F861*H861","v":120},null,"  "]
[null,null,"3)","Menyusun konsep rencana kegiatanSeksi Pemberdayaan Masyarakat",null,1,null,120,120,null,"  "]
[null,null,"4)","Mengkonsultasikan konsep rencana kegiatan dengan pimpinan untuk mendapatkan pengarahan;",null,1,null,90,90,null,"  "]
[null,null,"5)","Menetapkan rencana kegiatan Seksi Pemberdayaan Masyarakat",null,1,null,60,60]
[]
[null,2,"Membagi tugas kepada bawahan di lingkungan Seksi Pemberdayaan Masyarakat sesuai dengan beban kerja dan tanggung jawab masing-masing untuk kelancaran pelaksanaan tugas.",null,"Distribusi Tugas",12,"dokumen",null,2400]
[null,null,"1)","Menjabarkan rencana kegiatan menjadi tugas-tugas yang harus dilaksanakan bawahan;",null,1,null,120,120,null,"  "]
[null,null,"2)","Memaparkan rencana kegiatan Seksi Pemberdayaan Masyarakat",null,1,null,120,120,null,"  "]
[null,null,"3)","Menghimpun saran dan masukan dari bawahan;",null,12,null,60,720,null,"  "]
[null,null,"4)","Memberikan petunjuk pelaksanaan tugas kepada bawahan;",null,12,null,90,1080,null,"  "]
[null,null,"5)","Menentukan target waktu penyelesaian.",null,12,null,60,720]
[]
[null,3,"Memberi petunjuk, membimbing dan mengkoordinasikan pelaksanaan tugas bawahan di lingkungan Seksi Pemberdayaan Masyarakat setiap saat sesuai dengan tugas dan tanggung jawabnya agar pekerjaan berjalan tertib dan lancar.",null,"Kegiatan Bimbingan dan Koordinasi",12,"kali",null,{"$f":"SUM(I874:I877)","v":4680}]
[null,null,"1)","Menjelaskan tugas yang akan dilaksanakan bawahan;",null,12,null,90,1080,null,"  "]
[null,null,"2)","Mengidentifikasi kesulitan yang dialami bawahan;",null,12,null,90,1080,null,"  "]
[null,null,"3)","Menganalisis permasalahan bersama pimpinan untuk menentukan solusi terbaik;",null,12,null,120,1440,null,"  "]
[null,null,"4)","Memberikan arahan kepada bawahan terkait permasalahan yang dialami.",null,12,null,90,1080,null,"  "]
[]
[null,4,"Memeriksa hasil kerja bawahan di lingkungan Seksi Peberdayaan Masyarakat sesuai dengan prosedur dan peraturan yang berlaku agar terhindar dari kesalahan.",null,"Kegiatan Pemeriksaan",12,"kali",null,{"$f":"SUM(I880:I884)","v":4020}]
[null,null,"1)","Menelaah hasil kerja yang dilakukan bawahan;",null,12,null,120,1440]
[null,null,"2)","Menentukan standar kualitas dan/atau kuantitas hasil kerja;",null,1,null,60,60,null,"  "]
[null,null,"3)","Mengidentifikasi kesalahan dalam hasil kerja sesuai dengan prosedur yang telah ditentukan;",null,12,null,60,720,null,"  "]
[null,null,"4)","Membuat koreksi pada hasil kerja berupa catatan tertulis;",null,12,null,90,1080,null,"  "]
[null,null,"5)","Memberikan arahan terkait koreksi hasil kerja bawahan.",null,12,null,60,720,null,"  "]
[]
[null,5,"Membantu menyiapkan bahan rencana dan melaksanakan pemberdayaan masyarakat, fasilitasi pembangunan kelurahan dan penguatan kapasitas lembaga kemasyarakatan kelurahan antara lain Lembaga Pemberdayaan Masyarakat Kelurahan, Lembaga Pemberdayaan Perempuan dan Keluarga, Karang Taruna, Rukun Warga, Rukun Tetangga dan lembaga lainnya (atau nama lain).",null,"Kegiatan pemberdayaan masyarakat",12,"kali",null,{"$f":"SUM(I887:I894)","v":11580},null,"  "]
[null,null,"1)","Mempelajari pedoman pelaksaaan tugas.",null,1,null,60,60,null,"  "]
[null,null,"2)","Merencanakan pelaksanaan kegiatan ",null,12,null,120,1440]
[null,null,"3)","Memberikan petunjuk pelaksanaan  kegiatan ",null,12,null,120,1440]
[null,null,"4)","Mengkoordinir pelaksanaan  kegiatan ",null,12,null,180,2160]
[null,null,"5)","Melaksanakan  kegiatan ",null,12,null,240,2880]
[null,null,"6)","Menyusun laporan  kegiatan",null,12,null,120,1440]
[null,null,"7)","Melaporkan kegiatan kepada atasan",null,12,null,60,720]
[null,null,"8)","Mengevaluasi  kegiatan",null,12,null,120,1440]
[]
[null,6,"Menyiapkan bahan rencana dan menyelenggarakan pelaksanaan urusan pemerintahan yang dilimpahkan oleh Bupati sesuai dengan bidangnya.",null,"Kegiatan ",12,"kali",null,{"$f":"SUM(I897:I904)","v":8865},null,"  "]
[null,null,"1)","Mempelajari pedoman pelaksaaan tugas.",null,1,null,45,45,null,"  "]
[null,null,"2)","Merencanakan kegiatan ",null,12,null,120,1440,null,"  "]
[null,null,"3)","Memberikan petunjuk pelaksanaan tugas",null,12,null,90,1080,null,"  "]
[null,null,"4)","Mengkoordinir pelaksanaan tugas",null,12,null,90,1080]
[null,null,"5)","Melaksanakan  tugas",null,12,null,180,2160]
[null,null,"6)","Menyusun laporan  pelaksanaan tugas",null,12,null,120,1440]
[null,null,"7)","Melaporkan pelaksanaan tugas kepada atasan",null,12,null,45,540]
[null,null,"8)","Mengevaluasi pelaksanaan tugas",null,12,null,90,1080]
[]
[null,7,"Mendorong partisipasi masyarakat  untuk ikut serta dalam perencanaan pembangunan  dalam forum  musyawarah  perencanaan pembangunan di kelurahan ",null,"Kegiatan Musrenbangkel",1,"kegiatan",null,{"$f":"SUM(I907:I915)","v":2835},null,"  "]
[null,null,"1)","Mempelajari pedoman pelaksaaan tugas.",null,1,null,30,30,null,"  "]
[null,null,"2)","Merencanakan kegiatan Musrenbangkel",null,1,null,120,120]
[null,null,"3)","Menyiapkan data / bahan Musrenbangkel",null,1,null,120,120]
[null,null,"4)","Memfasilitasi Musrenbang di Lingkungan",null,10,null,180,1800]
[null,null,"5)","Mengkoordinir usulan Musrenbangkel",null,1,null,150,150,null,"  "]
[null,null,"6)","Melaksanakan musrenbangkel",null,1,null,300,300,null,"  "]
[null,null,"7)","Menyusun laporan musrenbangkel",null,1,null,180,180]
[null,null,"8)","Melaporkan hasil musrenbangkel kepada atasan",null,1,null,45,45]
[null,null,"9)","Mengevaluasi pelaksanaan musrenbangkel",null,1,null,90,90]
[]
[null,8,"Melaksanakan penyusunan profil kelurahan ",null,"Dokumen profil kelurahan",1,"dokumen",null,{"$f":"SUM(I918:I924)","v":2715},null,"  "]
[null,null,"1)","Mempelajari pedoman pelaksaaan tugas.",null,1,null,60,60,null,"  "]
[null,null,"2)","Merencanakan kegiatan penyusunan profil kelurahan",null,1,null,120,120,null,"  "]
[null,null,"3)","Menyiapkan data penyusunan profil kelurahan",null,10,null,180,1800,null,"  "]
[null,null,"4)","Mengkordinir penyusunan profil Kelurahan",null,1,null,120,120]
[null,null,"5)","Melaksanakan penyusunan profil kelurahan",null,1,null,480,480]
[null,null,"6)","Melaporkan hasil penyusunan profil kelurahan kepada atasan",null,1,null,45,45]
[null,null,"7)","Mengevaluasi pelaksanaan penyusunan profil kelurahan",null,1,null,90,90]
[]
[null,9,"Melaksanakan tugas - tugas lain yang di bidang pemberdayaan masyarakat  sesuai  dengan peraturan perundang-undangan ",null,"Kegiatan",12,"kegiatan",null,{"$f":"SUM(I927:I933)","v":6150},null,"  "]
[null,null,"1)","Mempelajari pedoman pelaksaaan tugas.",null,1,null,30,30,null,"  "]
[null,null,"2)","Merencanakan  pelaksanaan tugas",null,12,null,60,720]
[null,null,"3)","Menyiapkan data/bahan   pelaksanaan tugas ",null,12,null,60,{"$f":"F929*H929","v":720}]
[null,null,"4)","Melaksanakan tugas ",null,12,null,180,2160]
[null,null,"5)","Menyusun laporan  pelaksanaan tugas",null,12,null,90,1080]
[null,null,"6)","Melaporkan hasil   pelaksanaan tugas ",null,12,null,30,360]
[null,null,"7)","Mengevaluasi pelaksanaan tugas ",null,12,null,90,1080]
[]
[null,10,"Melaksanakan monitoring, pengendalian, pengawasan dan evaluasi penyelenggaraan bidang pemberdayaan masyarakat dan  pemeliharaan prasarana dan fasilitas pelayanan umum serta pelaksanaan urusan pemerintahan   yang dilimpahkan oleh Bupati sesuai dengan bidangnya.  ",null,"Kegiatan monitoring dan evaluasi",12,"kali",null,{"$f":"SUM(I936:I940)","v":4920},null,"  "]
[null,null,"1)","Mempelajari pedoman pelaksaaan tugas.",null,1,null,60,60,null,"  "]
[null,null,"2)","Merencanakan kegiatan monitoring, pengendalian, pengawasan dan evaluasi ",null,12,null,90,1080]
[null,null,"3)","Menyiapkan data / bahan kegiatan",null,12,null,90,1080]
[null,null,"4)","Melaksanakan monitoring, pengendalian, pengawasan dan evaluasi ",null,12,null,180,2160]
[null,null,"5)","Melaporkan hasil kegiatan  kepada atasan",null,12,null,45,{"$f":"F940*H940","v":540},null,"  "]
[{"$nulls":10},"  "]
[]
[null,11,"Menyusun bahan laporan penyelenggara  pemberdayaan masyarakat dan pemelihara    prasarana   dan fasilita pelayanan umum   serta pelaksanaan urusan pemerintahan yang dilimpahkan oleh Bupati sesuai dengan bidangnya.",null,"Laporan kegiatan",12,"kali",null,{"$f":"SUM(I944:I947)","v":4710},null,"  "]
[null,null,"1)","Mempelajari pedoman pelaksaaan tugas.",null,1,null,30,30,null,"  "]
[null,null,"2)","Mengkoordinir bahan laporan ",null,12,null,120,1440,null,"  "]
[null,null,"3)","Menganalisis bahan laporan ",null,12,null,150,1800,null,"  "]
[null,null,"4)","Menyusun bahan  laporan  ",null,12,null,120,1440]
[]
[null,12,"Mengevaluasi pelaksanaan tugas di lingkungan Seksi Pemberdayaan Masyarakat dengan cara mengidentifikasi hambatan yang ada dalam rangka perbaikan kinerja di masa mendatang.",null,"Kegiatan evaluasi",12,"kali",null,{"$f":"SUM(I950:I953)","v":3780},null,"  "]
[null,null,"1)","Menentukan target kerja sesuai dengan rencana kegiatan;",null,12,null,45,540,null,"  "]
[null,null,"2)","Mempelajari laporan pelaksanaan kegiatan bawahan;",null,12,null,120,1440,null,"  "]
[null,null,"3)","Mendiskusikan kemajuan pelaksanaan kegiatan dengan bawahan;",null,12,null,90,1080,null,"  "]
[null,null,"4)","Memberikan langkah-langkah perbaikan dalam pelaksanaan kegiatan.",null,12,null,60,720]
[]
[null,13,"Menyusun laporan pelaksanaan kegiatan di lingkungan Seksi Pemberdayaan Masyarakat sesuai prosedur dan peraturan yang berlaku untuk pertanggungjawaban kinerja dan rencana yang akan datang.",null,"Laporan pelaksanaan kegiatan",12,"dokumen",null,{"$f":"SUM(I956:I960)","v":8280}]
[null,null,"1)","Menganalisis laporan yang diterima dari bawahan;",null,12,null,120,1440,null,"  "]
[null,null,"2)","Membahas bahan laporan;",null,12,null,120,1440,null,"  "]
[null,null,"3)","Membuat konsep laporan hasil pelaksanaan tugas;",null,12,null,150,1800,null,"  "]
[null,null,"4)","Mengkonsultasikan konsep laporan kepada atasan;",null,12,null,120,1440,null,"  "]
[null,null,"5)","Memfinalisasi laporan pelaksanaan tugas.",null,12,null,180,2160]
[]
[null,14,"Melaksanakan tugas kedinasan lain yang diperintahkan oleh pimpinan baik lisan maupun tertulis.",null,"Kegiatan",36,"kali",null,{"$f":"SUM(I963:I965)","v":7050}]
[null,null,"1)","Mempelajari tugas;",null,1,null,30,30,null,"  "]
[null,null,"2)","Menjalankan tugas;",null,36,null,150,5400,null,"  "]
[null,null,"3)","Melaporkan hasil pelaksanaan tugas.",null,36,null,45,1620,null,"  "]
[{"$nulls":3},"jumlah",{"$nulls":4},{"$f":"I859+I866+I873+I879+I886+I896+I906+I917+I926+I935+I943+I949+I955+I962","v":72435}]
[]
["I.2","TEKNIK TINGGI"]
[null,1,"Merencanakan kegiatan yang menjadi tugasnya sesuai program kerja Seksi Pemberdayaan Masyarakat dan ketentuan yang berlaku untuk pedoman pelaksanaan tugas.",null,"Program Kerja",1,"dokumen",null,420,null,"Tidak memenuhi"]
[null,null,"1)","Mempelajari pedoman pelaksanaan tugas.",null,1,null,60,{"$f":"F970*H970","v":60},null,"beban kerja "]
[null,null,"2)","Mempelajari Program Kerja Seksi Pemberdayaan Masyarakat",null,1,null,120,{"$f":"F971*H971","v":120},null,"untuk 1 (satu)"]
[null,null,"3)","Menyusun konsep rencana kegiatan Seksi Pemberdayaan Masyarakat",null,1,null,120,120,null,"jabatan, maka"]
[null,null,"4)","Mengkonsultasikan konsep rencana kegiatan dengan pimpinan untuk mendapatkan pengarahan;",null,1,null,60,60,null,"digabung"]
[null,null,"5)","Menetapkan rencana kegiatan Sesksi Pemberdayaan Masyarakat",null,1,null,60,60,null,"dengan tugas"]
[{"$nulls":10},"teknik"]
[null,2,"Melaksanakan tugas Seksi Pemberdayaan Masyarakat",null,"Kegiatan menghimpun saran dan masukan",12,"kali",null,1470,null,"menengah"]
[null,null,"1)","Mempelajari pedoman pelaksanaan tugas.",null,1,null,30,30,null,"  "]
[null,null,"2)","Menghimpun saran dan masukan",null,12,null,60,720,null,"  "]
[null,null,"3)","Menentukan target waktu penyelesaian;",null,12,null,60,720,null,"  "]
[]
[null,3,"Memfasilitasi agar pekerjaan berjalan tertib dan lancar",null,"Kegiatan konsultasi permasalahan",12,"kali",null,1470,null,"  "]
[null,null,"1)","Mempelajari pedoman pelaksanaan tugas.",null,1,null,30,30,null,"  "]
[null,null,"2)","Menghimpun kesulitan yang dialami ",null,12,null,30,360,null,"  "]
[null,null,"3)","Mengkoordinasikan pelaksanaan tugas;",null,12,null,60,720,null,"  "]
[null,null,"4)","Mengkonsultasikan permasalahan kepada pimpinan;",null,12,null,30,360]
[]
[null,4,"Memfasilitasi pencapaian target pelaksanaan tugas",null,"Kegiatan koordinasi pelaksanaan tugas",12,"kali",null,1470,null,"  "]
[null,null,"1)","Mempelajari pedoman pelaksanaan tugas.",null,1,null,30,30,null,"  "]
[null,null,"2)","Menghimpun kesulitan yang dialami",null,12,null,30,360,null,"  "]
[null,null,"3)","Mengkoordinasikan pelaksanaan tugas;",null,12,null,60,720,null,"  "]
[null,null,"4)","Mengkonsultasikan permasalahan kepada pimpinan;",null,12,null,30,360]
[]
[null,5,"Menyiapkan bahan rencana dan melaksanakan pemberdayaan masyarakat, fasilitasi pembangunan kelurahan dan penguatan kapasitas lembaga kemasyarakatan kelurahan antara lain Lembaga Pemberdayaan Masyarakat Kelurahan, Lembaga Pemberdayaan Perempuan dan Keluarga, Karang Taruna, Rukun Warga, Rukun Tetangga dan lembaga lainnya (atau nama lain).",null,"Kegiatan perencanaan ",12,"kali",null,{"$f":"SUM(I994:I999)","v":5070},null,"  "]
[null,null,"1)","Mempelajari pedoman pelaksaaan tugas.",null,1,null,30,30,null,"  "]
[null,null,"2)","Mengumpulkan bahan/data perencanaan  kegiatan ",null,12,null,60,720,null,"  "]
[null,null,"3)","Melaksanakan  kegiatan ",null,12,null,180,2160]
[null,null,"4)","Mengumpulkan bahan laporan  kegiatan ",null,12,null,90,1080]
[null,null,"5)","Melaporkan kegiatan kepada atasan",null,12,null,30,360]
[null,null,"6)","Menyiapkan bahan evaluasi ",null,12,null,60,720]
[]
[null,6,"Menyiapkan bahan rencana dan menyelenggarakan pelaksanaan urusan pemerintahan yang dilimpahkan oleh Bupati sesuai dengan bidangnya.",null,"Pelaksanaan kegiatan",12,"kali",null,{"$f":"SUM(I1002:I1006)","v":4710},null,"  "]
[null,null,"1)","Mempelajari pedoman pelaksaaan tugas.",null,1,null,30,30,null,"  "]
[null,null,"2)","Mengumpulkan bahan/data perencanaan ",null,12,null,90,1080,null,"  "]
[null,null,"3)","Melaksanakan  tugas",null,12,null,180,2160]
[null,null,"4)","Mengumpulkan bahan laporan pelaksanaan  tugas",null,12,null,90,1080]
[null,null,"5)","Melaporkan pelaksanaan tugas kepada atasan",null,12,null,30,360]
[]
[null,7,"Menyiapkan administrasi pelaksanaan musrenbang Kelurahan",null,"Kegiatan musrenbangkel",1,"kegiatan",null,{"$f":"SUM(I1009:I1016)","v":1890},null,"  "]
[null,null,"1)","Mempelajari pedoman pelaksaaan tugas.",null,1,null,30,30,null,"  "]
[null,null,"2)","Menghimpun data / bahan musrenbangkel",null,1,null,180,180,null,"  "]
[null,null,"3)","Menyiapkan administrasi musrenbang di Lingkungan",null,10,null,120,1200]
[null,null,"4)","Menghimpun usulan musrenbang dari Lingkungan dan instansi lain",null,1,null,180,180]
[null,null,"5)","Menyiapkan administrasi musrenbangkel",null,1,null,120,120]
[null,null,"6)","Menghimpun bahan/data laporan musrenbangkel",null,1,null,90,90]
[null,null,"7)","Melaporkan hasil kegiatan musrenbangkel kepada atasan",null,1,null,30,30]
[null,null,"8)","Menyiapkan bahan evaluasi  pelaksanaan musrenbangkel",null,1,null,60,60]
[]
[null,8,"Melaksanakan penyusunan profil kelurahan ",null,"Kegiatan penyusunan profil kelurahan",1,"dokumen",null,{"$f":"SUM(I1019:I1021)","v":690},null,"  "]
[null,null,"1)","Mempelajari pedoman pelaksaaan tugas.",null,1,null,30,30,null,"  "]
[null,null,"2)","Menghimpun data/bahan penyusunan profil kelurahan",null,10,null,60,600,null,"  "]
[null,null,"3)","Menyiapkan bahan evaluasi penyusunan profil kelurahan",null,1,null,60,60,null,"  "]
[]
[null,9,"Melaksanakan tugas - tugas lain di bidang pemberdayaan masyarakat  sesuai  dengan peraturan perundang-undangan ",null,"Pelaksanaan kegiatan",12,"kali",null,{"$f":"SUM(I1024:I1028)","v":3630}]
[null,null,"1)","Mempelajari pedoman pelaksaaan tugas.",null,1,null,30,30,null,"  "]
[null,null,"2)","Menghimpun data/bahan   pelaksanaan tugas lain",null,12,null,60,720,null,"  "]
[null,null,"3)","Melaksanakan tugas ",null,12,null,120,1440]
[null,null,"4)","Menghimpun data/bahan penyusunan laporan pelaksanaan tugas",null,12,null,90,1080]
[null,null,"5)","Menyampaikan laporan pelaksanaan tugas",null,12,null,30,360]
[]
[null,"10)","Menyiapkan bahan monitoring, pengendalian, pengawasan dan evaluasi penyelenggaraan bidang pemberdayaan masyarakat dan  pemeliharaan prasarana dan fasilitas pelayanan umum serta pelaksanaan urusan pemerintahan   yang dilimpahkan oleh Bupati sesuai dengan bidangnya.  ",null,"Kegiatan monitoring, pengendalian, pengawasan dan evaluasi",12,"kali",null,{"$f":"SUM(I1031:I1032)","v":1110}]
[null,null,"1)","Mempelajari pedoman pelaksaaan tugas.",null,1,null,30,{"$f":"F1031*H1031","v":30}]
[null,null,"2)","Mengumpulkan data / bahan kegiatan ",null,12,null,90,{"$f":"F1032*H1032","v":1080}]
[]
[null,11,"Menyusun bahan laporan penyelenggaraan pemberdayaan masyarakat dan pemeliharaan   prasarana   dan fasilitas pelayanan umum   serta pelaksanaan urusan pemerintahan yang dilimpahkan oleh Bupati sesuai dengan bidangnya.",null,"Laporan kegiatan",12,"kali",null,{"$f":"SUM(I1035:I1037)","v":3270}]
[null,null,"1)","Mempelajari pedoman pelaksaaan tugas.",null,1,null,30,{"$f":"F1035*H1035","v":30}]
[null,null,"2)","Menghimpun bahan laporan",null,12,null,180,{"$f":"F1036*H1036","v":2160}]
[null,null,"3)","Menyiapkan bahan laporan ",null,12,null,90,1080]
[]
[null,"13)","Menyusun laporan pelaksanaan tugas sesuai ketentuan yang berlaku untuk pertanggungjawaban kinerja dan rencana yang akan datang.",null,"Laporan pelaksanaan tugas",12,"kali",null,{"$f":"SUM(I1040:I1043)","v":2880}]
[null,null,"1)","Mengumpulkan bahan laporan pelaksanaan tugas;",null,12,null,30,{"$f":"F1040*H1040","v":360}]
[null,null,"2)","Menganalisis bahan penyusunan laporan;",null,12,null,90,{"$f":"F1041*H1041","v":1080}]
[null,null,"3)","Membuat laporan pelaksanaan tugas;",null,12,null,90,1080]
[null,null,"4)","Menyampaikan laporan kepada atasan;",null,12,null,30,360]
[]
[null,"14)","Melaksanakan tugas kedinasan lain yang diperintahkan oleh pimpinan baik lisan maupun tertulis.",null,"Kegiatan tugas kedinasan lain",12,"kali",null,{"$f":"SUM(I1046:I1048)","v":1620}]
[null,null,"1)","Mempelajari tugas;",null,12,null,30,{"$f":"F1046*H1046","v":360}]
[null,null,"2)","Menjalankan tugas;",null,12,null,90,{"$f":"F1047*H1047","v":1080}]
[null,null,"3)","Melaporkan hasil pelaksanaan tugas.",null,12,null,15,180]
[{"$nulls":3},"jumlah",{"$nulls":4},{"$f":"I969+I976+I981+I987+I993+I1001+I1008+I1018+I1023+I1030+I1034+I1039+I1045","v":29700},null,"  "]
[]
["I.3","TEKNIK MENENGAH"]
[null,1,"Merencanakan kegiatan yang menjadi tugasnya sesuai program kerja Seksi Pemberdayaan Masyarakat dan ketentuan yang berlaku untuk pedoman pelaksanaan tugas.",null,"Program Kerja",1,"dokumen",null,420,"Pengadminis- trasi ","Tugas teknik tinggi yang"]
[null,null,"1)","Mempelajari pedoman pelaksanaan tugas.",null,1,null,60,{"$f":"F1053*H1053","v":60},"Pemberdayaan","digabung "]
[null,null,"2)","Mempelajari Program Kerja Seksi Pemberdayaan Masyarakat",null,1,null,120,{"$f":"F1054*H1054","v":120},"Perempuan,","dengan tugas"]
[null,null,"3)","Menyusun konsep rencana kegiatan Seksi Pemberdayaan Masyarakat",null,1,null,120,120,"Organisasi","teknik "]
[null,null,"4)","Mengkonsultasikan konsep rencana kegiatan dengan pimpinan untuk mendapatkan pengarahan;",null,1,null,60,60,"Perempuan dan","menengah dan"]
[null,null,"5)","Menetapkan rencana kegiatan Seksi Pemberdayaan Masyarakat",null,1,null,60,60,"Partisipasi ","tugas teknik ",null,null,{"$f":"I1049+I1125+I1176","v":62550}]
[{"$nulls":9},"Masyarakat","rendah"]
[null,2,"Melaksanakan tugas Seksi Pemberdayaan Masyarakat",null,"Kegiatan menghimpun saran dan masukan",12,"kali",null,1470,null,"  "]
[null,null,"1)","Mempelajari pedoman pelaksanaan tugas.",null,1,null,30,30,null,"  "]
[null,null,"2)","Menghimpun saran dan masukan",null,12,null,60,720,null,"  "]
[null,null,"3)","Menentukan target waktu penyelesaian;",null,12,null,60,720,null,"  "]
[]
[null,3,"Memfasilitasi agar pekerjaan berjalan tertib dan lancar",null,"Kegiatan konsultasi permasalahan",12,"kali",null,1470,null,"  "]
[null,null,"1)","Mempelajari pedoman pelaksanaan tugas.",null,1,null,30,30,null,"  "]
[null,null,"2)","Menghimpun kesulitan yang dialami ",null,12,null,30,360,null,"  "]
[null,null,"3)","Mengkoordinasikan pelaksanaan tugas;",null,12,null,60,720,null,"  "]
[null,null,"4)","Mengkonsultasikan permasalahan kepada pimpinan;",null,12,null,30,360]
[]
[null,4,"Memfasilitasi pencapaian target pelaksanaan tugas",null,"Kegiatan koordinasi pelaksanaan tugas",12,"kali",null,1470,null,"  "]
[null,null,"1)","Mempelajari pedoman pelaksanaan tugas.",null,1,null,30,30,null,"  "]
[null,null,"2)","Menghimpun kesulitan yang dialami",null,12,null,30,360,null,"  "]
[null,null,"3)","Mengkoordinasikan pelaksanaan tugas;",null,12,null,60,720,null,"  "]
[null,null,"4)","Mengkonsultasikan permasalahan kepada pimpinan;",null,12,null,30,360]
[]
[null,5,"Menyiapkan bahan rencana dan melaksanakan pemberdayaan masyarakat, fasilitasi pembangunan kelurahan dan penguatan kapasitas lembaga kemasyarakatan kelurahan antara lain Lembaga Pemberdayaan Masyarakat Kelurahan, Lembaga Pemberdayaan Perempuan dan Keluarga, Karang Taruna, Rukun Warga, Rukun Tetangga dan lembaga lainnya (atau nama lain).",null,"Kegiatan perencanaan",12,"kali",null,{"$f":"SUM(I1077:I1080)","v":2550},null,"  "]
[null,null,"1)","Mempelajari pedoman pelaksaaan tugas.",null,1,null,30,30,null,"  "]
[null,null,"2)","Melaksanakan  kegiatan",null,12,null,120,1440]
[null,null,"3)","Mengetik laporan kegiatan  ",null,12,null,60,720]
[null,null,"4)","Melaporkan kegiatan  kepada atasan",null,12,null,30,360]
[]
[null,6,"Menyiapkan bahan rencana dan menyelenggarakan pelaksanaan urusan pemerintahan yang dilimpahkan oleh Bupati sesuai dengan bidangnya.",null,"Pelaksanaan kegiatan",12,"kali",null,{"$f":"SUM(I1083:I1086)","v":2550},null,"  "]
[null,null,"1)","Mempelajari pedoman pelaksanaan tugas.",null,1,null,30,30,null,"  "]
[null,null,"2)","Melaksanakan  tugas",null,12,null,120,1440,null,"  "]
[null,null,"3)","Mengetik laporan pelaksanaan tugas",null,12,null,60,720,null,"  "]
[null,null,"4)","Melaporkan pelaksanaan tugas kepada atasan",null,12,null,30,360]
[]
[null,7,"Menyiapkan administrasi pelaksanaan musrenbang Kelurahan",null,"Kegiatan Musrenbangkel",1,"kali",null,{"$f":"SUM(I1089:I1094)","v":510},null,"  "]
[null,null,"1)","Mempelajari pedoman pelaksaaan tugas.",null,1,null,30,30,null,"  "]
[null,null,"2)","Menghimpun data / bahan musrenbangkel",null,1,null,120,120]
[null,null,"3)","Mengetik jadwal musrenbang di Lingkungan",null,1,null,30,30]
[null,null,"4)","Mengetik usulan musrenbang dari Lingkungan dan instansi lain",null,1,null,150,150]
[null,null,"5)","Mengetik laporan musrenbangkel",null,1,null,150,150]
[null,null,"6)","Melaporkan hasil kegiatan musrenbangkel kepada atasan",null,1,null,30,30]
[]
[null,8,"Melaksanakan penyusunan profil kelurahan ",null,"Dokumen profil Kelurahan",1,"dokumen",null,{"$f":"SUM(I1097:I1098)","v":630},null,"  "]
[null,null,"1)","Mempelajari pedoman pelaksaaan tugas.",null,1,null,30,30,null,"  "]
[null,null,"2)","Menghimpun  data/bahan penyusunan profil kelurahan",null,10,null,60,600,null,"  "]
[]
[null,9,"Melaksanakan tugas - tugas lain di bidang pemberdayaan masyarakat  sesuai  dengan peraturan perundang-undangan ",null,"Pelaksanaan kegiatan",12,"kali",null,{"$f":"SUM(I1101:I1104)","v":2550},null,"  "]
[null,null,"1)","Mempelajari pedoman pelaksaaan tugas.",null,1,null,30,30,null,"  "]
[null,null,"2)","Melaksanakan tugas ",null,12,null,120,1440]
[null,null,"3)","Mengetik laporan  pelaksanaan tugas ",null,12,null,60,720]
[null,null,"4)","Menyampaikan laporan pelaksanaan tugas",null,12,null,30,360]
[]
[null,10,"Mengadministrasikan kegiatan monitoring, pengendalian, pengawasan dan evaluasi penyelenggaraan bidang pemberdayaan masyarakat dan  pemeliharaan prasarana dan fasilitas pelayanan umum serta pelaksanaan urusan pemerintahan   yang dilimpahkan oleh Bupati sesuai dengan bidangnya.  ",null,"Kegiatan monitoring, pengendalian, pengawasan dan evaluasi",12,"kali",null,{"$f":"SUM(I1107:I1109)","v":1110}]
[null,null,"1)","Mempelajari pedoman pelaksaaan tugas.",null,1,null,30,{"$f":"F1107*H1107","v":30}]
[null,null,"2)","Mengetik jadwal kegiatan",null,12,null,30,{"$f":"F1108*H1108","v":360}]
[null,null,"3)","Mengetik laporan hasil kegiatan ",null,12,null,60,720]
[]
[null,11,"Menyusun bahan laporan penyelenggaraan pemberdayaan masyarakat dan pemeliharaan   prasarana   dan fasilitas pelayanan umum   serta pelaksanaan urusan pemerintahan yang dilimpahkan oleh Bupati sesuai dengan bidangnya.",null,"Bahan laporan kegiatan",12,"kali",null,{"$f":"SUM(I1112:I1113)","v":390}]
[null,null,"1)","Mempelajari pedoman pelaksaaan tugas.",null,1,null,30,{"$f":"F1112*H1112","v":30}]
[null,null,"2)","Menyampaikan bahan laporan ",null,12,null,30,{"$f":"F1113*H1113","v":360}]
[]
[null,13,"Menyusun laporan pelaksanaan tugas sesuai ketentuan yang berlaku untuk pertanggungjawaban kinerja dan rencana yang akan datang.",null,"Laporan pelaksanaan tugas",12,"kali",null,{"$f":"SUM(I1116:I1119)","v":2880}]
[null,null,"1)","Mengumpulkan bahan laporan pelaksanaan tugas;",null,12,null,30,{"$f":"F1116*H1116","v":360}]
[null,null,"2)","Menganalisis bahan penyusunan laporan;",null,12,null,90,{"$f":"F1117*H1117","v":1080}]
[null,null,"3)","Membuat laporan pelaksanaan tugas;",null,12,null,90,1080]
[null,null,"4)","Menyampaikan laporan kepada atasan;",null,12,null,30,360]
[]
[null,14,"Melaksanakan tugas kedinasan lain yang diperintahkan oleh pimpinan baik lisan maupun tertulis.",null,"Kegiatan tugas kedinasan lain",24,"kali",null,{"$f":"SUM(I1122:I1124)","v":3240}]
[null,null,"1)","Mempelajari tugas;",null,24,null,30,{"$f":"F1122*H1122","v":720}]
[null,null,"2)","Menjalankan tugas;",null,24,null,90,{"$f":"F1123*H1123","v":2160},null,"  "]
[null,null,"3)","Melaporkan hasil pelaksanaan tugas.",null,24,null,15,360,null,"  "]
[{"$nulls":3},"jumlah",{"$nulls":4},{"$f":"I1052+I1059+I1064+I1070+I1076+I1082+I1088+I1096+I1100+I1106+I1111+I1115+I1121","v":21240}]
[]
["I.4","TEKNIK RENDAH"]
[null,1,"Merencanakan kegiatan yang menjadi tugasnya sesuai program kerja Seksi Pemberdayaan Masyarakat dan ketentuan yang berlaku untuk pedoman pelaksanaan tugas.",null,"Program Kerja",1,"dokumen",null,420,null,"Tidak memenuhi"]
[null,null,"1)","Mempelajari pedoman pelaksanaan tugas.",null,1,null,60,{"$f":"F1129*H1129","v":60},null,"beban kerja"]
[null,null,"2)","Mempelajari Program Kerja Seksi Pemberdayaan Masyarakat",null,1,null,120,{"$f":"F1130*H1130","v":120},null,"untuk 1 (satu)"]
[null,null,"3)","Menyusun konsep rencana kegiatan Seksi Pemberdayaan Masyarakat",null,1,null,120,120,null,"jabatan, maka"]
[null,null,"4)","Mengkonsultasikan konsep rencana kegiatan dengan pimpinan untuk mendapatkan pengarahan;",null,1,null,60,60,null,"digabung"]
[null,null,"5)","Menetapkan rencana kegiatan Seksi Pemberdayaan Masyarakat",null,1,null,60,60,null,"dengan tugas "]
[{"$nulls":10},"teknik tinggi dan"]
[null,2,"Melaksanakan tugas Seksi Pemberdayaan Masyarakat",null,"Kegiatan menghimpun saran dan masukan",12,"kali",null,1470,null,"tugas teknik"]
[null,null,"1)","Mempelajari pedoman pelaksanaan tugas.",null,1,null,30,30,null,"menengah"]
[null,null,"2)","Menyampaikan saran dan masukan",null,12,null,60,720,null,"  "]
[null,null,"3)","Menentukan target waktu penyelesaian;",null,12,null,60,720,null,"  "]
[]
[null,3,"Memfasilitasi agar pekerjaan berjalan tertib dan lancar",null,"Kegiatan konsultasi permasalahan",12,"kali",null,1470,null,"  "]
[null,null,"1)","Mempelajari pedoman pelaksanaan tugas.",null,1,null,30,30,null,"  "]
[null,null,"2)","Menyampaikan kesulitan yang dialami ",null,12,null,30,360,null,"  "]
[null,null,"3)","Mengkoordinasikan pelaksanaan tugas;",null,12,null,60,720,null,"  "]
[null,null,"4)","Mengkonsultasikan permasalahan kepada pimpinan;",null,12,null,30,360]
[]
[null,4,"Memfasilitasi pencapaian target pelaksanaan tugas",null,"Kegiatan koordinasi pelaksanaan tugas",12,"kali",null,1470,null,"  "]
[null,null,"1)","Mempelajari pedoman pelaksanaan tugas.",null,1,null,30,30,null,"  "]
[null,null,"2)","Menyampaikan kesulitan yang dialami",null,12,null,30,360,null,"  "]
[null,null,"3)","Mengkoordinasikan pelaksanaan tugas;",null,12,null,60,720,null,"  "]
[null,null,"4)","Mengkonsultasikan permasalahan kepada pimpinan;",null,12,null,30,360]
[]
[null,7,"Menyiapkan perlengkapan musrenbangkel",null,"Kegiatan musrenbangkel",1,"Kegiatan",null,{"$f":"SUM(I1153:I1156)","v":300},null,"  "]
[null,null,"1)","Mempelajari pedoman pelaksaaan tugas.",null,1,null,30,30,null,"  "]
[null,null,"2)","Mengirimkan undangan kepada peserta musrenbangkel",null,1,null,120,120]
[null,null,"3)","Menyiapkan tata tempat musrenbangkel",null,1,null,120,120]
[null,null,"4)","Melaporkan hasil kegiatan musrenbangkel kepada atasan",null,1,null,30,30]
[]
[null,8,"Melaksanakan penyusunan profil kelurahan ",null,"Kegiatan penyusunan profil kelurahan",1,"kegiatan",null,{"$f":"SUM(I1159:I1161)","v":690},null,"  "]
[null,null,"1)","Mempelajari pedoman pelaksaaan tugas.",null,1,null,30,30,null,"  "]
[null,null,"2)","Menghimpun  data/bahan penyusunan profil kelurahan",null,10,null,60,600,null,"  "]
[null,null,"3)","Mengirimkan hasil penyusunan profil kelurahan kepada instansi terkait",null,1,null,60,60,null,"  "]
[]
[null,11,"Menyusun bahan laporan penyelenggaraan pemberdayaan masyarakat dan pemeliharaan   prasarana   dan fasilitas pelayanan umum   serta pelaksanaan urusan pemerintahan yang dilimpahkan oleh Bupati sesuai dengan bidangnya.",null,"Bahan penyusunan laporan kegiatan",12,"kali",null,{"$f":"SUM(I1164:I1165)","v":750},null,"  "]
[null,null,"1)","Mempelajari pedoman pelaksaaan tugas.",null,1,null,30,30,null,"  "]
[null,null,"2)","Menyampaikan bahan laporan ",null,12,null,60,720,null,"  "]
[]
[null,13,"Menyusun laporan pelaksanaan tugas sesuai ketentuan yang berlaku untuk pertanggungjawaban kinerja dan rencana yang akan datang.",null,"Laporan pelaksanaan tugas",12,"kali",null,{"$f":"SUM(I1168:I1170)","v":1800}]
[null,null,"1)","Mengumpulkan bahan laporan pelaksanaan tugas;",null,12,null,30,{"$f":"F1168*H1168","v":360}]
[null,null,"2)","Membuat laporan pelaksanaan tugas;",null,12,null,90,{"$f":"F1169*H1169","v":1080}]
[null,null,"3)","Menyampaikan laporan kepada atasan;",null,12,null,30,360]
[]
[null,14,"Melaksanakan tugas kedinasan lain yang diperintahkan oleh pimpinan baik lisan maupun tertulis.",null,"Kegiatan tugas kedinasan lain",24,"kali",null,{"$f":"SUM(I1173:I1175)","v":3240},null,"  "]
[null,null,"1)","Mempelajari tugas;",null,24,null,30,720,null,"  "]
[null,null,"2)","Menjalankan tugas;",null,24,null,90,2160,null,"  "]
[null,null,"3)","Melaporkan hasil pelaksanaan tugas.",null,24,null,15,360]
[null,"jumlah",{"$nulls":6},{"$f":"I1128+I1135+I1140+I1146+I1152+I1158+I1163+I1167+I1172","v":11610}]
["I.1","KONSEPTUAL DAN MANAGERIAL (ESELON 4)",{"$nulls":7},"Kepala Seksi"]
[null,1,"Merencanakan kegiatan Seksi Tramtibum dan Kesra sesuai program kerja Seksi Tramtibum Dan Kesra dan ketentuan yang berlaku untuk pedoman pelaksanaan tugas.",null,"Program Kerja",1,"dokumen",null,390,"Tramtibum dan Kesra","  "]
[null,null,"1)","Mempelajari pedoman pelaksanaan tugas.",null,1,null,30,{"$f":"F1179*H1179","v":30}]
[null,null,"2)","Menelaah Program Kerja Seksi Tramtibum dan Kesra",null,1,null,120,{"$f":"F1180*H1180","v":120},null,"  "]
[null,null,"3)","Menyusun konsep rencana kegiatan Seksi Tramtibum Dan Kesra",null,1,null,120,120,null,"  "]
[null,null,"4)","Mengkonsultasikan konsep rencana kegiatan dengan pimpinan untuk mendapatkan pengarahan;",null,1,null,60,60,null,"  "]
[null,null,"5)","Menetapkan rencana kegiatan Seksi Tramtibum Dan Kesra",null,1,null,60,60]
[]
[null,2,"Membagi tugas kepada bawahan di lingkungan Seksi Tramtibum Dan Kesra sesuai dengan beban kerja dan tanggung jawab masing-masing untuk kelancaran pelaksanaan tugas.",null,"Distribusi Tugas",12,"dokumen",null,2400]
[null,null,"1)","Menjabarkan rencana kegiatan menjadi tugas-tugas yang harus dilaksanakan bawahan;",null,1,null,120,120,null,"  "]
[null,null,"2)","Memaparkan rencana kegiatan Seksi Tramtibum Dan Kesra",null,1,null,120,120,null,"  "]
[null,null,"3)","Menghimpun saran dan masukan dari bawahan;",null,12,null,60,720,null,"  "]
[null,null,"4)","Memberikan petunjuk pelaksanaan tugas kepada bawahan;",null,12,null,60,720,null,"  "]
[null,null,"5)","Menentukan target waktu penyelesaian.",null,12,null,60,720]
[]
[null,3,"Memberi petunjuk, membimbing dan mengkoordinasikan pelaksanaan tugas bawahan di lingkungan Seksi Tramtibum Dan Kesra setiap saat sesuai dengan tugas dan tanggung jawabnya agar pekerjaan berjalan tertib dan lancar.",null,"Kegiatan Bimbingan dan Koordinasi",12,"kali",null,1800]
[null,null,"1)","Menjelaskan tugas yang akan dilaksanakan bawahan;",null,12,null,30,360,null,"  "]
[null,null,"2)","Mengidentifikasi kesulitan yang dialami bawahan;",null,12,null,30,360,null,"  "]
[null,null,"3)","Menganalisis permasalahan bersama pimpinan untuk menentukan solusi terbaik;",null,12,null,60,720,null,"  "]
[null,null,"4)","Memberikan arahan kepada bawahan terkait permasalahan yang dialami.",null,12,null,30,360,null,"  "]
[]
[null,4,"Memeriksa hasil kerja bawahan di lingkungan Seksi Tramtibum Dan Kesra sesuai dengan prosedur dan peraturan yang berlaku agar terhindar dari kesalahan.",null,"Kegiatan Pemeriksaan",12,"kali",null,2220]
[null,null,"1)","Menelaah hasil kerja yang dilakukan bawahan;",null,12,null,60,720]
[null,null,"2)","Menentukan standar kualitas dan/atau kuantitas hasil kerja;",null,1,null,60,60,null,"  "]
[null,null,"3)","Mengidentifikasi kesalahan dalam hasil kerja sesuai dengan prosedur yang telah ditentukan;",null,12,null,30,360,null,"  "]
[null,null,"4)","Membuat koreksi pada hasil kerja berupa catatan tertulis;",null,12,null,30,360,null,"  "]
[null,null,"5)","Memberikan arahan terkait koreksi hasil kerja bawahan.",null,12,null,60,720,null,"  "]
[]
[null,5,"Menyiapkan bahan rencana dan melaksanakan penyelenggaraan ketentraman dan ketertiban umum di wilayah kerja kelurahan.",null,"Pelaksanaan kegiatan tramtibum",12,"kali",null,{"$f":"SUM(I1206:I1213)","v":8700},null,"  "]
[null,null,"1)","Mempelajari pedoman pelaksaaan tugas.",null,1,null,60,60,null,"  "]
[null,null,"2)","Merencanakan kegiatan",null,12,null,90,1080]
[null,null,"3)","Memberikan petunjuk pelaksanaan tugas",null,12,null,90,1080]
[null,null,"4)","Mengkoordinir pelaksanaan tugas",null,12,null,120,1440]
[null,null,"5)","Melaksanakan tugas",null,12,null,180,2160]
[null,null,"6)","Menyusun laporkan kegiatan",null,12,null,120,1440]
[null,null,"7)","Melaporkan kegiatan kepada atasan",null,12,null,30,360]
[null,null,"8)","Mengevaluasi kegiatan",null,12,null,90,1080]
[]
[null,6,"Menyiapkan bahan rencana dan melaksanakan kegiatan kesejahteraan rakyat antara lain di bidang agama, pendidikan, kesehatan, ketenagakerjaan, bantuan sosial, penanganan masalah kesejahteraan sosial dan penanggulangan kemiskinan.",null,"Pelaksanaan kegiatan kesra",12,"Kali",null,{"$f":"SUM(I1216:I1223)","v":8700},null,"  "]
[null,null,"1)","Mempelajari pedoman pelaksaaan tugas.",null,1,null,60,60,null,"  "]
[null,null,"2)","Merencanakan kegiatan",null,12,null,90,1080]
[null,null,"3)","Memberikan petunjuk pelaksanaan kegiatan",null,12,null,90,1080]
[null,null,"4)","Mengkoordinir pelaksanaan kegiatan",null,12,null,120,1440]
[null,null,"5)","Melaksanakankegiatan",null,12,null,180,2160]
[null,null,"6)","Menyusun laporan kegiatan",null,12,null,120,1440]
[null,null,"7)","Melaporkan hasil kegiatan kepada atasan",null,12,null,30,360]
[null,null,"8)","Mengevaluasi kegiatan",null,12,null,90,1080]
[]
[null,7,"Melaksanakan koordinasi ke atas dengan Camat, Kepolisian Sektor (Polsek) dan / atau Komando Rayon Militer (KORAMIL) mengenai program dan kegiatan penyelenggaraan ketentraman dan ketertiban umum di wilayah kerja kelurahan.",null,"Sinkronisasi program tramtibum",12,"Kali",null,{"$f":"SUM(I1226:I1230)","v":4350},null,"  "]
[null,null,"1)","Mempelajari pedoman pelaksaaan tugas.",null,1,null,30,30,null,"  "]
[null,null,"2)","Mengkoordinir penyiapan  bahan koordinasi ",null,12,null,60,720,null,"  "]
[null,null,"3)","Melaksanakan koordinasi",null,12,null,180,{"$f":"F1228*H1228","v":2160},null,"  "]
[null,null,"4)","Menyusun laporan hasil koordinasi",null,12,null,90,1080]
[null,null,"5)","Melaporkan hasil koordinasi kepada atasan",null,12,null,30,360]
[]
[null,8,"Menjalin komunikasi yang intensif dengan tokoh masyarakat / pemuka agama yang berada di wilayah kerja kelurahan untuk mewujudkan ketentraman dan ketertiban umum masyarakat di wilayah kerja kelurahan",null,"Kegiatan komunikasi",12,"Kali",null,{"$f":"SUM(I1233:I1237)","v":3390},null,"  "]
[null,null,"1)","Mempelajari pedoman pelaksaaan tugas.",null,1,null,30,30,null,"  "]
[null,null,"2)","Merencanakan kegiatan",null,12,null,60,720,null,"  "]
[null,null,"3)","Mengkoordinir penyusunan  data tokoh/pemuka agama dan tokoh masyarakat",null,1,null,120,120,null,"  "]
[null,null,"4)","Melaksanakan komunikasi",null,12,null,180,2160]
[null,null,"5)","Melaporkan hasil kegiatan kepada atasan",null,12,null,30,360]
[]
[null,9,"Melaksanakan koordinasi teknis dengan Satuan Polisi Pamong Praja mengenai penegakan Peraturan Daerah, Peraturan Bupati dan Keputusan Bupati",null,"Kegiatan koordinasi penegakan perda",6,"Kali",null,{"$f":"SUM(I1240:I1244)","v":1980},null,"  "]
[null,null,"1)","Mempelajari pedoman pelaksaaan tugas.",null,6,null,30,180,null,"  "]
[null,null,"2)","Menyiapkan data / bahan koordinasi",null,6,null,60,360,null,"  "]
[null,null,"3)","Melaksanakan koordinasi",null,6,null,120,720,null,"  "]
[null,null,"4)","Menyusun laporan hasil koordinasi",null,6,null,90,540]
[null,null,"5)","Melaporkan hasil koordinasi",null,6,null,30,180]
[]
[null,10,"Melaksanakan upaya preventif dalam penanggulangan penyakit masyarakat",null,"Kegiatan penanggulangan penyakit masyarakat",2,"Kali",null,{"$f":"SUM(I1247:I1252)","v":840},null,"  "]
[null,null,"1)","Mempelajari pedoman pelaksaaan tugas.",null,1,null,30,30,null,"  "]
[null,null,"2)","Merencanakan kegiatan pembinaan  ",null,1,null,60,60,null,"  "]
[null,null,"3)","Mengkoordinir penyiapan data pembinaan  ",null,1,null,120,120,null,"  "]
[null,null,"4)","Melaksanakan pembinaan",null,2,null,180,360]
[null,null,"5)","Menyusun laporan pembinaan",null,2,null,120,240]
[null,null,"6)","Melaporkan hasil pembinaan kepada atasan",null,1,null,30,30]
[]
[null,11,"Melaksanakan koordinasi teknis dengan Camat, Satuan Polisi Pamong Praja, Polsek dan / atau Koramil  mengenai penanggulangan penyakit masyarakat",null,"Kegiatan koordinasi",12,"kali",null,{"$f":"SUM(I1255:I1259)","v":4710},null,"  "]
[null,null,"1)","Mempelajari pedoman pelaksaaan tugas.",null,1,null,30,30,null,"  "]
[null,null,"2)","Menyiapkan data / bahan koordinasi",null,12,null,60,720,null,"  "]
[null,null,"3)","Melaksanakan koordinasi",null,12,null,180,2160,null,"  "]
[null,null,"4)","Menyusun laporan hasil koodinasi",null,12,null,120,1440]
[null,null,"5)","Melaporkan hasil koordinasi kepada atasan",null,12,null,30,360]
[]
[null,12,"Melaksanakan upaya pengamanan atas aset pemerintah kabupaten di lingkungan perkantoran kelurahan.",null,"Kegiatan pengamanan aset",24,"Kali",null,{"$f":"SUM(I1262:I1268)","v":9810}]
[null,null,"1)","Mempelajari pedoman pelaksaaan tugas.",null,1,null,30,30]
[null,null,"2)","Merencanakan kegiatan pengamanan aset",null,1,null,120,120]
[null,null,"3)","Mengkoordinir penyiapan data aset pemerintah ",null,1,null,180,180]
[null,null,"4)","Mengarahkan upaya pengamanan aset",null,1,null,120,120]
[null,null,"5)","Melaksanakan pengamanan aset",null,24,null,240,5760]
[null,null,"6)","Memonitor pengamanan set",null,24,null,120,2880]
[null,null,"7)","Melaporkan kegiatan pengamanan aset kepada atasan",null,24,null,30,720]
[]
[null,13,"Melaksanakan pemantauan terhadap hal-hal yang memungkinkan terjadinya gangguan ketentraman dan ketertiban umum.",null,"Kegiatan pemantauan tramtibum",24,"kali",null,{"$f":"SUM(I1271:I1276)","v":7950}]
[null,null,"1)","Mempelajari pedoman pelaksaaan tugas.",null,1,null,30,30]
[null,null,"2)","Merencanakan kegiatan pemantauan",null,24,null,60,1440]
[null,null,"3)","Menyiapkan data / bahan dalam kegiatan pemantauan",null,24,null,60,1440]
[null,null,"4)","Melaksanakan pemantauan",null,24,null,120,2880]
[null,null,"5)","Menyusun laporan pemantauan",null,24,null,60,1440]
[null,null,"6)","Melaporkan hasil pemantauan kepada atasan",null,24,null,30,720]
[]
[null,14,"Melaksanakan koordinasi teknis dengan SKPD yang membidangi penanggulangan gangguan ketentraman dan ketertiban umum.",null,"Kegiatan koordinasi Penanggulangan gangguan tramtibum",4,"kali",null,{"$f":"SUM(I1279:I1283)","v":1110}]
[null,null,"1)","Mempelajari pedoman pelaksaaan tugas.",null,1,null,30,30]
[null,null,"2)","Menyiapkan data / bahan kordinasi",null,4,null,60,240]
[null,null,"3)","Melaksanakan koordinasi",null,4,null,120,480]
[null,null,"4)","Menyusun laporan hasil koordinasi",null,4,null,60,240]
[null,null,"5)","Melaporkan hasil koordinasi kepada atasan",null,4,null,30,120]
[]
[null,15,"Melaksanakan koordinasi teknis mengenai pengamanan tamu daerah yang berkunjung di wilayah kerja kelurahan.",null,"Kegiatan koordinasi pengamanan tamu daerah",3,"kali",null,{"$f":"SUM(I1286:I1290)","v":840}]
[null,null,"1)","Mempelajari pedoman pelaksaaan tugas.",null,1,null,30,30]
[null,null,"2)","Menyiapkan data / bahan kordinasi",null,3,null,60,180]
[null,null,"3)","Melaksanakan koordinasi",null,3,null,120,360]
[null,null,"4)","Menyusun laporan hasil koordinasi",null,3,null,60,180]
[null,null,"5)","Melaporkan hasil koordinasi kepada atasan",null,3,null,30,90]
[]
[null,16,"Melaksanakan monitoring, pengendalian, pengawasan dan evaluasi penyelenggaraan ketentraman, ketertiban umum dan kesejahteraan rakyat",null,"Kegiatan monitoring dan evaluasi",12,"Kali",null,{"$f":"SUM(I1293:I1298)","v":4710}]
[null,null,"1)","Mempelajari pedoman pelaksaaan tugas.",null,1,null,30,30]
[null,null,"2)","Merencanakan kegiatan monitoring, pengendalian, pengawasan dan evaluasi",null,12,null,60,720]
[null,null,"3)","Menyiapkan data / bahan monitoring, pengendalian, pengawasan dan evaluasi",null,12,null,90,1080]
[null,null,"4)","Melaksanakan monitoring, pengendalian, pengawasan dan evaluasi",null,12,null,120,1440]
[null,null,"5)","Menyusun laporan kegiatan monitoring, pengendalian, pengawasan dan evaluasi",null,12,null,90,1080]
[null,null,"6)","Melaporkan hasil kegiatan monitoring, pengendalian, pengawasan dan evaluasi kepada atasan",null,12,null,30,360]
[]
[null,17,"Menyusun bahan laporan penyelenggaraan ketentraman, ketertiban umum dan kesejahteraan rakyat di wilayah kerja kelurahan.",null,"Bahan laporan tramtibum dan kesra",24,"kali",null,{"$f":"SUM(I1301:I1305)","v":5820}]
[null,null,"1)","Mempelajari pedoman pelaksaaan tugas.",null,2,null,30,{"$f":"F1301*H1301","v":60}]
[null,null,"2)","Mengkoordinir bahan laporan",null,24,null,60,{"$f":"F1302*H1302","v":1440}]
[null,null,"3)","Menganalisis bahan laporan",null,24,null,90,2160]
[null,null,"4)","Menyusun bahan  laporan  ",null,24,null,60,1440]
[null,null,"5)","Menyampaikan bahan laporan kepada atasan",null,24,null,30,720]
[]
[null,18,"Mengevaluasi pelaksanaan tugas di lingkungan Seksi Tramtibum Dan Kesra dengan cara mengidentifikasi hambatan yang ada dalam rangka perbaikan kinerja di masa mendatang.",null,"Kegiatan evaluasi",12,"kali",null,{"$f":"SUM(I1308:I1311)","v":2160},null,"  "]
[null,null,"1)","Mempelajari laporan pelaksanaan kegiatan bawahan;",null,12,null,30,360,null,"  "]
[null,null,"2)","Membandingkan target dengan realisasi pelaksanaan tugas;",null,12,null,60,720,null,"  "]
[null,null,"3)","Memberikan catatan atau penilaian pada hasil pelaksanaan tugas;",null,12,null,60,720,null,"  "]
[null,null,"4)","Memberikan langkah-langkah perbaikan dalam pelaksanaan kegiatan.",null,12,null,30,360]
[]
[null,19,"Menyusun laporan pelaksanaan kegiatan di lingkungan Seksi Tramtibum Dan Kesra sesuai prosedur dan peraturan yang berlaku untuk pertanggungjawaban kinerja dan rencana yang akan datang.",null,"Laporan Pelaksa naan Kegiatan",12,"dokumen",null,{"$f":"SUM(I1314:I1318)","v":3600}]
[null,null,"1)","Menganalisis laporan yang diterima dari bawahan;",null,12,null,60,720,null,"  "]
[null,null,"2)","Membahas bahan laporan;",null,12,null,60,720,null,"  "]
[null,null,"3)","Membuat konsep laporan hasil pelaksanaan tugas;",null,12,null,30,360,null,"  "]
[null,null,"4)","Mengkonsultasikan konsep laporan kepada atasan;",null,12,null,30,{"$f":"F1317*H1317","v":360},null,"  "]
[null,null,"5)","Memfinalisasi laporan pelaksanaan tugas.",null,12,null,120,1440]
[]
[null,20,"Melaksanakan tugas kedinasan lain yang diperintahkan oleh pimpinan baik lisan maupun tertulis.",null,"Kegiatan tugas ",24,"kali",null,{"$f":"SUM(I1321:I1323)","v":2550}]
[null,null,"1)","Mempelajari tugas;","kedinasan lain",1,null,30,30]
[null,null,"2)","Menjalankan tugas;",null,24,null,90,2160]
[null,null,"3)","Melaporkan hasil pelaksanaan tugas.",null,24,null,15,360]
[{"$nulls":3},"jumlah",{"$nulls":4},{"$f":"I1178+I1185+I1192+I1198+I1205+I1215+I1225+I1232+I1239+I1246+I1254+I1261+I1270+I1278+I1285+I1292+I1300+I1307+I1313+I1320","v":78030}]
["I.2","TEKNIK TINGGI"]
[null,1,"Merencanakan kegiatan yang menjadi tugasnya sesuai program kerja  Seksi Tramtibum Dan Kesra dan ketentuan yang berlaku untuk pedoman pelaksanaan tugas.",null,"Program Kerja",1,"dokumen",null,390,null,"Tidak memenuhi"]
[null,null,"1)","Mempelajari pedoman pelaksanaan tugas.",null,1,null,30,{"$f":"F1327*H1327","v":30},null,"beban kerja"]
[null,null,"2)","Mempelajari Program Kerja Seksi Tramtibum Dan Kesra",null,1,null,120,{"$f":"F1328*H1328","v":120},null,"untuk 1 (satu)"]
[null,null,"3)","Menyusun konsep rencana kegiatan Seksi Tramtibum Dan Kesra",null,1,null,120,120,null,"jabatan, maka"]
[null,null,"4)","Mengkonsultasikan konsep rencana kegiatan dengan pimpinan untuk mendapatkan pengarahan;",null,1,null,60,60,null,"digabung"]
[null,null,"5)","Menetapkan rencana kegiatan Seksi Tramtibum Dan Kesra",null,1,null,60,60,null,"dengan tugas"]
[{"$nulls":10},"teknik"]
[null,2,"Melaksanakan tugas seksi tratibum dan kesra",null,"Kegiatan menghimpun saran dan masukan",12,"Kali",null,1470,null,"menengah"]
[null,null,"1)","Mempelajari pedoman pelaksanaan tugas.",null,1,null,30,30,null,"  "]
[null,null,"2)","Menghimpun saran dan masukan",null,12,null,60,720]
[null,null,"3)","Menentukan target waktu penyelesaian;",null,12,null,60,720]
[]
[null,3,"Memfasilitasi agar pekerjaan berjalan tertib dan lancar",null,"Kegiatan konsultasi permasalahan",12,"Kali",null,1470,null,"  "]
[null,null,"1)","Mempelajari pedoman pelaksanaan tugas.",null,1,null,30,30,null,"  "]
[null,null,"2)","Menghimpun kesulitan yang dialami",null,12,null,30,360,null,"  "]
[null,null,"3)","Mengkoordinasikan pelaksanaan tugas;",null,12,null,60,720,null,"  "]
[null,null,"4)","Mengkonsultasikan permasalahan kepada pimpinan;",null,12,null,30,360]
[]
[null,4,"Memfasilitasi pencapaian target pelaksanaan tugas",null,"Kegiatan koordinasi pelaksanaan tugas",12,"Kali",null,1470,null,"  "]
[null,null,"1)","Mempelajari pedoman pelaksanaan tugas.",null,1,null,30,30,null,"  "]
[null,null,"2)","Menghimpun kesulitan yang dialami",null,12,null,30,360,null,"  "]
[null,null,"3)","Mengkoordinasikan pelaksanaan tugas;",null,12,null,60,720,null,"  "]
[null,null,"4)","Mengkonsultasikan permasalahan kepada pimpinan;",null,12,null,30,360]
[]
[null,5,"Menyiapkan bahan rencana  penyelenggaraan ketentraman dan ketertiban umum di wilayah kerja kelurahan.",null,"Kegiatan penyelenggaraan tramtibum",12,"Kali",null,{"$f":"SUM(I1351:I1355)","v":3990},null,"  "]
[null,null,"1)","Mempelajari pedoman pelaksaaan tugas.",null,1,null,30,30,null,"  "]
[null,null,"2)","Mengumpulkan bahan/data perencanaan",null,12,null,60,720]
[null,null,"3)","Melaksanakan tugas",null,12,null,180,2160]
[null,null,"4)","Mengumpulkan bahan laporan",null,12,null,60,720]
[null,null,"5)","Melaporan kegiatan kepada atasan",null,12,null,30,360]
[]
[null,6,"Menyiapkan bahan rencana  kegiatan kesejahteraan rakyat antara lain di bidang agama, pendidikan, kesehatan, ketenagakerjaan, bantuan sosial, penanganan masalah kesejahteraan sosial dan penanggulangan kemiskinan.",null,"Kegiatan kesejahteraan rakyat",12,"Kali",null,{"$f":"SUM(I1358:I1362)","v":3990},null,"  "]
[null,null,"1)","Mempelajari pedoman pelaksaaan tugas.",null,1,null,30,30]
[null,null,"2)","Mengumpulkan bahan/data perencanaan kegiatan",null,12,null,60,720]
[null,null,"3)","Melaksanakan kegiatan",null,12,null,180,2160]
[null,null,"4)","Mengumpulkan bahan laporan kegiatan",null,12,null,60,720]
[null,null,"5)","Melaporkan hasil kegiatan kepada atasan",null,12,null,30,360]
[]
[null,7,"Menyiapkan bahan koordinasi ke atas dengan Camat, Kepolisian Sektor (Polsek) dan / atau Komando Rayon Militer (KORAMIL) mengenai program dan kegiatan penyelenggaraan ketentraman dan ketertiban umum di wilayah kerja kelurahan.",null,"Sinkronisasi kegiatan tramtibum",12,"Kali",null,{"$f":"SUM(I1365:I1366)","v":390},null,"  "]
[null,null,"1)","Mempelajari pedoman pelaksaaan tugas.",null,1,null,30,30,null,"  "]
[null,null,"2)","Mengumpulkan  bahan  koordinasi ",null,12,null,30,360,null,"  "]
[]
[null,8,"Menjalin komunikasi yang intensif dengan tokoh masyarakat / pemuka agama yang berada di wilayah kerja kelurahan untuk mewujudkan ketentraman dan ketertiban umum masyarakat di wilayah kerja kelurahan",null,"Kegiatan  komunikasi",12,"Kali",null,{"$f":"SUM(I1369:I1371)","v":2250},null,"  "]
[null,null,"1)","Mempelajari pedoman pelaksaaan tugas.",null,1,null,30,30,null,"  "]
[null,null,"2)","Mengumpulkan  data tokoh/pemuka agama dan tokoh masyarakat",null,1,null,60,60,null,"  "]
[null,null,"3)","Melaksanakan komunikasi",null,12,null,180,2160]
[]
[null,9,"Menyiapkan bahan koordinasi teknis dengan Satuan Polisi Pamong Praja mengenai penegakan Peraturan Daerah, Peraturan Bupati dan Keputusan Bupati",null,"Sinkronisasi kegiatan",6,"Kali",null,{"$f":"SUM(I1374:I1375)","v":390},null,"  "]
[null,null,"1)","Mempelajari pedoman pelaksaaan tugas.",null,1,null,30,30,null,"  "]
[null,null,"2)","Mengumpulkan data / bahan koordinasi",null,6,null,60,{"$f":"F1375*H1375","v":360},null,"  "]
[]
[null,10,"Melaksanakan upaya preventif dalam penanggulangan penyakit masyarakat",null,"Kegiatan",2,"Kali",null,{"$f":"SUM(I1378:I1379)","v":150},null,"  "]
[null,null,"1)","Mempelajari pedoman pelaksaaan tugas.",null,1,null,30,30,null,"  "]
[null,null,"2)","Mengumpulkan  data untuk pembinaan  ",null,2,null,60,120,null,"  "]
[]
[null,11,"Menyiapkan bahan koordinasi teknis dengan Camat, Satuan Polisi Pamong Praja, Polsek dan / atau Koramil  mengenai penanggulangan penyakit masyarakat",null,"Kegiatan koordinasi",12,"Kali",null,{"$f":"SUM(I1382:I1383)","v":750},null,"  "]
[null,null,"1)","Mempelajari pedoman pelaksaaan tugas.",null,1,null,30,30,null,"  "]
[null,null,"2)","Mengumpulkan data / bahan koordinasi",null,12,null,60,720,null,"  "]
[]
[null,12,"Melaksanakan upaya pengamanan atas aset pemerintah kabupaten di lingkungan perkantoran kelurahan.",null,"Kegiatan pengamanan",24,"Kali",null,{"$f":"SUM(I1386:I1389)","v":6570},null,"  "]
[null,null,"1)","Mempelajari pedoman pelaksaaan tugas.",null,1,null,30,30,null,"  "]
[null,null,"2)","Mengumpulkan data aset pemerintah ",null,1,null,60,60,null,"  "]
[null,null,"3)","Melaksanakan pengamanan aset",null,24,null,240,5760]
[null,null,"4)","Melaporkan kegiatan pengamanan aset kepada atasan",null,24,null,30,720]
[]
[null,13,"Melaksanakan pemantauan terhadap hal-hal yang memungkinkan terjadinya gangguan ketentraman dan ketertiban umum.",null,"Kegiatan pemantauan",24,"Kali",null,{"$f":"SUM(I1392:I1394)","v":2190},null,"  "]
[null,null,"1)","Mempelajari pedoman pelaksaaan tugas.",null,1,null,30,30,null,"  "]
[null,null,"2)","Mengumpulkan data / bahan kegiatan pemantauan",null,24,null,30,720]
[null,null,"3)","Melaksanakan pemantauan",null,24,null,60,1440]
[]
[null,14,"Menyiapkan bahan  koordinasi teknis dengan SKPD yang membidangi penanggulangan gangguan ketentraman dan ketertiban umum.",null,"Kegiatan koordinasi",4,"Kali",null,{"$f":"SUM(I1397:I1398)","v":150}]
[null,null,"1)","Mempelajari pedoman pelaksaaan tugas.",null,1,null,30,30]
[null,null,"2)","Mengumpulkan data / bahan koordinasi",null,4,null,30,120]
[]
[null,15,"Melaksanakan koordinasi teknis mengenai pengamanan tamu daerah yang berkunjung di wilayah kerja kelurahan.",null,"Kegiatan monitoring",3,"Kali",null,{"$f":"SUM(I1401:I1402)","v":210}]
[null,null,"1)","Mempelajari pedoman pelaksaaan tugas.",null,1,null,30,30]
[null,null,"2)","Mengumpulkan data / bahan koordinasi",null,3,null,60,180]
[]
[null,16,"Melaksanakan monitoring penyelenggaraan ketentraman, ketertiban umum dan kesejahteraan rakyat",null,"Laporan kegiatan",12,"Kali",null,{"$f":"SUM(I1405:I1406)","v":1110}]
[null,null,"1)","Mempelajari pedoman pelaksaaan tugas.",null,1,null,30,30]
[null,null,"2)","Mengumpulkan data / bahan kegiatan monitoring, pengendalian, pengawasan dan evaluasi",null,12,null,90,1080]
[]
[null,17,"Menyiapkan  bahan laporan penyelenggaraan ketentraman, ketertiban umum dan kesejahteraan rakyat di wilayah kerja kelurahan.",null,"Laporan Pelaksa naan Tugas",24,"kali",null,{"$f":"SUM(I1409:I1412)","v":3240},null,"  "]
[null,null,"1)","Mempelajari pedoman pelaksaaan tugas.",null,24,null,30,720,null,"  "]
[null,null,"2)","Menghimpun bahan laporan",null,24,null,60,1440,null,"  "]
[null,null,"3)","Mengumpulkan bahan laporan",null,24,null,30,720,null,"  "]
[null,null,"4)","Menyampaikan bahan laporan",null,24,null,15,360]
[]
[null,19,"Menyusun laporan pelaksanaan tugas sesuai ketentuan yang berlaku untuk pertanggungjawaban kinerja dan rencana yang akan datang.",null,"Laporan pelaksanaan tugas",12,"kali",null,{"$f":"SUM(I1415:I1418)","v":2520}]
[null,null,"1)","Mengumpulkan bahan laporan pelaksanaan tugas;",null,12,null,30,360,null,"  "]
[null,null,"2)","Menganalisis bahan penyusunan laporan;",null,12,null,90,1080,null,"  "]
[null,null,"3)","Membuat laporan pelaksanaan tugas;",null,12,null,60,720]
[null,null,"4)","Menyampaikan laporan kepada atasan;",null,12,null,30,360]
[]
[null,20,"Melaksanakan tugas kedinasan lain yang diperintahkan oleh pimpinan baik lisan maupun tertulis.",null,"Kegiatan tugas kedinasan lain",12,"kali",null,{"$f":"SUM(I1421:I1423)","v":1620}]
[null,null,"1)","Mempelajari tugas;",null,12,null,30,{"$f":"F1421*H1421","v":360}]
[null,null,"2)","Menjalankan tugas;",null,12,null,90,{"$f":"F1422*H1422","v":1080}]
[null,null,"3)","Melaporkan hasil pelaksanaan tugas.",null,12,null,15,180]
[{"$nulls":3},"jumlah",{"$nulls":4},{"$f":"I1326+I1333+I1338+I1344+I1350+I1357+I1364+I1368+I1373+I1377+I1381+I1385+I1391+I1396+I1400+I1404+I1408+I1414+I1420","v":34320},null,"  "]
[]
["I.3","TEKNIK MENENGAH"]
[null,1,"Merencanakan kegiatan yang menjadi tugasnya sesuai program kerja Seksi Tramtibum Dan Kesra dan ketentuan yang berlaku untuk pedoman pelaksanaan tugas.",null,"Program Kerja",1,"dokumen",null,390,"Pengadminis- trasi Kemasya-","Tugas teknik tinggi yang"]
[null,null,"1)","Mempelajari pedoman pelaksanaan tugas.",null,1,null,30,{"$f":"F1428*H1428","v":30},"rakatan","digabung ",null,null,{"$f":"I1424+I1523+I1572","v":76860}]
[null,null,"2)","Mempelajari Program Kerja  Seksi Tramtibum Dan Kesra",null,1,null,120,{"$f":"F1429*H1429","v":120},null,"dengan tugas"]
[null,null,"3)","Menyusun konsep rencana kegiatan Seksi Tramtibum Dan Kesra",null,1,null,120,120,null,"teknik "]
[null,null,"4)","Mengkonsultasikan konsep rencana kegiatan dengan pimpinan untuk mendapatkan pengarahan;",null,1,null,60,60,null,"menengah dan"]
[null,null,"5)","Menetapkan rencana kegiatan Seksi Tramtibum Dan Kesra",null,1,null,60,60,null,"tugas teknik"]
[{"$nulls":10},"rendah"]
[null,2,"Melaksanakan tugas seksi tratibum dan kesra",null,"Kegiatan menghimpun saran dan masukan",12,"Kali",null,1470,null,"  "]
[null,null,"1)","Mempelajari pedoman pelaksaaan tugas.",null,1,null,30,30,null,"  "]
[null,null,"2)","Menghimpun saran dan masukan",null,12,null,60,720]
[null,null,"3)","Menentukan target waktu penyelesaian;",null,12,null,60,720]
[]
[null,3,"Memfasilitasi agar pekerjaan berjalan tertib dan lancar",null,"Kegiatan konsultasi permasalahan",12,"Kali",null,1470,null,"  "]
[null,null,"1)","Mempelajari pedoman pelaksanaan tugas.",null,1,null,30,30,null,"  "]
[null,null,"2)","Menghimpun kesulitan yang dialami",null,12,null,30,360,null,"  "]
[null,null,"3)","Mengkoordinasikan pelaksanaan tugas;",null,12,null,60,720,null,"  "]
[null,null,"4)","Mengkonsultasikan permasalahan kepada pimpinan;",null,12,null,30,360]
[]
[null,4,"Memfasilitasi pencapaian target pelaksanaan tugas",null,"Kegiatan koordinasi pelaksanaan tugas",12,"Kali",null,1470,null,"  "]
[null,null,"1)","Mempelajari pedoman pelaksanaan tugas.",null,1,null,30,30,null,"  "]
[null,null,"2)","Menghimpun kesulitan yang dialami",null,12,null,30,360,null,"  "]
[null,null,"3)","Mengkoordinasikan pelaksanaan tugas;",null,12,null,60,720,null,"  "]
[null,null,"4)","Mengkonsultasikan permasalahan kepada pimpinan;",null,12,null,30,360]
[]
[null,5,"Mengadministrasikan bahan rencana  penyelenggaraan ketentraman dan ketertiban umum di wilayah kerja kelurahan.",null,"Kegiatan perencanaan",12,"Kali",null,{"$f":"SUM(I1452:I1455)","v":2550},null,"  "]
[null,null,"1)","Mempelajari pedoman pelaksaaan tugas.",null,1,null,30,30,null,"  "]
[null,null,"2)","Melaksanakan tugas",null,12,null,120,1440]
[null,null,"3)","Mengetik laporan kegiatan",null,12,null,60,720]
[null,null,"4)","Melaporan kegiatan kepada atasan",null,12,null,30,360]
[]
[null,6,"Mengadministrasikan bahan rencana  kegiatan kesejahteraan rakyat antara lain di bidang agama, pendidikan, kesehatan, ketenagakerjaan, bantuan sosial, penanganan masalah kesejahteraan sosial dan penanggulangan kemiskinan.",null,"Kegiatan perencanaan",12,"Kali",null,{"$f":"SUM(I1458:I1461)","v":2550},null,"  "]
[null,null,"1)","Mempelajari pedoman pelaksaaan tugas.",null,1,null,30,30,null,"  "]
[null,null,"2)","Melaksanakan kegiatan",null,12,null,120,1440]
[null,null,"3)","Mengetik laporan kegiatan",null,12,null,60,720]
[null,null,"4)","Melaporkan hasil kegiatan kepada atasan",null,12,null,30,360]
[]
[null,7,"Menyiapkan bahan koordinasi ke atas dengan Camat, Kepolisian Sektor (Polsek) dan / atau Komando Rayon Militer (KORAMIL) mengenai program dan kegiatan penyelenggaraan ketentraman dan ketertiban umum di wilayah kerja kelurahan.",null,"Kegiatan koordinasi",12,"Kali",null,{"$f":"SUM(I1464:I1466)","v":1110},null,"  "]
[null,null,"1)","Mempelajari pedoman pelaksaaan tugas.",null,1,null,30,30,null,"  "]
[null,null,"2)","Mengetik bahan koordinasi",null,12,null,60,720,null,"  "]
[null,null,"3)","Mengetik laporan hasil koordinasi",null,12,null,30,360,null,"  "]
[]
[null,8,"Menjalin komunikasi yang intensif dengan tokoh masyarakat / pemuka agama yang berada di wilayah kerja kelurahan untuk mewujudkan ketentraman dan ketertiban umum masyarakat di wilayah kerja kelurahan",null,"Kegiatan komunikasi",2,"Kali",null,{"$f":"SUM(I1469:I1471)","v":2250},null,"  "]
[null,null,"1)","Mempelajari pedoman pelaksaaan tugas.",null,1,null,30,30,null,"  "]
[null,null,"2)","Mengetik data tokoh/pemuka agama dan tokoh masyarakat",null,1,null,60,60,null,"  "]
[null,null,"3)","Melaksanakan komunikasi",null,12,null,180,2160]
[]
[null,9,"Mengadministrasikan bahan koordinasi teknis dengan Satuan Polisi Pamong Praja mengenai penegakan Peraturan Daerah, Peraturan Bupati dan Keputusan Bupati",null,"Sinkronisasi kegiatan",6,"Kali",null,{"$f":"SUM(I1474:I1475)","v":390},null,"  "]
[null,null,"1)","Mempelajari pedoman pelaksaaan tugas.",null,1,null,30,30,null,"  "]
[null,null,"2)","Mengetik laporan hasil koordinasi",null,6,null,60,{"$f":"F1475*H1475","v":360}]
[]
[null,10,"Mengadministrasikan upaya preventif dalam penanggulangan penyakit masyarakat",null,"Kegiatan",2,"kali",null,{"$f":"SUM(I1478:I1479)","v":150},null,"  "]
[null,null,"1)","Mengetik jadwal pembinaan",null,1,null,30,30,null,"  "]
[null,null,"2)","Mengetik laporan pembinaan",null,2,null,60,120,null,"  "]
[]
[null,11,"Menyiapkan bahan koordinasi teknis dengan Camat, Satuan Polisi Pamong Praja, Polsek dan / atau Koramil  mengenai penanggulangan penyakit masyarakat",null,"Kegiatan koordinasi",12,"Kali",null,{"$f":"SUM(I1482:I1483)","v":750},null,"  "]
[null,null,"1)","Mempelajari pedoman pelaksaaan tugas.",null,1,null,30,30,null,"  "]
[null,null,"2)","Mengetik laporan hasil koordinasi",null,12,null,60,720]
[]
[null,12,"Melaksanakan upaya pengamanan atas aset pemerintah kabupaten di lingkungan perkantoran kelurahan.",null,"Kegiatan pengamanan",24,"Kali",null,{"$f":"SUM(I1486:I1489)","v":6570},null,"  "]
[null,null,"1)","Mempelajari pedoman pelaksaaan tugas.",null,1,null,30,30,null,"  "]
[null,null,"2)","Mengetik data aset pemerintah",null,1,null,60,60,null,"  "]
[null,null,"3)","Melaksanakan pengamanan aset",null,24,null,240,5760]
[null,null,"4)","Melaporkan kegiatan pengamanan aset kepada atasan",null,24,null,30,720]
[]
[null,13,"Melaksanakan pemantauan terhadap hal-hal yang memungkinkan terjadinya gangguan ketentraman dan ketertiban umum.",null,"Kegiatan pemantauan",24,"Kali",null,{"$f":"SUM(I1492:I1494)","v":7230},null,"  "]
[null,null,"1)","Mempelajari pedoman pelaksaaan tugas.",null,1,null,30,30,null,"  "]
[null,null,"2)","Melaksanakan pemantauan",null,24,null,240,5760]
[null,null,"3)","Mengetik laporan hasil pemantauan",null,24,null,60,1440]
[]
[null,14,"Menyiapkan bahan koordinasi teknis dengan SKPD yang membidangi penanggulangan gangguan ketentraman dan ketertiban umum.",null,"Kegiatan koordinasi",4,"Kali",null,{"$f":"SUM(I1497:I1498)","v":270}]
[null,null,"1)","Mempelajari pedoman pelaksaaan tugas.",null,1,null,30,30]
[null,null,"2)","Mengetik laporan hasil koordinasi",null,4,null,60,240]
[]
[null,15,"Melaksanakan koordinasi teknis mengenai pengamanan tamu daerah yang berkunjung di wilayah kerja kelurahan.",null,"Kegiatan monitoring",3,"Kali",null,{"$f":"SUM(I1501:I1502)","v":210}]
[null,null,"1)","Mempelajari pedoman pelaksaaan tugas.",null,1,null,30,30]
[null,null,"2)","Mengetik laporan hasil koordinasi",null,3,null,60,180]
[]
[null,16,"Melaksanakan monitoring penyelenggaraan ketentraman, ketertiban umum dan kesejahteraan rakyat",null,"Laporan kegiatan",12,"Kali",null,{"$f":"SUM(I1505:I1507)","v":1110}]
[null,null,"1)","Mempelajari pedoman pelaksaaan tugas.",null,1,null,30,30]
[null,null,"2)","Mengetik jadwal kegiatan",null,12,null,30,360]
[null,null,"3)","Mengetik laporan hasil kegiatan monitoring, pengendalian, pengawasan dan evaluasi",null,12,null,60,720]
[]
[null,17,"Menyiapkan  bahan laporan penyelenggaraan ketentraman, ketertiban umum dan kesejahteraan rakyat di wilayah kerja kelurahan.",null,"Laporan Pelaksa naan Tugas",24,"dokumen",null,{"$f":"SUM(I1510:I1511)","v":1470},null,"  "]
[null,null,"1)","Mempelajari pedoman pelaksaaan tugas.",null,1,null,30,30,null,"  "]
[null,null,"2)","Menyampaikan bahan laporan kepada atasan",null,24,null,60,1440,null,"  "]
[{"$nulls":10},"  "]
[null,19,"Menyusun laporan pelaksanaan tugas sesuai ketentuan yang berlaku untuk pertanggungjawaban kinerja dan rencana yang akan datang.",null,"Laporan pelaksanaan tugas",12,"kali",null,{"$f":"SUM(I1514:I1517)","v":2520}]
[null,null,"1)","Mengumpulkan bahan laporan pelaksanaan tugas;",null,12,null,30,{"$f":"F1514*H1514","v":360}]
[null,null,"2)","Menganalisis bahan penyusunan laporan;",null,12,null,90,{"$f":"F1515*H1515","v":1080}]
[null,null,"3)","Membuat laporan pelaksanaan tugas;",null,12,null,60,720]
[null,null,"4)","Menyampaikan laporan kepada atasan;",null,12,null,30,360]
[]
[null,20,"Melaksanakan tugas kedinasan lain yang diperintahkan oleh pimpinan baik lisan maupun tertulis.",null,"Kegiatan",12,"kali",null,{"$f":"SUM(I1520:I1522)","v":1620}]
[null,null,"1)","Mempelajari tugas;",null,12,null,30,360,null,"  "]
[null,null,"2)","Menjalankan tugas;",null,12,null,90,1080,null,"  "]
[null,null,"3)","Melaporkan hasil pelaksanaan tugas.",null,12,null,15,180,null,"  "]
[{"$nulls":3},"jumlah",{"$nulls":4},{"$f":"+I1572","v":21270}]
[]
["I.4","TEKNIK RENDAH"]
[null,1,"Merencanakan kegiatan yang menjadi tugasnya sesuai program kerja  Seksi Tramtibum Dan Kesra dan ketentuan yang berlaku untuk pedoman pelaksanaan tugas.",null,"Program Kerja",1,"dokumen",null,390,null,"Tidak memenuhi"]
[null,null,"1)","Mempelajari pedoman pelaksanaan tugas.",null,1,null,30,{"$f":"F1527*H1527","v":30},null,"beban kerja"]
[null,null,"2)","Mempelajari Program Kerja Seksi Tramtibum Dan Kesra",null,1,null,120,{"$f":"F1528*H1528","v":120},null,"untuk 1 (satu)"]
[null,null,"3)","Menyusun konsep rencana kegiatan Seksi Tramtibum Dan Kesra",null,1,null,120,120,null,"jabatan, maka"]
[null,null,"4)","Mengkonsultasikan konsep rencana kegiatan dengan pimpinan untuk mendapatkan pengarahan;",null,1,null,60,60,null,"digabung "]
[null,null,"5)","Menetapkan rencana kegiatan Seksi Tramtibum Dan Kesra",null,1,null,60,60,null,"dengan tugas"]
[{"$nulls":10},"teknik tinggi"]
[null,2,"Melaksanakan tugas seksi tratibum dan kesra",null,"Kegiatan menghimpun saran dan masukan",12,"Kali",null,1470,null,"dan tugas teknik menengah"]
[null,null,"1)","Mempelajari pedoman pelaksanaan tugas.",null,1,null,30,30]
[null,null,"2)","Menyampaikan saran dan masukan",null,12,null,60,720]
[null,null,"3)","Menentukan target waktu penyelesaian;",null,12,null,60,720]
[]
[null,3,"Memfasilitasi agar pekerjaan berjalan tertib dan lancar",null,"Kegiatan konsultasi permasalahan",12,"Kali",null,1470,null,"  "]
[null,null,"1)","Mempelajari pedoman pelaksanaan tugas.",null,1,null,30,30,null,"  "]
[null,null,"2)","Menyampaikan kesulitan yang dialami",null,12,null,30,360,null,"  "]
[null,null,"3)","Mengkoordinasikan pelaksanaan tugas;",null,12,null,60,720,null,"  "]
[null,null,"4)","Mengkonsultasikan permasalahan kepada pimpinan;",null,12,null,30,360]
[]
[null,4,"Memfasilitasi pencapaian target pelaksanaan tugas",null,"Kegiatan koordinasi pelaksanaan tugas",12,"Kali",null,1470,null,"  "]
[null,null,"1)","Mempelajari pedoman pelaksanaan tugas.",null,1,null,30,30,null,"  "]
[null,null,"2)","Menyampaikan kesulitan yang dialami",null,12,null,30,360,null,"  "]
[null,null,"3)","Mengkoordinasikan pelaksanaan tugas;",null,12,null,60,720,null,"  "]
[null,null,"4)","Mengkonsultasikan permasalahan kepada pimpinan;",null,12,null,30,360]
[]
[null,12,"Melaksanakan upaya pengamanan atas aset pemerintah kabupaten di lingkungan perkantoran kelurahan.",null,"Kegiatan pengamanan",24,"Kali",null,{"$f":"SUM(I1551:I1553)","v":6510},null,"  "]
[null,null,"1)","Mempelajari pedoman pelaksaaan tugas.",null,1,null,30,30,null,"  "]
[null,null,"2)","Melaksanakan pengamanan aset",null,24,null,240,5760]
[null,null,"3)","Melaporkan kegiatan pengamanan aset kepada atasan",null,24,null,30,720]
[]
[null,13,"Melaksanakan pemantauan terhadap hal-hal yang memungkinkan terjadinya gangguan ketentraman dan ketertiban umum.",null,"Kegiatan pemantauan",24,"Kali",null,{"$f":"SUM(I1556:I1557)","v":5790},null,"  "]
[null,null,"1)","Mempelajari pedoman pelaksaaan tugas.",null,1,null,30,30,null,"  "]
[null,null,"2)","Melaksanakan pemantauan",null,24,null,240,5760]
[]
[null,17,"Mengadministrasikan laporan penyelenggaraan ketentraman, ketertiban umum dan kesejahteraan rakyat di wilayah kerja kelurahan.",null,"Laporan kegiatan",24,"Kali",null,{"$f":"SUM(I1560:I1561)","v":750},null,"  "]
[null,null,"1)","Mempelajari pedoman pelaksaaan tugas.",null,1,null,30,30,null,"  "]
[null,null,"2)","Menyampaikan bahan laporan kepada atasan",null,24,null,30,720,null,"  "]
[]
[null,19,"Menyusun laporan pelaksanaan tugas sesuai ketentuan yang berlaku untuk pertanggungjawaban kinerja dan rencana yang akan datang.",null,"Laporan Pelaksa naan Tugas",12,"dokumen",null,{"$f":"SUM(I1564:I1566)","v":1800},null,"  "]
[null,null,"1)","Mengumpulkan bahan laporan pelaksanaan tugas;",null,12,null,30,360,null,"  "]
[null,null,"2)","Membuat laporan pelaksanaan tugas;",null,12,null,90,1080,null,"  "]
[null,null,"3)","Menyampaikan laporan kepada atasan;",null,12,null,30,360,null,"  "]
[]
[null,20,"Melaksanakan tugas kedinasan lain yang diperintahkan oleh pimpinan baik lisan maupun tertulis.",null,"Kegiatan tugas kedinasan lain",12,"kali",null,{"$f":"SUM(I1569:I1571)","v":1620},null,"  "]
[null,null,"1)","Mempelajari tugas;",null,12,null,30,360,null,"  "]
[null,null,"2)","Menjalankan tugas;",null,12,null,90,1080,null,"  "]
[null,null,"3)","Melaporkan hasil pelaksanaan tugas.",null,12,null,15,180]
[null,"jumlah",{"$nulls":6},{"$f":"I1526+I1533+I1538+I1544+I1550+I1555+I1559+I1563+I1568","v":21270},null,null,76860]